Body Name,Date Paid,Transaction Number,Amount,Supplier Name,Supplier Type,Expense Area,Cost Centre Description,Expense Type
Cambridgeshire County Council,02-Sep-16,21477485-13908344,-44365.99,Kisimul School,Care Establishment,S&C,Placements - Education,Independent School Placements
Cambridgeshire County Council,02-Sep-16,21530649-13908226,-13503.6,Guidant Group,Trade Supplier,LGSS,Legal - Admin & Overhead,Pay - Agency Staff
Cambridgeshire County Council,01-Sep-16,21292736-13901017,-9880,Cambridge City Council,Other Public Bodies,LGSS,Capital Receipts Expenses,Business rates
Cambridgeshire County Council,15-Sep-16,21612773-13961486,-9015.5,Nhs Cambs & Pboro Ccg,Care Establishment,3 - Operations - Countywide Services,Countywide PD Service - Care,Residential Independent Sector
Cambridgeshire County Council,01-Sep-16,21292735-13901016,-7830,Cambridge City Council,Other Public Bodies,LGSS,Capital Receipts Expenses,Business rates
Cambridgeshire County Council,22-Sep-16,21676294-14049883,-4655,Brookdale Healthcare Limited,Care Establishment,2 - Operations - Learning Disability,LDP Hunts special needs,Respite Independent Sector
Cambridgeshire County Council,22-Sep-16,21676297-14049886,-4655,Brookdale Healthcare Limited,Care Establishment,2 - Operations - Learning Disability,LDP Hunts special needs,Respite Independent Sector
Cambridgeshire County Council,22-Sep-16,21676298-14049887,-4655,Brookdale Healthcare Limited,Care Establishment,2 - Operations - Learning Disability,LDP Hunts special needs,Respite Independent Sector
Cambridgeshire County Council,22-Sep-16,21676301-14049890,-4655,Brookdale Healthcare Limited,Care Establishment,2 - Operations - Learning Disability,LDP Hunts special needs,Respite Independent Sector
Cambridgeshire County Council,22-Sep-16,21676304-14049893,-4655,Brookdale Healthcare Limited,Care Establishment,2 - Operations - Learning Disability,LDP Huntingdonshire Locality - Care,Respite Independent Sector
Cambridgeshire County Council,22-Sep-16,21676979-14049877,-4655,Brookdale Healthcare Limited,Care Establishment,2 - Operations - Learning Disability,LDP Hunts special needs,Respite Independent Sector
Cambridgeshire County Council,22-Sep-16,21676980-14049878,-4655,Brookdale Healthcare Limited,Care Establishment,2 - Operations - Learning Disability,LDP Huntingdonshire Locality - Care,Respite Independent Sector
Cambridgeshire County Council,22-Sep-16,21676981-14049879,-4655,Brookdale Healthcare Limited,Care Establishment,2 - Operations - Learning Disability,LDP Hunts special needs,Respite Independent Sector
Cambridgeshire County Council,22-Sep-16,21676983-14049865,-4655,Brookdale Healthcare Limited,Care Establishment,2 - Operations - Learning Disability,LDP Hunts special needs,Respite Independent Sector
Cambridgeshire County Council,22-Sep-16,21676984-14049866,-4655,Brookdale Healthcare Limited,Care Establishment,2 - Operations - Learning Disability,LDP Hunts special needs,Respite Independent Sector
Cambridgeshire County Council,22-Sep-16,21676986-14049868,-4655,Brookdale Healthcare Limited,Care Establishment,2 - Operations - Learning Disability,LDP Hunts special needs,Respite Independent Sector
Cambridgeshire County Council,22-Sep-16,21676988-14049870,-4655,Brookdale Healthcare Limited,Care Establishment,2 - Operations - Learning Disability,LDP Huntingdonshire Locality - Care,Respite Independent Sector
Cambridgeshire County Council,22-Sep-16,21676989-14049871,-4655,Brookdale Healthcare Limited,Care Establishment,2 - Operations - Learning Disability,LDP Hunts special needs,Respite Independent Sector
Cambridgeshire County Council,06-Sep-16,21107362-13916487,-4260.17,Cambridgeshire Community Services Nhs Trust,Trust (Other),LGSS,LGSS Property Trading Recharges,Leased Vehicle Costs
Cambridgeshire County Council,22-Sep-16,21676300-14049889,-3990,Brookdale Healthcare Limited,Care Establishment,2 - Operations - Learning Disability,LDP Hunts special needs,Respite Independent Sector
Cambridgeshire County Council,26-Sep-16,21692351-14088653,-3678.24,Chelsea And Westminster Hospital Nhs Foundation Trust,Trust (Other),PH,SH STI testing & treatment - Prescribed,Other Hired Contract Services
Cambridgeshire County Council,22-Sep-16,21676978-14049876,-3325,Brookdale Healthcare Limited,Care Establishment,2 - Operations - Learning Disability,LDP Hunts special needs,Respite Independent Sector
Cambridgeshire County Council,09-Sep-16,21572998-13935900,-2663.96,Conquest Care Homes Peterborough,Care Establishment,2 - Operations - Learning Disability,LDP Hunts special needs,Residential Independent Sector
Cambridgeshire County Council,09-Sep-16,21573001-13935903,-2663.96,Conquest Care Homes Peterborough,Care Establishment,2 - Operations - Learning Disability,LDP Hunts special needs,Residential Independent Sector
Cambridgeshire County Council,09-Sep-16,21573004-13935906,-2663.96,Conquest Care Homes Peterborough,Care Establishment,2 - Operations - Learning Disability,LDP Hunts special needs,Residential Independent Sector
Cambridgeshire County Council,09-Sep-16,21573006-13935908,-2663.96,Conquest Care Homes Peterborough,Care Establishment,2 - Operations - Learning Disability,LDP Hunts special needs,Residential Independent Sector
Cambridgeshire County Council,09-Sep-16,21573008-13935910,-2663.96,Conquest Care Homes Peterborough,Care Establishment,2 - Operations - Learning Disability,LDP Hunts special needs,Residential Independent Sector
Cambridgeshire County Council,09-Sep-16,21573009-13935911,-2663.96,Conquest Care Homes Peterborough,Care Establishment,2 - Operations - Learning Disability,LDP Hunts special needs,Residential Independent Sector
Cambridgeshire County Council,09-Sep-16,21573011-13935913,-2663.96,Conquest Care Homes Peterborough,Care Establishment,2 - Operations - Learning Disability,LDP Hunts special needs,Residential Independent Sector
Cambridgeshire County Council,09-Sep-16,21573015-13935917,-2663.96,Conquest Care Homes Peterborough,Care Establishment,2 - Operations - Learning Disability,LDP Hunts special needs,Residential Independent Sector
Cambridgeshire County Council,09-Sep-16,21573018-13935920,-2663.96,Conquest Care Homes Peterborough,Care Establishment,2 - Operations - Learning Disability,LDP Hunts special needs,Residential Independent Sector
Cambridgeshire County Council,09-Sep-16,21573020-13935922,-2663.96,Conquest Care Homes Peterborough,Care Establishment,2 - Operations - Learning Disability,LDP Hunts special needs,Residential Independent Sector
Cambridgeshire County Council,09-Sep-16,21573021-13935923,-2663.96,Conquest Care Homes Peterborough,Care Establishment,2 - Operations - Learning Disability,LDP Hunts special needs,Residential Independent Sector
Cambridgeshire County Council,09-Sep-16,21573022-13935924,-2663.96,Conquest Care Homes Peterborough,Care Establishment,2 - Operations - Learning Disability,LDP Hunts special needs,Residential Independent Sector
Cambridgeshire County Council,09-Sep-16,21573024-13935926,-2663.96,Conquest Care Homes Peterborough,Care Establishment,2 - Operations - Learning Disability,LDP Hunts special needs,Residential Independent Sector
Cambridgeshire County Council,09-Sep-16,21573025-13935927,-2663.96,Conquest Care Homes Peterborough,Care Establishment,2 - Operations - Learning Disability,LDP Hunts special needs,Residential Independent Sector
Cambridgeshire County Council,09-Sep-16,21573027-13935929,-2663.96,Conquest Care Homes Peterborough,Care Establishment,2 - Operations - Learning Disability,LDP Hunts special needs,Residential Independent Sector
Cambridgeshire County Council,09-Sep-16,21573032-13935934,-2663.96,Conquest Care Homes Peterborough,Care Establishment,2 - Operations - Learning Disability,LDP Hunts special needs,Residential Independent Sector
Cambridgeshire County Council,09-Sep-16,21573034-13935856,-2663.96,Conquest Care Homes Peterborough,Care Establishment,2 - Operations - Learning Disability,LDP Hunts special needs,Residential Independent Sector
Cambridgeshire County Council,09-Sep-16,21573035-13935857,-2663.96,Conquest Care Homes Peterborough,Care Establishment,2 - Operations - Learning Disability,LDP Hunts special needs,Residential Independent Sector
Cambridgeshire County Council,09-Sep-16,21573036-13935858,-2663.96,Conquest Care Homes Peterborough,Care Establishment,2 - Operations - Learning Disability,LDP Hunts special needs,Residential Independent Sector
Cambridgeshire County Council,09-Sep-16,21573037-13935859,-2663.96,Conquest Care Homes Peterborough,Care Establishment,2 - Operations - Learning Disability,LDP Hunts special needs,Residential Independent Sector
Cambridgeshire County Council,09-Sep-16,21573041-13935863,-2663.96,Conquest Care Homes Peterborough,Care Establishment,2 - Operations - Learning Disability,LDP Hunts special needs,Residential Independent Sector
Cambridgeshire County Council,09-Sep-16,21573042-13935864,-2663.96,Conquest Care Homes Peterborough,Care Establishment,2 - Operations - Learning Disability,LDP Hunts special needs,Residential Independent Sector
Cambridgeshire County Council,09-Sep-16,21573044-13935866,-2663.96,Conquest Care Homes Peterborough,Care Establishment,2 - Operations - Learning Disability,LDP Hunts special needs,Residential Independent Sector
Cambridgeshire County Council,09-Sep-16,21573045-13935867,-2663.96,Conquest Care Homes Peterborough,Care Establishment,2 - Operations - Learning Disability,LDP Hunts special needs,Residential Independent Sector
Cambridgeshire County Council,09-Sep-16,21573046-13935868,-2663.96,Conquest Care Homes Peterborough,Care Establishment,2 - Operations - Learning Disability,LDP Hunts special needs,Residential Independent Sector
Cambridgeshire County Council,09-Sep-16,21573048-13935870,-2663.96,Conquest Care Homes Peterborough,Care Establishment,2 - Operations - Learning Disability,LDP Hunts special needs,Residential Independent Sector
Cambridgeshire County Council,15-Sep-16,21609879-13961488,-2512.66,Nhs Cambs & Pboro Ccg,Care Establishment,3 - Operations - Countywide Services,Countywide PD Service - Care,Residential Independent Sector
Cambridgeshire County Council,16-Sep-16,21567314-14014403,-2379.3,Consultus Care And Nursing,Care Establishment,2 - Operations - Learning Disability,LDP Huntingdonshire Locality - Care,Respite Independent Sector
Cambridgeshire County Council,16-Sep-16,21567315-14014404,-2379.3,Consultus Care And Nursing,Care Establishment,2 - Operations - Learning Disability,LDP Huntingdonshire Locality - Care,Respite Independent Sector
Cambridgeshire County Council,16-Sep-16,21567317-14014405,-2379.3,Consultus Care And Nursing,Care Establishment,2 - Operations - Learning Disability,LDP Huntingdonshire Locality - Care,Respite Independent Sector
Cambridgeshire County Council,16-Sep-16,21567321-14014409,-2379.3,Consultus Care And Nursing,Care Establishment,2 - Operations - Learning Disability,LDP Huntingdonshire Locality - Care,Respite Independent Sector
Cambridgeshire County Council,16-Sep-16,21567324-14014411,-2379.3,Consultus Care And Nursing,Care Establishment,2 - Operations - Learning Disability,LDP Huntingdonshire Locality - Care,Respite Independent Sector
Cambridgeshire County Council,16-Sep-16,21567333-14014417,-2379.3,Consultus Care And Nursing,Care Establishment,2 - Operations - Learning Disability,LDP Huntingdonshire Locality - Care,Respite Independent Sector
Cambridgeshire County Council,16-Sep-16,21567334-14014418,-2379.3,Consultus Care And Nursing,Care Establishment,2 - Operations - Learning Disability,LDP Huntingdonshire Locality - Care,Respite Independent Sector
Cambridgeshire County Council,16-Sep-16,21567338-14014420,-2379.3,Consultus Care And Nursing,Care Establishment,2 - Operations - Learning Disability,LDP Huntingdonshire Locality - Care,Respite Independent Sector
Cambridgeshire County Council,16-Sep-16,21567346-14014425,-2379.3,Consultus Care And Nursing,Care Establishment,2 - Operations - Learning Disability,LDP Huntingdonshire Locality - Care,Respite Independent Sector
Cambridgeshire County Council,16-Sep-16,21567347-14014426,-2379.3,Consultus Care And Nursing,Care Establishment,2 - Operations - Learning Disability,LDP Huntingdonshire Locality - Care,Respite Independent Sector
Cambridgeshire County Council,16-Sep-16,21567350-14014427,-2379.3,Consultus Care And Nursing,Care Establishment,2 - Operations - Learning Disability,LDP Huntingdonshire Locality - Care,Respite Independent Sector
Cambridgeshire County Council,16-Sep-16,21567353-14014429,-2379.3,Consultus Care And Nursing,Care Establishment,2 - Operations - Learning Disability,LDP Huntingdonshire Locality - Care,Respite Independent Sector
Cambridgeshire County Council,16-Sep-16,21567354-14014430,-2379.3,Consultus Care And Nursing,Care Establishment,2 - Operations - Learning Disability,LDP Huntingdonshire Locality - Care,Respite Independent Sector
Cambridgeshire County Council,16-Sep-16,21567356-14014431,-2379.3,Consultus Care And Nursing,Care Establishment,2 - Operations - Learning Disability,LDP Huntingdonshire Locality - Care,Respite Independent Sector
Cambridgeshire County Council,16-Sep-16,21567357-14014432,-2379.3,Consultus Care And Nursing,Care Establishment,2 - Operations - Learning Disability,LDP Huntingdonshire Locality - Care,Respite Independent Sector
Cambridgeshire County Council,16-Sep-16,21567359-14014434,-2379.3,Consultus Care And Nursing,Care Establishment,2 - Operations - Learning Disability,LDP Huntingdonshire Locality - Care,Respite Independent Sector
Cambridgeshire County Council,16-Sep-16,21567360-14014435,-2379.3,Consultus Care And Nursing,Care Establishment,2 - Operations - Learning Disability,LDP Huntingdonshire Locality - Care,Respite Independent Sector
Cambridgeshire County Council,16-Sep-16,21567364-14014437,-2379.3,Consultus Care And Nursing,Care Establishment,2 - Operations - Learning Disability,LDP Huntingdonshire Locality - Care,Respite Independent Sector
Cambridgeshire County Council,16-Sep-16,21567366-14014439,-2379.3,Consultus Care And Nursing,Care Establishment,2 - Operations - Learning Disability,LDP Huntingdonshire Locality - Care,Respite Independent Sector
Cambridgeshire County Council,29-Sep-16,21727861-14117440,-2360.34,Consultus Care And Nursing,Care Establishment,2 - Operations - Learning Disability,LDP Huntingdonshire Locality - Care,Respite Independent Sector
Cambridgeshire County Council,29-Sep-16,21727862-14117441,-2360.34,Consultus Care And Nursing,Care Establishment,2 - Operations - Learning Disability,LDP Huntingdonshire Locality - Care,Respite Independent Sector
Cambridgeshire County Council,29-Sep-16,21727864-14117443,-2360.34,Consultus Care And Nursing,Care Establishment,2 - Operations - Learning Disability,LDP Huntingdonshire Locality - Care,Respite Independent Sector
Cambridgeshire County Council,29-Sep-16,21727865-14117444,-2360.34,Consultus Care And Nursing,Care Establishment,2 - Operations - Learning Disability,LDP Huntingdonshire Locality - Care,Respite Independent Sector
Cambridgeshire County Council,29-Sep-16,21727866-14117445,-2360.34,Consultus Care And Nursing,Care Establishment,2 - Operations - Learning Disability,LDP Huntingdonshire Locality - Care,Respite Independent Sector
Cambridgeshire County Council,29-Sep-16,21727870-14117449,-2360.34,Consultus Care And Nursing,Care Establishment,2 - Operations - Learning Disability,LDP Huntingdonshire Locality - Care,Respite Independent Sector
Cambridgeshire County Council,29-Sep-16,21727871-14117450,-2360.34,Consultus Care And Nursing,Care Establishment,2 - Operations - Learning Disability,LDP Huntingdonshire Locality - Care,Respite Independent Sector
Cambridgeshire County Council,29-Sep-16,21727872-14117451,-2360.34,Consultus Care And Nursing,Care Establishment,2 - Operations - Learning Disability,LDP Huntingdonshire Locality - Care,Respite Independent Sector
Cambridgeshire County Council,29-Sep-16,21727874-14117453,-2360.34,Consultus Care And Nursing,Care Establishment,2 - Operations - Learning Disability,LDP Huntingdonshire Locality - Care,Respite Independent Sector
Cambridgeshire County Council,29-Sep-16,21727878-14117455,-2360.34,Consultus Care And Nursing,Care Establishment,2 - Operations - Learning Disability,LDP Huntingdonshire Locality - Care,Respite Independent Sector
Cambridgeshire County Council,29-Sep-16,21727881-14117412,-2360.34,Consultus Care And Nursing,Care Establishment,2 - Operations - Learning Disability,LDP Huntingdonshire Locality - Care,Respite Independent Sector
Cambridgeshire County Council,29-Sep-16,21727882-14117413,-2360.34,Consultus Care And Nursing,Care Establishment,2 - Operations - Learning Disability,LDP Huntingdonshire Locality - Care,Respite Independent Sector
Cambridgeshire County Council,29-Sep-16,21727884-14117415,-2360.34,Consultus Care And Nursing,Care Establishment,2 - Operations - Learning Disability,LDP Huntingdonshire Locality - Care,Respite Independent Sector
Cambridgeshire County Council,29-Sep-16,21727885-14117416,-2360.34,Consultus Care And Nursing,Care Establishment,2 - Operations - Learning Disability,LDP Huntingdonshire Locality - Care,Respite Independent Sector
Cambridgeshire County Council,29-Sep-16,21727886-14117417,-2360.34,Consultus Care And Nursing,Care Establishment,2 - Operations - Learning Disability,LDP Huntingdonshire Locality - Care,Respite Independent Sector
Cambridgeshire County Council,29-Sep-16,21727888-14117419,-2360.34,Consultus Care And Nursing,Care Establishment,2 - Operations - Learning Disability,LDP Huntingdonshire Locality - Care,Respite Independent Sector
Cambridgeshire County Council,29-Sep-16,21727893-14117423,-2360.34,Consultus Care And Nursing,Care Establishment,2 - Operations - Learning Disability,LDP Huntingdonshire Locality - Care,Respite Independent Sector
Cambridgeshire County Council,29-Sep-16,21727895-14117425,-2360.34,Consultus Care And Nursing,Care Establishment,2 - Operations - Learning Disability,LDP Huntingdonshire Locality - Care,Respite Independent Sector
Cambridgeshire County Council,29-Sep-16,21727900-14117430,-2360.34,Consultus Care And Nursing,Care Establishment,2 - Operations - Learning Disability,LDP Huntingdonshire Locality - Care,Respite Independent Sector
Cambridgeshire County Council,29-Sep-16,21727904-14117434,-2360.34,Consultus Care And Nursing,Care Establishment,2 - Operations - Learning Disability,LDP Huntingdonshire Locality - Care,Respite Independent Sector
Cambridgeshire County Council,29-Sep-16,21727905-14117435,-2360.34,Consultus Care And Nursing,Care Establishment,2 - Operations - Learning Disability,LDP Huntingdonshire Locality - Care,Respite Independent Sector
Cambridgeshire County Council,29-Sep-16,21727906-14117436,-2360.34,Consultus Care And Nursing,Care Establishment,2 - Operations - Learning Disability,LDP Huntingdonshire Locality - Care,Respite Independent Sector
Cambridgeshire County Council,26-Sep-16,20260246-14088547,-2330.66,Alphabet (Uk) Fleet Management Limited,Trade Supplier,LGSS,LGSS Property Trading Recharges,Leased Vehicle Costs
Cambridgeshire County Council,09-Sep-16,21573050-13935872,-2283.39,Conquest Care Homes Peterborough,Care Establishment,2 - Operations - Learning Disability,LDP Hunts special needs,Residential Independent Sector
Cambridgeshire County Council,09-Sep-16,21554911-13936700,-2197.24,Conquest Care Homes Peterborough,Care Establishment,2 - Operations - Learning Disability,LDP Hunts special needs,Residential Independent Sector
Cambridgeshire County Council,09-Sep-16,21554912-13936701,-2197.24,Conquest Care Homes Peterborough,Care Establishment,2 - Operations - Learning Disability,LDP Hunts special needs,Residential Independent Sector
Cambridgeshire County Council,09-Sep-16,21554916-13936705,-2197.24,Conquest Care Homes Peterborough,Care Establishment,2 - Operations - Learning Disability,LDP Hunts special needs,Residential Independent Sector
Cambridgeshire County Council,09-Sep-16,21554918-13936707,-2197.24,Conquest Care Homes Peterborough,Care Establishment,2 - Operations - Learning Disability,LDP Hunts special needs,Residential Independent Sector
Cambridgeshire County Council,09-Sep-16,21554920-13936709,-2197.24,Conquest Care Homes Peterborough,Care Establishment,2 - Operations - Learning Disability,LDP Hunts special needs,Residential Independent Sector
Cambridgeshire County Council,09-Sep-16,21554922-13936711,-2197.24,Conquest Care Homes Peterborough,Care Establishment,2 - Operations - Learning Disability,LDP Hunts special needs,Residential Independent Sector
Cambridgeshire County Council,09-Sep-16,21554924-13936721,-2197.24,Conquest Care Homes Peterborough,Care Establishment,2 - Operations - Learning Disability,LDP Hunts special needs,Residential Independent Sector
Cambridgeshire County Council,09-Sep-16,21554926-13936723,-2197.24,Conquest Care Homes Peterborough,Care Establishment,2 - Operations - Learning Disability,LDP Hunts special needs,Residential Independent Sector
Cambridgeshire County Council,09-Sep-16,21559561-13935700,-2197.24,Conquest Care Homes Peterborough,Care Establishment,2 - Operations - Learning Disability,LDP Hunts special needs,Residential Independent Sector
Cambridgeshire County Council,09-Sep-16,21559562-13935701,-2197.24,Conquest Care Homes Peterborough,Care Establishment,2 - Operations - Learning Disability,LDP Hunts special needs,Residential Independent Sector
Cambridgeshire County Council,09-Sep-16,21559567-13935706,-2197.24,Conquest Care Homes Peterborough,Care Establishment,2 - Operations - Learning Disability,LDP Hunts special needs,Residential Independent Sector
Cambridgeshire County Council,09-Sep-16,21559569-13935708,-2197.24,Conquest Care Homes Peterborough,Care Establishment,2 - Operations - Learning Disability,LDP Hunts special needs,Residential Independent Sector
Cambridgeshire County Council,09-Sep-16,21559570-13935709,-2197.24,Conquest Care Homes Peterborough,Care Establishment,2 - Operations - Learning Disability,LDP Hunts special needs,Residential Independent Sector
Cambridgeshire County Council,09-Sep-16,21559571-13935710,-2197.24,Conquest Care Homes Peterborough,Care Establishment,2 - Operations - Learning Disability,LDP Hunts special needs,Residential Independent Sector
Cambridgeshire County Council,09-Sep-16,21559573-13935712,-2197.24,Conquest Care Homes Peterborough,Care Establishment,2 - Operations - Learning Disability,LDP Hunts special needs,Residential Independent Sector
Cambridgeshire County Council,09-Sep-16,21559574-13935713,-2197.24,Conquest Care Homes Peterborough,Care Establishment,2 - Operations - Learning Disability,LDP Hunts special needs,Residential Independent Sector
Cambridgeshire County Council,09-Sep-16,21559576-13935715,-2197.24,Conquest Care Homes Peterborough,Care Establishment,2 - Operations - Learning Disability,LDP Hunts special needs,Residential Independent Sector
Cambridgeshire County Council,09-Sep-16,21559579-13935718,-2197.24,Conquest Care Homes Peterborough,Care Establishment,2 - Operations - Learning Disability,LDP Hunts special needs,Residential Independent Sector
Cambridgeshire County Council,09-Sep-16,21559580-13935719,-2197.24,Conquest Care Homes Peterborough,Care Establishment,2 - Operations - Learning Disability,LDP Hunts special needs,Residential Independent Sector
Cambridgeshire County Council,09-Sep-16,21559582-13935721,-2197.24,Conquest Care Homes Peterborough,Care Establishment,2 - Operations - Learning Disability,LDP Hunts special needs,Residential Independent Sector
Cambridgeshire County Council,09-Sep-16,21559583-13935722,-2197.24,Conquest Care Homes Peterborough,Care Establishment,2 - Operations - Learning Disability,LDP Hunts special needs,Residential Independent Sector
Cambridgeshire County Council,09-Sep-16,21559584-13935723,-2197.24,Conquest Care Homes Peterborough,Care Establishment,2 - Operations - Learning Disability,LDP Hunts special needs,Residential Independent Sector
Cambridgeshire County Council,09-Sep-16,21559587-13935726,-2197.24,Conquest Care Homes Peterborough,Care Establishment,2 - Operations - Learning Disability,LDP Hunts special needs,Residential Independent Sector
Cambridgeshire County Council,09-Sep-16,21559589-13935728,-2197.24,Conquest Care Homes Peterborough,Care Establishment,2 - Operations - Learning Disability,LDP Hunts special needs,Residential Independent Sector
Cambridgeshire County Council,09-Sep-16,21559592-13935731,-2197.24,Conquest Care Homes Peterborough,Care Establishment,2 - Operations - Learning Disability,LDP Hunts special needs,Residential Independent Sector
Cambridgeshire County Council,09-Sep-16,21559593-13935732,-2197.24,Conquest Care Homes Peterborough,Care Establishment,2 - Operations - Learning Disability,LDP Hunts special needs,Residential Independent Sector
Cambridgeshire County Council,16-Sep-16,21633450-14033767,-1977.52,Royal Mencap Society,Care Establishment,2 - Operations - Learning Disability,LDP City Locality - Care,Supported Living
Cambridgeshire County Council,16-Sep-16,21633454-14033770,-1977.52,Royal Mencap Society,Care Establishment,2 - Operations - Learning Disability,LDP City Locality - Care,Supported Living
Cambridgeshire County Council,16-Sep-16,21633464-14033777,-1977.52,Royal Mencap Society,Care Establishment,2 - Operations - Learning Disability,LDP City Locality - Care,Supported Living
Cambridgeshire County Council,16-Sep-16,21633465-14033778,-1977.52,Royal Mencap Society,Care Establishment,2 - Operations - Learning Disability,LDP City Locality - Care,Supported Living
Cambridgeshire County Council,09-Sep-16,21554989-13936724,-1973.05,Conquest Care Homes Peterborough,Care Establishment,2 - Operations - Learning Disability,LDP Fenland Locality - Care,Residential Independent Sector
Cambridgeshire County Council,09-Sep-16,21554991-13936726,-1973.05,Conquest Care Homes Peterborough,Care Establishment,2 - Operations - Learning Disability,LDP Fenland Locality - Care,Residential Independent Sector
Cambridgeshire County Council,09-Sep-16,21555006-13936733,-1973.05,Conquest Care Homes Peterborough,Care Establishment,2 - Operations - Learning Disability,LDP Fenland Locality - Care,Residential Independent Sector
Cambridgeshire County Council,09-Sep-16,21555008-13936735,-1973.05,Conquest Care Homes Peterborough,Care Establishment,2 - Operations - Learning Disability,LDP Fenland Locality - Care,Residential Independent Sector
Cambridgeshire County Council,09-Sep-16,21555010-13936737,-1973.05,Conquest Care Homes Peterborough,Care Establishment,2 - Operations - Learning Disability,LDP Fenland Locality - Care,Residential Independent Sector
Cambridgeshire County Council,09-Sep-16,21555015-13936741,-1973.05,Conquest Care Homes Peterborough,Care Establishment,2 - Operations - Learning Disability,LDP Fenland Locality - Care,Residential Independent Sector
Cambridgeshire County Council,09-Sep-16,21555016-13936742,-1973.05,Conquest Care Homes Peterborough,Care Establishment,2 - Operations - Learning Disability,LDP Fenland Locality - Care,Residential Independent Sector
Cambridgeshire County Council,09-Sep-16,21555022-13936713,-1973.05,Conquest Care Homes Peterborough,Care Establishment,2 - Operations - Learning Disability,LDP Fenland Locality - Care,Residential Independent Sector
Cambridgeshire County Council,09-Sep-16,21555031-13936718,-1973.05,Conquest Care Homes Peterborough,Care Establishment,2 - Operations - Learning Disability,LDP Fenland Locality - Care,Residential Independent Sector
Cambridgeshire County Council,09-Sep-16,21555033-13936720,-1973.05,Conquest Care Homes Peterborough,Care Establishment,2 - Operations - Learning Disability,LDP Fenland Locality - Care,Residential Independent Sector
Cambridgeshire County Council,09-Sep-16,21559717-13935688,-1973.05,Conquest Care Homes Peterborough,Care Establishment,2 - Operations - Learning Disability,LDP Fenland Locality - Care,Residential Independent Sector
Cambridgeshire County Council,09-Sep-16,21559718-13935689,-1973.05,Conquest Care Homes Peterborough,Care Establishment,2 - Operations - Learning Disability,LDP Fenland Locality - Care,Residential Independent Sector
Cambridgeshire County Council,09-Sep-16,21559722-13935691,-1973.05,Conquest Care Homes Peterborough,Care Establishment,2 - Operations - Learning Disability,LDP Fenland Locality - Care,Residential Independent Sector
Cambridgeshire County Council,09-Sep-16,21559729-13935695,-1973.05,Conquest Care Homes Peterborough,Care Establishment,2 - Operations - Learning Disability,LDP Fenland Locality - Care,Residential Independent Sector
Cambridgeshire County Council,09-Sep-16,21559795-13935604,-1973.05,Conquest Care Homes Peterborough,Care Establishment,2 - Operations - Learning Disability,LDP Fenland Locality - Care,Residential Independent Sector
Cambridgeshire County Council,09-Sep-16,21559796-13935605,-1973.05,Conquest Care Homes Peterborough,Care Establishment,2 - Operations - Learning Disability,LDP Fenland Locality - Care,Residential Independent Sector
Cambridgeshire County Council,09-Sep-16,21559801-13935606,-1973.05,Conquest Care Homes Peterborough,Care Establishment,2 - Operations - Learning Disability,LDP Fenland Locality - Care,Residential Independent Sector
Cambridgeshire County Council,09-Sep-16,21559805-13935610,-1973.05,Conquest Care Homes Peterborough,Care Establishment,2 - Operations - Learning Disability,LDP Fenland Locality - Care,Residential Independent Sector
Cambridgeshire County Council,09-Sep-16,21559806-13935611,-1973.05,Conquest Care Homes Peterborough,Care Establishment,2 - Operations - Learning Disability,LDP Fenland Locality - Care,Residential Independent Sector
Cambridgeshire County Council,09-Sep-16,21559814-13935612,-1973.05,Conquest Care Homes Peterborough,Care Establishment,2 - Operations - Learning Disability,LDP Fenland Locality - Care,Residential Independent Sector
Cambridgeshire County Council,09-Sep-16,21559815-13935613,-1973.05,Conquest Care Homes Peterborough,Care Establishment,2 - Operations - Learning Disability,LDP Fenland Locality - Care,Residential Independent Sector
Cambridgeshire County Council,09-Sep-16,21559818-13935614,-1973.05,Conquest Care Homes Peterborough,Care Establishment,2 - Operations - Learning Disability,LDP Fenland Locality - Care,Residential Independent Sector
Cambridgeshire County Council,09-Sep-16,21559822-13935597,-1973.05,Conquest Care Homes Peterborough,Care Establishment,2 - Operations - Learning Disability,LDP Fenland Locality - Care,Residential Independent Sector
Cambridgeshire County Council,09-Sep-16,21559824-13935599,-1973.05,Conquest Care Homes Peterborough,Care Establishment,2 - Operations - Learning Disability,LDP Fenland Locality - Care,Residential Independent Sector
Cambridgeshire County Council,09-Sep-16,21559827-13935601,-1973.05,Conquest Care Homes Peterborough,Care Establishment,2 - Operations - Learning Disability,LDP Fenland Locality - Care,Residential Independent Sector
Cambridgeshire County Council,09-Sep-16,21559830-13935603,-1973.05,Conquest Care Homes Peterborough,Care Establishment,2 - Operations - Learning Disability,LDP Fenland Locality - Care,Residential Independent Sector
Cambridgeshire County Council,16-Sep-16,21562254-14031347,-1970.43,Social Care Solutions Ltd,Care Establishment,3 - Operations - Countywide Services,Autism and Adult Support Team - Care,Day and Domicillary Care Independent Sector
Cambridgeshire County Council,16-Sep-16,21562257-14031348,-1970.43,Social Care Solutions Ltd,Care Establishment,3 - Operations - Countywide Services,Autism and Adult Support Team - Care,Day and Domicillary Care Independent Sector
Cambridgeshire County Council,16-Sep-16,21562258-14031349,-1970.43,Social Care Solutions Ltd,Care Establishment,3 - Operations - Countywide Services,Autism and Adult Support Team - Care,Day and Domicillary Care Independent Sector
Cambridgeshire County Council,16-Sep-16,21562259-14031350,-1970.43,Social Care Solutions Ltd,Care Establishment,3 - Operations - Countywide Services,Autism and Adult Support Team - Care,Day and Domicillary Care Independent Sector
Cambridgeshire County Council,16-Sep-16,21562261-14031352,-1970.43,Social Care Solutions Ltd,Care Establishment,3 - Operations - Countywide Services,Autism and Adult Support Team - Care,Day and Domicillary Care Independent Sector
Cambridgeshire County Council,16-Sep-16,21562263-14031353,-1970.43,Social Care Solutions Ltd,Care Establishment,3 - Operations - Countywide Services,Autism and Adult Support Team - Care,Day and Domicillary Care Independent Sector
Cambridgeshire County Council,09-Sep-16,21559568-13935707,-1883.35,Conquest Care Homes Peterborough,Care Establishment,2 - Operations - Learning Disability,LDP Hunts special needs,Residential Independent Sector
Cambridgeshire County Council,22-Sep-16,21571019-14053612,-1769.91,Alderton House,Care Establishment,2 - Operations - Learning Disability,LDP E Cambs Locality - Care,Residential Independent Sector
Cambridgeshire County Council,22-Sep-16,21571023-14053616,-1769.91,Alderton House,Care Establishment,2 - Operations - Learning Disability,LDP E Cambs Locality - Care,Residential Independent Sector
Cambridgeshire County Council,22-Sep-16,21571024-14053617,-1769.91,Alderton House,Care Establishment,2 - Operations - Learning Disability,LDP E Cambs Locality - Care,Residential Independent Sector
Cambridgeshire County Council,22-Sep-16,21571027-14053620,-1769.91,Alderton House,Care Establishment,2 - Operations - Learning Disability,LDP E Cambs Locality - Care,Residential Independent Sector
Cambridgeshire County Council,22-Sep-16,21571028-14053621,-1769.91,Alderton House,Care Establishment,2 - Operations - Learning Disability,LDP E Cambs Locality - Care,Residential Independent Sector
Cambridgeshire County Council,22-Sep-16,21571029-14053622,-1769.91,Alderton House,Care Establishment,2 - Operations - Learning Disability,LDP E Cambs Locality - Care,Residential Independent Sector
Cambridgeshire County Council,22-Sep-16,21571030-14053623,-1769.91,Alderton House,Care Establishment,2 - Operations - Learning Disability,LDP E Cambs Locality - Care,Residential Independent Sector
Cambridgeshire County Council,22-Sep-16,21571031-14053624,-1769.91,Alderton House,Care Establishment,2 - Operations - Learning Disability,LDP E Cambs Locality - Care,Residential Independent Sector
Cambridgeshire County Council,09-Sep-16,21562717-13931900,-1715.5,Caretech Community Services,Care Establishment,2 - Operations - Learning Disability,LDP South Cambs Locality - Care,Residential Independent Sector
Cambridgeshire County Council,09-Sep-16,21562719-13931902,-1715.5,Caretech Community Services,Care Establishment,2 - Operations - Learning Disability,LDP South Cambs Locality - Care,Residential Independent Sector
Cambridgeshire County Council,09-Sep-16,21562727-13931910,-1715.5,Caretech Community Services,Care Establishment,2 - Operations - Learning Disability,LDP South Cambs Locality - Care,Residential Independent Sector
Cambridgeshire County Council,09-Sep-16,21562729-13931912,-1715.5,Caretech Community Services,Care Establishment,2 - Operations - Learning Disability,LDP South Cambs Locality - Care,Residential Independent Sector
Cambridgeshire County Council,09-Sep-16,21562730-13931913,-1715.5,Caretech Community Services,Care Establishment,2 - Operations - Learning Disability,LDP South Cambs Locality - Care,Residential Independent Sector
Cambridgeshire County Council,09-Sep-16,21562731-13931914,-1715.5,Caretech Community Services,Care Establishment,2 - Operations - Learning Disability,LDP South Cambs Locality - Care,Residential Independent Sector
Cambridgeshire County Council,09-Sep-16,21562732-13931915,-1715.5,Caretech Community Services,Care Establishment,2 - Operations - Learning Disability,LDP South Cambs Locality - Care,Residential Independent Sector
Cambridgeshire County Council,09-Sep-16,21562734-13931841,-1715.5,Caretech Community Services,Care Establishment,2 - Operations - Learning Disability,LDP South Cambs Locality - Care,Residential Independent Sector
Cambridgeshire County Council,09-Sep-16,21562739-13931846,-1715.5,Caretech Community Services,Care Establishment,2 - Operations - Learning Disability,LDP South Cambs Locality - Care,Residential Independent Sector
Cambridgeshire County Council,09-Sep-16,21562740-13931847,-1715.5,Caretech Community Services,Care Establishment,2 - Operations - Learning Disability,LDP South Cambs Locality - Care,Residential Independent Sector
Cambridgeshire County Council,09-Sep-16,21562741-13931848,-1715.5,Caretech Community Services,Care Establishment,2 - Operations - Learning Disability,LDP South Cambs Locality - Care,Residential Independent Sector
Cambridgeshire County Council,09-Sep-16,21562742-13931849,-1715.5,Caretech Community Services,Care Establishment,2 - Operations - Learning Disability,LDP South Cambs Locality - Care,Residential Independent Sector
Cambridgeshire County Council,09-Sep-16,21562744-13931851,-1715.5,Caretech Community Services,Care Establishment,2 - Operations - Learning Disability,LDP South Cambs Locality - Care,Residential Independent Sector
Cambridgeshire County Council,09-Sep-16,21562746-13931853,-1715.5,Caretech Community Services,Care Establishment,2 - Operations - Learning Disability,LDP South Cambs Locality - Care,Residential Independent Sector
Cambridgeshire County Council,09-Sep-16,21562747-13931854,-1715.5,Caretech Community Services,Care Establishment,2 - Operations - Learning Disability,LDP South Cambs Locality - Care,Residential Independent Sector
Cambridgeshire County Council,09-Sep-16,21562749-13931856,-1715.5,Caretech Community Services,Care Establishment,2 - Operations - Learning Disability,LDP South Cambs Locality - Care,Residential Independent Sector
Cambridgeshire County Council,09-Sep-16,21562951-13931750,-1715.5,Caretech Community Services,Care Establishment,2 - Operations - Learning Disability,LDP South Cambs Locality - Care,Residential Independent Sector
Cambridgeshire County Council,09-Sep-16,21562952-13931751,-1715.5,Caretech Community Services,Care Establishment,2 - Operations - Learning Disability,LDP South Cambs Locality - Care,Residential Independent Sector
Cambridgeshire County Council,09-Sep-16,21562954-13931753,-1715.5,Caretech Community Services,Care Establishment,2 - Operations - Learning Disability,LDP South Cambs Locality - Care,Residential Independent Sector
Cambridgeshire County Council,09-Sep-16,21562955-13931754,-1715.5,Caretech Community Services,Care Establishment,2 - Operations - Learning Disability,LDP South Cambs Locality - Care,Residential Independent Sector
Cambridgeshire County Council,09-Sep-16,21562956-13931755,-1715.5,Caretech Community Services,Care Establishment,2 - Operations - Learning Disability,LDP South Cambs Locality - Care,Residential Independent Sector
Cambridgeshire County Council,09-Sep-16,21562957-13931756,-1715.5,Caretech Community Services,Care Establishment,2 - Operations - Learning Disability,LDP South Cambs Locality - Care,Residential Independent Sector
Cambridgeshire County Council,09-Sep-16,21562958-13931757,-1715.5,Caretech Community Services,Care Establishment,2 - Operations - Learning Disability,LDP South Cambs Locality - Care,Residential Independent Sector
Cambridgeshire County Council,09-Sep-16,21562962-13931761,-1715.5,Caretech Community Services,Care Establishment,2 - Operations - Learning Disability,LDP South Cambs Locality - Care,Residential Independent Sector
Cambridgeshire County Council,09-Sep-16,21562963-13931762,-1715.5,Caretech Community Services,Care Establishment,2 - Operations - Learning Disability,LDP South Cambs Locality - Care,Residential Independent Sector
Cambridgeshire County Council,22-Sep-16,21678357-14048762,-1696.13,Hft Trust Ltd,Care Establishment,2 - Operations - Learning Disability,LDP Fenland Locality - Care,Residential Independent Sector
Cambridgeshire County Council,22-Sep-16,21678359-14048764,-1696.13,Hft Trust Ltd,Care Establishment,2 - Operations - Learning Disability,LDP Fenland Locality - Care,Residential Independent Sector
Cambridgeshire County Council,22-Sep-16,21679934-14048747,-1696.13,Hft Trust Ltd,Care Establishment,2 - Operations - Learning Disability,LDP Fenland Locality - Care,Residential Independent Sector
Cambridgeshire County Council,22-Sep-16,21679937-14048750,-1696.13,Hft Trust Ltd,Care Establishment,2 - Operations - Learning Disability,LDP Fenland Locality - Care,Residential Independent Sector
Cambridgeshire County Council,22-Sep-16,21679940-14048753,-1696.13,Hft Trust Ltd,Care Establishment,2 - Operations - Learning Disability,LDP Fenland Locality - Care,Residential Independent Sector
Cambridgeshire County Council,22-Sep-16,21679941-14048754,-1696.13,Hft Trust Ltd,Care Establishment,2 - Operations - Learning Disability,LDP Fenland Locality - Care,Residential Independent Sector
Cambridgeshire County Council,22-Sep-16,21679944-14048757,-1696.13,Hft Trust Ltd,Care Establishment,2 - Operations - Learning Disability,LDP Fenland Locality - Care,Residential Independent Sector
Cambridgeshire County Council,22-Sep-16,21679946-14048759,-1696.13,Hft Trust Ltd,Care Establishment,2 - Operations - Learning Disability,LDP Fenland Locality - Care,Residential Independent Sector
Cambridgeshire County Council,22-Sep-16,21679947-14048760,-1696.13,Hft Trust Ltd,Care Establishment,2 - Operations - Learning Disability,LDP Fenland Locality - Care,Residential Independent Sector
Cambridgeshire County Council,09-Sep-16,21555014-13936740,-1691.19,Conquest Care Homes Peterborough,Care Establishment,2 - Operations - Learning Disability,LDP Fenland Locality - Care,Residential Independent Sector
Cambridgeshire County Council,09-Sep-16,21568706-13936842,-1684.69,Conquest Care Homes Peterborough,Care Establishment,2 - Operations - Learning Disability,LDP Fens - Special Needs,Residential Independent Sector
Cambridgeshire County Council,09-Sep-16,21568711-13936846,-1684.69,Conquest Care Homes Peterborough,Care Establishment,2 - Operations - Learning Disability,LDP Fens - Special Needs,Residential Independent Sector
Cambridgeshire County Council,09-Sep-16,21568713-13936847,-1684.69,Conquest Care Homes Peterborough,Care Establishment,2 - Operations - Learning Disability,LDP Fens - Special Needs,Residential Independent Sector
Cambridgeshire County Council,09-Sep-16,21568714-13936848,-1684.69,Conquest Care Homes Peterborough,Care Establishment,2 - Operations - Learning Disability,LDP Fens - Special Needs,Residential Independent Sector
Cambridgeshire County Council,09-Sep-16,21568715-13936849,-1684.69,Conquest Care Homes Peterborough,Care Establishment,2 - Operations - Learning Disability,LDP Fens - Special Needs,Residential Independent Sector
Cambridgeshire County Council,09-Sep-16,21568716-13936850,-1684.69,Conquest Care Homes Peterborough,Care Establishment,2 - Operations - Learning Disability,LDP Fens - Special Needs,Residential Independent Sector
Cambridgeshire County Council,09-Sep-16,21568719-13936852,-1684.69,Conquest Care Homes Peterborough,Care Establishment,2 - Operations - Learning Disability,LDP Fens - Special Needs,Residential Independent Sector
Cambridgeshire County Council,09-Sep-16,21568723-13936856,-1684.69,Conquest Care Homes Peterborough,Care Establishment,2 - Operations - Learning Disability,LDP Fens - Special Needs,Residential Independent Sector
Cambridgeshire County Council,09-Sep-16,21568728-13936860,-1684.69,Conquest Care Homes Peterborough,Care Establishment,2 - Operations - Learning Disability,LDP Fens - Special Needs,Residential Independent Sector
Cambridgeshire County Council,09-Sep-16,21568729-13936861,-1684.69,Conquest Care Homes Peterborough,Care Establishment,2 - Operations - Learning Disability,LDP Fens - Special Needs,Residential Independent Sector
Cambridgeshire County Council,09-Sep-16,21568731-13936862,-1684.69,Conquest Care Homes Peterborough,Care Establishment,2 - Operations - Learning Disability,LDP Fens - Special Needs,Residential Independent Sector
Cambridgeshire County Council,09-Sep-16,21568736-13936867,-1684.69,Conquest Care Homes Peterborough,Care Establishment,2 - Operations - Learning Disability,LDP Fens - Special Needs,Residential Independent Sector
Cambridgeshire County Council,09-Sep-16,21568737-13936868,-1684.69,Conquest Care Homes Peterborough,Care Establishment,2 - Operations - Learning Disability,LDP Fens - Special Needs,Residential Independent Sector
Cambridgeshire County Council,09-Sep-16,21568739-13936869,-1684.69,Conquest Care Homes Peterborough,Care Establishment,2 - Operations - Learning Disability,LDP Fens - Special Needs,Residential Independent Sector
Cambridgeshire County Council,09-Sep-16,21568740-13936870,-1684.69,Conquest Care Homes Peterborough,Care Establishment,2 - Operations - Learning Disability,LDP Fens - Special Needs,Residential Independent Sector
Cambridgeshire County Council,09-Sep-16,21568748-13936875,-1684.69,Conquest Care Homes Peterborough,Care Establishment,2 - Operations - Learning Disability,LDP Fens - Special Needs,Residential Independent Sector
Cambridgeshire County Council,09-Sep-16,21568754-13936824,-1684.69,Conquest Care Homes Peterborough,Care Establishment,2 - Operations - Learning Disability,LDP Fens - Special Needs,Residential Independent Sector
Cambridgeshire County Council,09-Sep-16,21568755-13936825,-1684.69,Conquest Care Homes Peterborough,Care Establishment,2 - Operations - Learning Disability,LDP Fens - Special Needs,Residential Independent Sector
Cambridgeshire County Council,09-Sep-16,21568758-13936827,-1684.69,Conquest Care Homes Peterborough,Care Establishment,2 - Operations - Learning Disability,LDP Fens - Special Needs,Residential Independent Sector
Cambridgeshire County Council,09-Sep-16,21568759-13936828,-1684.69,Conquest Care Homes Peterborough,Care Establishment,2 - Operations - Learning Disability,LDP Fens - Special Needs,Residential Independent Sector
Cambridgeshire County Council,09-Sep-16,21568760-13936829,-1684.69,Conquest Care Homes Peterborough,Care Establishment,2 - Operations - Learning Disability,LDP Fens - Special Needs,Residential Independent Sector
Cambridgeshire County Council,09-Sep-16,21568763-13936831,-1684.69,Conquest Care Homes Peterborough,Care Establishment,2 - Operations - Learning Disability,LDP Fens - Special Needs,Residential Independent Sector
Cambridgeshire County Council,09-Sep-16,21568766-13936832,-1684.69,Conquest Care Homes Peterborough,Care Establishment,2 - Operations - Learning Disability,LDP Fens - Special Needs,Residential Independent Sector
Cambridgeshire County Council,09-Sep-16,21568768-13936834,-1684.69,Conquest Care Homes Peterborough,Care Establishment,2 - Operations - Learning Disability,LDP Fens - Special Needs,Residential Independent Sector
Cambridgeshire County Council,09-Sep-16,21568771-13936836,-1684.69,Conquest Care Homes Peterborough,Care Establishment,2 - Operations - Learning Disability,LDP Fens - Special Needs,Residential Independent Sector
Cambridgeshire County Council,09-Sep-16,21568833-13936841,-1684.69,Conquest Care Homes Peterborough,Care Establishment,2 - Operations - Learning Disability,LDP Fens - Special Needs,Residential Independent Sector
Cambridgeshire County Council,09-Sep-16,21557117-13936247,-1667.73,Conquest Care Homes Peterborough,Care Establishment,2 - Operations - Learning Disability,LDP Fens - Special Needs,Residential Independent Sector
Cambridgeshire County Council,09-Sep-16,21557119-13936249,-1667.73,Conquest Care Homes Peterborough,Care Establishment,2 - Operations - Learning Disability,LDP Fens - Special Needs,Residential Independent Sector
Cambridgeshire County Council,09-Sep-16,21557122-13936252,-1667.73,Conquest Care Homes Peterborough,Care Establishment,2 - Operations - Learning Disability,LDP Fens - Special Needs,Residential Independent Sector
Cambridgeshire County Council,09-Sep-16,21557123-13936253,-1667.73,Conquest Care Homes Peterborough,Care Establishment,2 - Operations - Learning Disability,LDP Fens - Special Needs,Residential Independent Sector
Cambridgeshire County Council,09-Sep-16,21557126-13936256,-1667.73,Conquest Care Homes Peterborough,Care Establishment,2 - Operations - Learning Disability,LDP Fens - Special Needs,Residential Independent Sector
Cambridgeshire County Council,09-Sep-16,21557128-13936258,-1667.73,Conquest Care Homes Peterborough,Care Establishment,2 - Operations - Learning Disability,LDP Fens - Special Needs,Residential Independent Sector
Cambridgeshire County Council,09-Sep-16,21557132-13936262,-1667.73,Conquest Care Homes Peterborough,Care Establishment,2 - Operations - Learning Disability,LDP Fens - Special Needs,Residential Independent Sector
Cambridgeshire County Council,09-Sep-16,21557134-13936264,-1667.73,Conquest Care Homes Peterborough,Care Establishment,2 - Operations - Learning Disability,LDP Fens - Special Needs,Residential Independent Sector
Cambridgeshire County Council,09-Sep-16,21557135-13936265,-1667.73,Conquest Care Homes Peterborough,Care Establishment,2 - Operations - Learning Disability,LDP Fens - Special Needs,Residential Independent Sector
Cambridgeshire County Council,09-Sep-16,21557136-13936266,-1667.73,Conquest Care Homes Peterborough,Care Establishment,2 - Operations - Learning Disability,LDP Fens - Special Needs,Residential Independent Sector
Cambridgeshire County Council,09-Sep-16,21557137-13936267,-1667.73,Conquest Care Homes Peterborough,Care Establishment,2 - Operations - Learning Disability,LDP Fens - Special Needs,Residential Independent Sector
Cambridgeshire County Council,09-Sep-16,21557139-13936269,-1667.73,Conquest Care Homes Peterborough,Care Establishment,2 - Operations - Learning Disability,LDP Fens - Special Needs,Residential Independent Sector
Cambridgeshire County Council,09-Sep-16,21557141-13936271,-1667.73,Conquest Care Homes Peterborough,Care Establishment,2 - Operations - Learning Disability,LDP Fens - Special Needs,Residential Independent Sector
Cambridgeshire County Council,09-Sep-16,21562230-13936676,-1667.73,Conquest Care Homes Peterborough,Care Establishment,2 - Operations - Learning Disability,LDP Fens - Special Needs,Residential Independent Sector
Cambridgeshire County Council,09-Sep-16,21562234-13936680,-1667.73,Conquest Care Homes Peterborough,Care Establishment,2 - Operations - Learning Disability,LDP Fens - Special Needs,Residential Independent Sector
Cambridgeshire County Council,09-Sep-16,21562235-13936681,-1667.73,Conquest Care Homes Peterborough,Care Establishment,2 - Operations - Learning Disability,LDP Fens - Special Needs,Residential Independent Sector
Cambridgeshire County Council,09-Sep-16,21562236-13936682,-1667.73,Conquest Care Homes Peterborough,Care Establishment,2 - Operations - Learning Disability,LDP Fens - Special Needs,Residential Independent Sector
Cambridgeshire County Council,09-Sep-16,21562237-13936683,-1667.73,Conquest Care Homes Peterborough,Care Establishment,2 - Operations - Learning Disability,LDP Fens - Special Needs,Residential Independent Sector
Cambridgeshire County Council,09-Sep-16,21562238-13936684,-1667.73,Conquest Care Homes Peterborough,Care Establishment,2 - Operations - Learning Disability,LDP Fens - Special Needs,Residential Independent Sector
Cambridgeshire County Council,09-Sep-16,21562239-13936685,-1667.73,Conquest Care Homes Peterborough,Care Establishment,2 - Operations - Learning Disability,LDP Fens - Special Needs,Residential Independent Sector
Cambridgeshire County Council,09-Sep-16,21562241-13936687,-1667.73,Conquest Care Homes Peterborough,Care Establishment,2 - Operations - Learning Disability,LDP Fens - Special Needs,Residential Independent Sector
Cambridgeshire County Council,09-Sep-16,21562243-13936689,-1667.73,Conquest Care Homes Peterborough,Care Establishment,2 - Operations - Learning Disability,LDP Fens - Special Needs,Residential Independent Sector
Cambridgeshire County Council,09-Sep-16,21562245-13936691,-1667.73,Conquest Care Homes Peterborough,Care Establishment,2 - Operations - Learning Disability,LDP Fens - Special Needs,Residential Independent Sector
Cambridgeshire County Council,09-Sep-16,21562246-13936692,-1667.73,Conquest Care Homes Peterborough,Care Establishment,2 - Operations - Learning Disability,LDP Fens - Special Needs,Residential Independent Sector
Cambridgeshire County Council,09-Sep-16,21562249-13936695,-1667.73,Conquest Care Homes Peterborough,Care Establishment,2 - Operations - Learning Disability,LDP Fens - Special Needs,Residential Independent Sector
Cambridgeshire County Council,09-Sep-16,21562252-13936698,-1667.73,Conquest Care Homes Peterborough,Care Establishment,2 - Operations - Learning Disability,LDP Fens - Special Needs,Residential Independent Sector
Cambridgeshire County Council,26-Sep-16,21230644-14088549,-1574.42,Alphabet (Uk) Fleet Management Limited,Trade Supplier,LGSS,LGSS Property Trading Recharges,Leased Vehicle Costs
Cambridgeshire County Council,01-Sep-16,21523644-13902048,-1548.11,Caretech Community Services,Care Establishment,2 - Operations - Learning Disability,LDP Hunts special needs,Supported Living
Cambridgeshire County Council,01-Sep-16,21523648-13902052,-1548.11,Caretech Community Services,Care Establishment,2 - Operations - Learning Disability,LDP Hunts special needs,Supported Living
Cambridgeshire County Council,01-Sep-16,21523650-13902054,-1548.11,Caretech Community Services,Care Establishment,2 - Operations - Learning Disability,LDP Hunts special needs,Supported Living
Cambridgeshire County Council,01-Sep-16,21523652-13902056,-1548.11,Caretech Community Services,Care Establishment,2 - Operations - Learning Disability,LDP Hunts special needs,Supported Living
Cambridgeshire County Council,01-Sep-16,21523656-13902060,-1548.11,Caretech Community Services,Care Establishment,2 - Operations - Learning Disability,LDP Hunts special needs,Supported Living
Cambridgeshire County Council,01-Sep-16,21523657-13902061,-1548.11,Caretech Community Services,Care Establishment,2 - Operations - Learning Disability,LDP Hunts special needs,Supported Living
Cambridgeshire County Council,01-Sep-16,21523659-13902063,-1548.11,Caretech Community Services,Care Establishment,2 - Operations - Learning Disability,LDP Hunts special needs,Supported Living
Cambridgeshire County Council,01-Sep-16,21523660-13902064,-1548.11,Caretech Community Services,Care Establishment,2 - Operations - Learning Disability,LDP Hunts special needs,Supported Living
Cambridgeshire County Council,01-Sep-16,21523664-13901972,-1548.11,Caretech Community Services,Care Establishment,2 - Operations - Learning Disability,LDP Hunts special needs,Supported Living
Cambridgeshire County Council,01-Sep-16,21523666-13901974,-1548.11,Caretech Community Services,Care Establishment,2 - Operations - Learning Disability,LDP Hunts special needs,Supported Living
Cambridgeshire County Council,01-Sep-16,21523667-13901975,-1548.11,Caretech Community Services,Care Establishment,2 - Operations - Learning Disability,LDP Hunts special needs,Supported Living
Cambridgeshire County Council,01-Sep-16,21523668-13901976,-1548.11,Caretech Community Services,Care Establishment,2 - Operations - Learning Disability,LDP Hunts special needs,Supported Living
Cambridgeshire County Council,01-Sep-16,21523669-13901977,-1548.11,Caretech Community Services,Care Establishment,2 - Operations - Learning Disability,LDP Hunts special needs,Supported Living
Cambridgeshire County Council,01-Sep-16,21523672-13901980,-1548.11,Caretech Community Services,Care Establishment,2 - Operations - Learning Disability,LDP Hunts special needs,Supported Living
Cambridgeshire County Council,01-Sep-16,21523675-13901983,-1548.11,Caretech Community Services,Care Establishment,2 - Operations - Learning Disability,LDP Hunts special needs,Supported Living
Cambridgeshire County Council,01-Sep-16,21523676-13901984,-1548.11,Caretech Community Services,Care Establishment,2 - Operations - Learning Disability,LDP Hunts special needs,Supported Living
Cambridgeshire County Council,01-Sep-16,21523677-13901985,-1548.11,Caretech Community Services,Care Establishment,2 - Operations - Learning Disability,LDP Hunts special needs,Supported Living
Cambridgeshire County Council,01-Sep-16,21523679-13901987,-1548.11,Caretech Community Services,Care Establishment,2 - Operations - Learning Disability,LDP Hunts special needs,Supported Living
Cambridgeshire County Council,01-Sep-16,21523680-13901988,-1548.11,Caretech Community Services,Care Establishment,2 - Operations - Learning Disability,LDP Hunts special needs,Supported Living
Cambridgeshire County Council,09-Sep-16,21566280-13931002,-1546.63,Caretech Community Services,Care Establishment,2 - Operations - Learning Disability,LDP South Cambs Locality - Care,Residential Independent Sector
Cambridgeshire County Council,09-Sep-16,21566281-13931003,-1546.63,Caretech Community Services,Care Establishment,2 - Operations - Learning Disability,LDP South Cambs Locality - Care,Residential Independent Sector
Cambridgeshire County Council,09-Sep-16,21566284-13931006,-1546.63,Caretech Community Services,Care Establishment,2 - Operations - Learning Disability,LDP South Cambs Locality - Care,Residential Independent Sector
Cambridgeshire County Council,09-Sep-16,21566286-13931007,-1546.63,Caretech Community Services,Care Establishment,2 - Operations - Learning Disability,LDP South Cambs Locality - Care,Residential Independent Sector
Cambridgeshire County Council,09-Sep-16,21566287-13931008,-1546.63,Caretech Community Services,Care Establishment,2 - Operations - Learning Disability,LDP South Cambs Locality - Care,Residential Independent Sector
Cambridgeshire County Council,09-Sep-16,21566293-13931011,-1546.63,Caretech Community Services,Care Establishment,2 - Operations - Learning Disability,LDP South Cambs Locality - Care,Residential Independent Sector
Cambridgeshire County Council,09-Sep-16,21566295-13931013,-1546.63,Caretech Community Services,Care Establishment,2 - Operations - Learning Disability,LDP South Cambs Locality - Care,Residential Independent Sector
Cambridgeshire County Council,09-Sep-16,21566302-13930967,-1546.63,Caretech Community Services,Care Establishment,2 - Operations - Learning Disability,LDP South Cambs Locality - Care,Residential Independent Sector
Cambridgeshire County Council,09-Sep-16,21566306-13930969,-1546.63,Caretech Community Services,Care Establishment,2 - Operations - Learning Disability,LDP South Cambs Locality - Care,Residential Independent Sector
Cambridgeshire County Council,09-Sep-16,21566308-13930971,-1546.63,Caretech Community Services,Care Establishment,2 - Operations - Learning Disability,LDP South Cambs Locality - Care,Residential Independent Sector
Cambridgeshire County Council,09-Sep-16,21566309-13930972,-1546.63,Caretech Community Services,Care Establishment,2 - Operations - Learning Disability,LDP South Cambs Locality - Care,Residential Independent Sector
Cambridgeshire County Council,09-Sep-16,21566317-13930993,-1546.63,Caretech Community Services,Care Establishment,2 - Operations - Learning Disability,LDP South Cambs Locality - Care,Residential Independent Sector
Cambridgeshire County Council,09-Sep-16,21566319-13930995,-1546.63,Caretech Community Services,Care Establishment,2 - Operations - Learning Disability,LDP South Cambs Locality - Care,Residential Independent Sector
Cambridgeshire County Council,09-Sep-16,21566324-13930997,-1546.63,Caretech Community Services,Care Establishment,2 - Operations - Learning Disability,LDP South Cambs Locality - Care,Residential Independent Sector
Cambridgeshire County Council,09-Sep-16,21566326-13930998,-1546.63,Caretech Community Services,Care Establishment,2 - Operations - Learning Disability,LDP South Cambs Locality - Care,Residential Independent Sector
Cambridgeshire County Council,09-Sep-16,21566332-13931000,-1546.63,Caretech Community Services,Care Establishment,2 - Operations - Learning Disability,LDP South Cambs Locality - Care,Residential Independent Sector
Cambridgeshire County Council,09-Sep-16,21566350-13930981,-1546.63,Caretech Community Services,Care Establishment,2 - Operations - Learning Disability,LDP South Cambs Locality - Care,Residential Independent Sector
Cambridgeshire County Council,09-Sep-16,21566357-13930985,-1546.63,Caretech Community Services,Care Establishment,2 - Operations - Learning Disability,LDP South Cambs Locality - Care,Residential Independent Sector
Cambridgeshire County Council,09-Sep-16,21566362-13930987,-1546.63,Caretech Community Services,Care Establishment,2 - Operations - Learning Disability,LDP South Cambs Locality - Care,Residential Independent Sector
Cambridgeshire County Council,09-Sep-16,21566365-13930990,-1546.63,Caretech Community Services,Care Establishment,2 - Operations - Learning Disability,LDP South Cambs Locality - Care,Residential Independent Sector
Cambridgeshire County Council,09-Sep-16,21566374-13930958,-1546.63,Caretech Community Services,Care Establishment,2 - Operations - Learning Disability,LDP South Cambs Locality - Care,Residential Independent Sector
Cambridgeshire County Council,09-Sep-16,21566375-13930959,-1546.63,Caretech Community Services,Care Establishment,2 - Operations - Learning Disability,LDP South Cambs Locality - Care,Residential Independent Sector
Cambridgeshire County Council,09-Sep-16,21566381-13930962,-1546.63,Caretech Community Services,Care Establishment,2 - Operations - Learning Disability,LDP South Cambs Locality - Care,Residential Independent Sector
Cambridgeshire County Council,09-Sep-16,21566383-13930964,-1546.63,Caretech Community Services,Care Establishment,2 - Operations - Learning Disability,LDP South Cambs Locality - Care,Residential Independent Sector
Cambridgeshire County Council,09-Sep-16,21566384-13930965,-1546.63,Caretech Community Services,Care Establishment,2 - Operations - Learning Disability,LDP South Cambs Locality - Care,Residential Independent Sector
Cambridgeshire County Council,09-Sep-16,21555959-13931698,-1542.26,Caretech Community Services,Care Establishment,2 - Operations - Learning Disability,LDP South Cambs Locality - Care,Residential Independent Sector
Cambridgeshire County Council,09-Sep-16,21555963-13931702,-1542.26,Caretech Community Services,Care Establishment,2 - Operations - Learning Disability,LDP South Cambs Locality - Care,Residential Independent Sector
Cambridgeshire County Council,09-Sep-16,21555966-13931705,-1542.26,Caretech Community Services,Care Establishment,2 - Operations - Learning Disability,LDP South Cambs Locality - Care,Residential Independent Sector
Cambridgeshire County Council,09-Sep-16,21555968-13931707,-1542.26,Caretech Community Services,Care Establishment,2 - Operations - Learning Disability,LDP South Cambs Locality - Care,Residential Independent Sector
Cambridgeshire County Council,09-Sep-16,21555971-13931710,-1542.26,Caretech Community Services,Care Establishment,2 - Operations - Learning Disability,LDP South Cambs Locality - Care,Residential Independent Sector
Cambridgeshire County Council,09-Sep-16,21555973-13931712,-1542.26,Caretech Community Services,Care Establishment,2 - Operations - Learning Disability,LDP South Cambs Locality - Care,Residential Independent Sector
Cambridgeshire County Council,09-Sep-16,21555976-13931715,-1542.26,Caretech Community Services,Care Establishment,2 - Operations - Learning Disability,LDP South Cambs Locality - Care,Residential Independent Sector
Cambridgeshire County Council,09-Sep-16,21555977-13931716,-1542.26,Caretech Community Services,Care Establishment,2 - Operations - Learning Disability,LDP South Cambs Locality - Care,Residential Independent Sector
Cambridgeshire County Council,09-Sep-16,21555979-13931718,-1542.26,Caretech Community Services,Care Establishment,2 - Operations - Learning Disability,LDP South Cambs Locality - Care,Residential Independent Sector
Cambridgeshire County Council,09-Sep-16,21555981-13931720,-1542.26,Caretech Community Services,Care Establishment,2 - Operations - Learning Disability,LDP South Cambs Locality - Care,Residential Independent Sector
Cambridgeshire County Council,09-Sep-16,21555982-13931721,-1542.26,Caretech Community Services,Care Establishment,2 - Operations - Learning Disability,LDP South Cambs Locality - Care,Residential Independent Sector
Cambridgeshire County Council,09-Sep-16,21555984-13931723,-1542.26,Caretech Community Services,Care Establishment,2 - Operations - Learning Disability,LDP South Cambs Locality - Care,Residential Independent Sector
Cambridgeshire County Council,09-Sep-16,21555986-13931725,-1542.26,Caretech Community Services,Care Establishment,2 - Operations - Learning Disability,LDP South Cambs Locality - Care,Residential Independent Sector
Cambridgeshire County Council,09-Sep-16,21555987-13931726,-1542.26,Caretech Community Services,Care Establishment,2 - Operations - Learning Disability,LDP South Cambs Locality - Care,Residential Independent Sector
Cambridgeshire County Council,09-Sep-16,21555989-13931728,-1542.26,Caretech Community Services,Care Establishment,2 - Operations - Learning Disability,LDP South Cambs Locality - Care,Residential Independent Sector
Cambridgeshire County Council,09-Sep-16,21555990-13931729,-1542.26,Caretech Community Services,Care Establishment,2 - Operations - Learning Disability,LDP South Cambs Locality - Care,Residential Independent Sector
Cambridgeshire County Council,09-Sep-16,21555992-13931675,-1542.26,Caretech Community Services,Care Establishment,2 - Operations - Learning Disability,LDP South Cambs Locality - Care,Residential Independent Sector
Cambridgeshire County Council,09-Sep-16,21555995-13931678,-1542.26,Caretech Community Services,Care Establishment,2 - Operations - Learning Disability,LDP South Cambs Locality - Care,Residential Independent Sector
Cambridgeshire County Council,09-Sep-16,21555998-13931681,-1542.26,Caretech Community Services,Care Establishment,2 - Operations - Learning Disability,LDP South Cambs Locality - Care,Residential Independent Sector
Cambridgeshire County Council,09-Sep-16,21556002-13931685,-1542.26,Caretech Community Services,Care Establishment,2 - Operations - Learning Disability,LDP South Cambs Locality - Care,Residential Independent Sector
Cambridgeshire County Council,09-Sep-16,21556005-13931688,-1542.26,Caretech Community Services,Care Establishment,2 - Operations - Learning Disability,LDP South Cambs Locality - Care,Residential Independent Sector
Cambridgeshire County Council,09-Sep-16,21556007-13931690,-1542.26,Caretech Community Services,Care Establishment,2 - Operations - Learning Disability,LDP South Cambs Locality - Care,Residential Independent Sector
Cambridgeshire County Council,09-Sep-16,21556008-13931691,-1542.26,Caretech Community Services,Care Establishment,2 - Operations - Learning Disability,LDP South Cambs Locality - Care,Residential Independent Sector
Cambridgeshire County Council,09-Sep-16,21556010-13931693,-1542.26,Caretech Community Services,Care Establishment,2 - Operations - Learning Disability,LDP South Cambs Locality - Care,Residential Independent Sector
Cambridgeshire County Council,09-Sep-16,21556011-13931694,-1542.26,Caretech Community Services,Care Establishment,2 - Operations - Learning Disability,LDP South Cambs Locality - Care,Residential Independent Sector
Cambridgeshire County Council,09-Sep-16,21562579-13931971,-1542.22,Caretech Community Services,Care Establishment,2 - Operations - Learning Disability,LDP South Cambs Locality - Care,Residential Independent Sector
Cambridgeshire County Council,09-Sep-16,21562586-13931978,-1542.22,Caretech Community Services,Care Establishment,2 - Operations - Learning Disability,LDP South Cambs Locality - Care,Residential Independent Sector
Cambridgeshire County Council,09-Sep-16,21562597-13931889,-1542.22,Caretech Community Services,Care Establishment,2 - Operations - Learning Disability,LDP South Cambs Locality - Care,Residential Independent Sector
Cambridgeshire County Council,09-Sep-16,21562598-13931890,-1542.22,Caretech Community Services,Care Establishment,2 - Operations - Learning Disability,LDP South Cambs Locality - Care,Residential Independent Sector
Cambridgeshire County Council,09-Sep-16,21562600-13931892,-1542.22,Caretech Community Services,Care Establishment,2 - Operations - Learning Disability,LDP South Cambs Locality - Care,Residential Independent Sector
Cambridgeshire County Council,09-Sep-16,21562602-13931894,-1542.22,Caretech Community Services,Care Establishment,2 - Operations - Learning Disability,LDP South Cambs Locality - Care,Residential Independent Sector
Cambridgeshire County Council,09-Sep-16,21562604-13931896,-1542.22,Caretech Community Services,Care Establishment,2 - Operations - Learning Disability,LDP South Cambs Locality - Care,Residential Independent Sector
Cambridgeshire County Council,09-Sep-16,21562605-13931897,-1542.22,Caretech Community Services,Care Establishment,2 - Operations - Learning Disability,LDP South Cambs Locality - Care,Residential Independent Sector
Cambridgeshire County Council,09-Sep-16,21562608-13931918,-1542.22,Caretech Community Services,Care Establishment,2 - Operations - Learning Disability,LDP South Cambs Locality - Care,Residential Independent Sector
Cambridgeshire County Council,09-Sep-16,21562609-13931919,-1542.22,Caretech Community Services,Care Establishment,2 - Operations - Learning Disability,LDP South Cambs Locality - Care,Residential Independent Sector
Cambridgeshire County Council,09-Sep-16,21562613-13931923,-1542.22,Caretech Community Services,Care Establishment,2 - Operations - Learning Disability,LDP South Cambs Locality - Care,Residential Independent Sector
Cambridgeshire County Council,09-Sep-16,21562870-13931834,-1542.22,Caretech Community Services,Care Establishment,2 - Operations - Learning Disability,LDP South Cambs Locality - Care,Residential Independent Sector
Cambridgeshire County Council,09-Sep-16,21562873-13931837,-1542.22,Caretech Community Services,Care Establishment,2 - Operations - Learning Disability,LDP South Cambs Locality - Care,Residential Independent Sector
Cambridgeshire County Council,09-Sep-16,21562874-13931838,-1542.22,Caretech Community Services,Care Establishment,2 - Operations - Learning Disability,LDP South Cambs Locality - Care,Residential Independent Sector
Cambridgeshire County Council,09-Sep-16,21562880-13931734,-1542.22,Caretech Community Services,Care Establishment,2 - Operations - Learning Disability,LDP South Cambs Locality - Care,Residential Independent Sector
Cambridgeshire County Council,09-Sep-16,21562884-13931738,-1542.22,Caretech Community Services,Care Establishment,2 - Operations - Learning Disability,LDP South Cambs Locality - Care,Residential Independent Sector
Cambridgeshire County Council,09-Sep-16,21562886-13931740,-1542.22,Caretech Community Services,Care Establishment,2 - Operations - Learning Disability,LDP South Cambs Locality - Care,Residential Independent Sector
Cambridgeshire County Council,09-Sep-16,21562901-13931770,-1542.22,Caretech Community Services,Care Establishment,2 - Operations - Learning Disability,LDP South Cambs Locality - Care,Residential Independent Sector
Cambridgeshire County Council,09-Sep-16,21562904-13931773,-1542.22,Caretech Community Services,Care Establishment,2 - Operations - Learning Disability,LDP South Cambs Locality - Care,Residential Independent Sector
Cambridgeshire County Council,09-Sep-16,21562905-13931774,-1542.22,Caretech Community Services,Care Establishment,2 - Operations - Learning Disability,LDP South Cambs Locality - Care,Residential Independent Sector
Cambridgeshire County Council,09-Sep-16,21562907-13931776,-1542.22,Caretech Community Services,Care Establishment,2 - Operations - Learning Disability,LDP South Cambs Locality - Care,Residential Independent Sector
Cambridgeshire County Council,09-Sep-16,21562909-13931778,-1542.22,Caretech Community Services,Care Establishment,2 - Operations - Learning Disability,LDP South Cambs Locality - Care,Residential Independent Sector
Cambridgeshire County Council,09-Sep-16,21562911-13931780,-1542.22,Caretech Community Services,Care Establishment,2 - Operations - Learning Disability,LDP South Cambs Locality - Care,Residential Independent Sector
Cambridgeshire County Council,09-Sep-16,21562913-13931782,-1542.22,Caretech Community Services,Care Establishment,2 - Operations - Learning Disability,LDP South Cambs Locality - Care,Residential Independent Sector
Cambridgeshire County Council,09-Sep-16,21562923-13931792,-1542.22,Caretech Community Services,Care Establishment,2 - Operations - Learning Disability,LDP South Cambs Locality - Care,Residential Independent Sector
Cambridgeshire County Council,09-Sep-16,21555760-13931866,-1520.21,Caretech Community Services,Care Establishment,2 - Operations - Learning Disability,LDP Huntingdonshire Locality - Care,Supported Living
Cambridgeshire County Council,09-Sep-16,21555761-13931867,-1520.21,Caretech Community Services,Care Establishment,2 - Operations - Learning Disability,LDP Huntingdonshire Locality - Care,Supported Living
Cambridgeshire County Council,09-Sep-16,21555764-13931870,-1520.21,Caretech Community Services,Care Establishment,2 - Operations - Learning Disability,LDP Huntingdonshire Locality - Care,Supported Living
Cambridgeshire County Council,09-Sep-16,21555768-13931874,-1520.21,Caretech Community Services,Care Establishment,2 - Operations - Learning Disability,LDP Huntingdonshire Locality - Care,Supported Living
Cambridgeshire County Council,09-Sep-16,21555769-13931875,-1520.21,Caretech Community Services,Care Establishment,2 - Operations - Learning Disability,LDP Huntingdonshire Locality - Care,Supported Living
Cambridgeshire County Council,09-Sep-16,21555770-13931876,-1520.21,Caretech Community Services,Care Establishment,2 - Operations - Learning Disability,LDP Huntingdonshire Locality - Care,Supported Living
Cambridgeshire County Council,09-Sep-16,21555772-13931878,-1520.21,Caretech Community Services,Care Establishment,2 - Operations - Learning Disability,LDP Huntingdonshire Locality - Care,Supported Living
Cambridgeshire County Council,09-Sep-16,21555773-13931879,-1520.21,Caretech Community Services,Care Establishment,2 - Operations - Learning Disability,LDP Huntingdonshire Locality - Care,Supported Living
Cambridgeshire County Council,09-Sep-16,21555932-13931672,-1520.21,Caretech Community Services,Care Establishment,2 - Operations - Learning Disability,LDP Huntingdonshire Locality - Care,Supported Living
Cambridgeshire County Council,09-Sep-16,21555933-13931673,-1520.21,Caretech Community Services,Care Establishment,2 - Operations - Learning Disability,LDP Huntingdonshire Locality - Care,Supported Living
Cambridgeshire County Council,09-Sep-16,21560894-13932501,-1520.21,Caretech Community Services,Care Establishment,2 - Operations - Learning Disability,LDP Huntingdonshire Locality - Care,Supported Living
Cambridgeshire County Council,09-Sep-16,21560895-13932502,-1520.21,Caretech Community Services,Care Establishment,2 - Operations - Learning Disability,LDP Huntingdonshire Locality - Care,Supported Living
Cambridgeshire County Council,09-Sep-16,21560898-13932506,-1520.21,Caretech Community Services,Care Establishment,2 - Operations - Learning Disability,LDP Huntingdonshire Locality - Care,Supported Living
Cambridgeshire County Council,09-Sep-16,21560902-13932510,-1520.21,Caretech Community Services,Care Establishment,2 - Operations - Learning Disability,LDP Huntingdonshire Locality - Care,Supported Living
Cambridgeshire County Council,09-Sep-16,21560904-13932512,-1520.21,Caretech Community Services,Care Establishment,2 - Operations - Learning Disability,LDP Huntingdonshire Locality - Care,Supported Living
Cambridgeshire County Council,09-Sep-16,21560906-13932514,-1520.21,Caretech Community Services,Care Establishment,2 - Operations - Learning Disability,LDP Huntingdonshire Locality - Care,Supported Living
Cambridgeshire County Council,09-Sep-16,21560907-13932515,-1520.21,Caretech Community Services,Care Establishment,2 - Operations - Learning Disability,LDP Huntingdonshire Locality - Care,Supported Living
Cambridgeshire County Council,09-Sep-16,21560912-13932520,-1520.21,Caretech Community Services,Care Establishment,2 - Operations - Learning Disability,LDP Huntingdonshire Locality - Care,Supported Living
Cambridgeshire County Council,09-Sep-16,21560913-13932503,-1520.21,Caretech Community Services,Care Establishment,2 - Operations - Learning Disability,LDP Huntingdonshire Locality - Care,Supported Living
Cambridgeshire County Council,09-Sep-16,21569332-13932067,-1475.47,Caretech Community Services,Care Establishment,2 - Operations - Learning Disability,LDP Cambs City - Special Needs,Residential Independent Sector
Cambridgeshire County Council,09-Sep-16,21569336-13932071,-1475.47,Caretech Community Services,Care Establishment,2 - Operations - Learning Disability,LDP Cambs City - Special Needs,Residential Independent Sector
Cambridgeshire County Council,09-Sep-16,21569337-13932072,-1475.47,Caretech Community Services,Care Establishment,2 - Operations - Learning Disability,LDP Cambs City - Special Needs,Residential Independent Sector
Cambridgeshire County Council,09-Sep-16,21569339-13932074,-1475.47,Caretech Community Services,Care Establishment,2 - Operations - Learning Disability,LDP Cambs City - Special Needs,Residential Independent Sector
Cambridgeshire County Council,09-Sep-16,21569345-13932080,-1475.47,Caretech Community Services,Care Establishment,2 - Operations - Learning Disability,LDP Cambs City - Special Needs,Residential Independent Sector
Cambridgeshire County Council,09-Sep-16,21569348-13932083,-1475.47,Caretech Community Services,Care Establishment,2 - Operations - Learning Disability,LDP Cambs City - Special Needs,Residential Independent Sector
Cambridgeshire County Council,09-Sep-16,21569350-13932085,-1475.47,Caretech Community Services,Care Establishment,2 - Operations - Learning Disability,LDP Cambs City - Special Needs,Residential Independent Sector
Cambridgeshire County Council,09-Sep-16,21569351-13932086,-1475.47,Caretech Community Services,Care Establishment,2 - Operations - Learning Disability,LDP Cambs City - Special Needs,Residential Independent Sector
Cambridgeshire County Council,09-Sep-16,21569358-13932093,-1475.47,Caretech Community Services,Care Establishment,2 - Operations - Learning Disability,LDP Cambs City - Special Needs,Residential Independent Sector
Cambridgeshire County Council,09-Sep-16,21569359-13932094,-1475.47,Caretech Community Services,Care Establishment,2 - Operations - Learning Disability,LDP Cambs City - Special Needs,Residential Independent Sector
Cambridgeshire County Council,09-Sep-16,21569364-13931983,-1475.47,Caretech Community Services,Care Establishment,2 - Operations - Learning Disability,LDP Cambs City - Special Needs,Residential Independent Sector
Cambridgeshire County Council,09-Sep-16,21569368-13931987,-1475.47,Caretech Community Services,Care Establishment,2 - Operations - Learning Disability,LDP Cambs City - Special Needs,Residential Independent Sector
Cambridgeshire County Council,09-Sep-16,21569371-13931990,-1475.47,Caretech Community Services,Care Establishment,2 - Operations - Learning Disability,LDP Cambs City - Special Needs,Residential Independent Sector
Cambridgeshire County Council,09-Sep-16,21569373-13931992,-1475.47,Caretech Community Services,Care Establishment,2 - Operations - Learning Disability,LDP Cambs City - Special Needs,Residential Independent Sector
Cambridgeshire County Council,09-Sep-16,21569377-13931996,-1475.47,Caretech Community Services,Care Establishment,2 - Operations - Learning Disability,LDP Cambs City - Special Needs,Residential Independent Sector
Cambridgeshire County Council,09-Sep-16,21569388-13932007,-1475.47,Caretech Community Services,Care Establishment,2 - Operations - Learning Disability,LDP Cambs City - Special Needs,Residential Independent Sector
Cambridgeshire County Council,09-Sep-16,21569394-13932013,-1475.47,Caretech Community Services,Care Establishment,2 - Operations - Learning Disability,LDP Cambs City - Special Needs,Residential Independent Sector
Cambridgeshire County Council,09-Sep-16,21569398-13932017,-1475.47,Caretech Community Services,Care Establishment,2 - Operations - Learning Disability,LDP Cambs City - Special Needs,Residential Independent Sector
Cambridgeshire County Council,09-Sep-16,21569404-13932023,-1475.47,Caretech Community Services,Care Establishment,2 - Operations - Learning Disability,LDP Cambs City - Special Needs,Residential Independent Sector
Cambridgeshire County Council,09-Sep-16,21569409-13932028,-1475.47,Caretech Community Services,Care Establishment,2 - Operations - Learning Disability,LDP Cambs City - Special Needs,Residential Independent Sector
Cambridgeshire County Council,09-Sep-16,21569414-13932033,-1475.47,Caretech Community Services,Care Establishment,2 - Operations - Learning Disability,LDP Cambs City - Special Needs,Residential Independent Sector
Cambridgeshire County Council,09-Sep-16,21569418-13932037,-1475.47,Caretech Community Services,Care Establishment,2 - Operations - Learning Disability,LDP Cambs City - Special Needs,Residential Independent Sector
Cambridgeshire County Council,09-Sep-16,21569425-13932044,-1475.47,Caretech Community Services,Care Establishment,2 - Operations - Learning Disability,LDP Cambs City - Special Needs,Residential Independent Sector
Cambridgeshire County Council,09-Sep-16,21569428-13932047,-1475.47,Caretech Community Services,Care Establishment,2 - Operations - Learning Disability,LDP Cambs City - Special Needs,Residential Independent Sector
Cambridgeshire County Council,09-Sep-16,21569437-13932056,-1475.47,Caretech Community Services,Care Establishment,2 - Operations - Learning Disability,LDP Cambs City - Special Needs,Residential Independent Sector
Cambridgeshire County Council,09-Sep-16,21562737-13931844,-1470.43,Caretech Community Services,Care Establishment,2 - Operations - Learning Disability,LDP South Cambs Locality - Care,Residential Independent Sector
Cambridgeshire County Council,09-Sep-16,21563279-13929197,-1470,Redacted Personal Data,Individual,2 - Operations - Learning Disability,LDP South Cambs Locality - Care,Direct Payments - Social Services
Cambridgeshire County Council,09-Sep-16,21556829-13936278,-1464.86,Conquest Care Homes Peterborough,Care Establishment,2 - Operations - Learning Disability,LDP South Cambs Locality - Care,Day and Domicillary Care Independent Sector
Cambridgeshire County Council,09-Sep-16,21556834-13936283,-1464.86,Conquest Care Homes Peterborough,Care Establishment,2 - Operations - Learning Disability,LDP South Cambs Locality - Care,Day and Domicillary Care Independent Sector
Cambridgeshire County Council,09-Sep-16,21556841-13936289,-1464.86,Conquest Care Homes Peterborough,Care Establishment,2 - Operations - Learning Disability,LDP South Cambs Locality - Care,Day and Domicillary Care Independent Sector
Cambridgeshire County Council,09-Sep-16,21560794-13937036,-1464.86,Conquest Care Homes Peterborough,Care Establishment,2 - Operations - Learning Disability,LDP South Cambs Locality - Care,Day and Domicillary Care Independent Sector
Cambridgeshire County Council,09-Sep-16,21560799-13937041,-1464.86,Conquest Care Homes Peterborough,Care Establishment,2 - Operations - Learning Disability,LDP South Cambs Locality - Care,Day and Domicillary Care Independent Sector
Cambridgeshire County Council,09-Sep-16,21560801-13937043,-1464.86,Conquest Care Homes Peterborough,Care Establishment,2 - Operations - Learning Disability,LDP South Cambs Locality - Care,Day and Domicillary Care Independent Sector
Cambridgeshire County Council,09-Sep-16,21560806-13937048,-1464.86,Conquest Care Homes Peterborough,Care Establishment,2 - Operations - Learning Disability,LDP South Cambs Locality - Care,Day and Domicillary Care Independent Sector
Cambridgeshire County Council,09-Sep-16,21561881-13936782,-1464.86,Conquest Care Homes Peterborough,Care Establishment,2 - Operations - Learning Disability,LDP South Cambs Locality - Care,Day and Domicillary Care Independent Sector
Cambridgeshire County Council,09-Sep-16,21561885-13936786,-1464.86,Conquest Care Homes Peterborough,Care Establishment,2 - Operations - Learning Disability,LDP South Cambs Locality - Care,Day and Domicillary Care Independent Sector
Cambridgeshire County Council,09-Sep-16,21561906-13936745,-1464.86,Conquest Care Homes Peterborough,Care Establishment,2 - Operations - Learning Disability,LDP South Cambs Locality - Care,Day and Domicillary Care Independent Sector
Cambridgeshire County Council,09-Sep-16,21561908-13936747,-1464.86,Conquest Care Homes Peterborough,Care Establishment,2 - Operations - Learning Disability,LDP South Cambs Locality - Care,Day and Domicillary Care Independent Sector
Cambridgeshire County Council,09-Sep-16,21561916-13936754,-1464.86,Conquest Care Homes Peterborough,Care Establishment,2 - Operations - Learning Disability,LDP South Cambs Locality - Care,Day and Domicillary Care Independent Sector
Cambridgeshire County Council,09-Sep-16,21561922-13936759,-1464.86,Conquest Care Homes Peterborough,Care Establishment,2 - Operations - Learning Disability,LDP South Cambs Locality - Care,Day and Domicillary Care Independent Sector
Cambridgeshire County Council,09-Sep-16,21561925-13936762,-1464.86,Conquest Care Homes Peterborough,Care Establishment,2 - Operations - Learning Disability,LDP South Cambs Locality - Care,Day and Domicillary Care Independent Sector
Cambridgeshire County Council,09-Sep-16,21561929-13936766,-1464.86,Conquest Care Homes Peterborough,Care Establishment,2 - Operations - Learning Disability,LDP South Cambs Locality - Care,Day and Domicillary Care Independent Sector
Cambridgeshire County Council,09-Sep-16,21561933-13936770,-1464.86,Conquest Care Homes Peterborough,Care Establishment,2 - Operations - Learning Disability,LDP South Cambs Locality - Care,Day and Domicillary Care Independent Sector
Cambridgeshire County Council,09-Sep-16,21561935-13936772,-1464.86,Conquest Care Homes Peterborough,Care Establishment,2 - Operations - Learning Disability,LDP South Cambs Locality - Care,Day and Domicillary Care Independent Sector
Cambridgeshire County Council,09-Sep-16,21561939-13936776,-1464.86,Conquest Care Homes Peterborough,Care Establishment,2 - Operations - Learning Disability,LDP South Cambs Locality - Care,Day and Domicillary Care Independent Sector
Cambridgeshire County Council,09-Sep-16,21561942-13936779,-1464.86,Conquest Care Homes Peterborough,Care Establishment,2 - Operations - Learning Disability,LDP South Cambs Locality - Care,Day and Domicillary Care Independent Sector
Cambridgeshire County Council,09-Sep-16,21561943-13936780,-1464.86,Conquest Care Homes Peterborough,Care Establishment,2 - Operations - Learning Disability,LDP South Cambs Locality - Care,Day and Domicillary Care Independent Sector
Cambridgeshire County Council,22-Sep-16,21674728-14057394,-1460,Redacted Personal Data,Individual,2 - Operations - Learning Disability,LDP City Locality - Care,SDS - Personal Budgets Contributions
Cambridgeshire County Council,09-Sep-16,21560206-13930912,-1447.48,Caretech Community Services,Care Establishment,2 - Operations - Learning Disability,LDP South Cambs Locality - Care,Residential Independent Sector
Cambridgeshire County Council,09-Sep-16,21560207-13930913,-1447.48,Caretech Community Services,Care Establishment,2 - Operations - Learning Disability,LDP South Cambs Locality - Care,Residential Independent Sector
Cambridgeshire County Council,09-Sep-16,21560208-13930914,-1447.48,Caretech Community Services,Care Establishment,2 - Operations - Learning Disability,LDP South Cambs Locality - Care,Residential Independent Sector
Cambridgeshire County Council,09-Sep-16,21560209-13930915,-1447.48,Caretech Community Services,Care Establishment,2 - Operations - Learning Disability,LDP South Cambs Locality - Care,Residential Independent Sector
Cambridgeshire County Council,09-Sep-16,21560210-13930916,-1447.48,Caretech Community Services,Care Establishment,2 - Operations - Learning Disability,LDP South Cambs Locality - Care,Residential Independent Sector
Cambridgeshire County Council,09-Sep-16,21560212-13930918,-1447.48,Caretech Community Services,Care Establishment,2 - Operations - Learning Disability,LDP South Cambs Locality - Care,Residential Independent Sector
Cambridgeshire County Council,09-Sep-16,21560215-13930921,-1447.48,Caretech Community Services,Care Establishment,2 - Operations - Learning Disability,LDP South Cambs Locality - Care,Residential Independent Sector
Cambridgeshire County Council,09-Sep-16,21560218-13930924,-1447.48,Caretech Community Services,Care Establishment,2 - Operations - Learning Disability,LDP South Cambs Locality - Care,Residential Independent Sector
Cambridgeshire County Council,09-Sep-16,21560220-13930926,-1447.48,Caretech Community Services,Care Establishment,2 - Operations - Learning Disability,LDP South Cambs Locality - Care,Residential Independent Sector
Cambridgeshire County Council,09-Sep-16,21560222-13930928,-1447.48,Caretech Community Services,Care Establishment,2 - Operations - Learning Disability,LDP South Cambs Locality - Care,Residential Independent Sector
Cambridgeshire County Council,09-Sep-16,21560224-13930930,-1447.48,Caretech Community Services,Care Establishment,2 - Operations - Learning Disability,LDP South Cambs Locality - Care,Residential Independent Sector
Cambridgeshire County Council,09-Sep-16,21560226-13930932,-1447.48,Caretech Community Services,Care Establishment,2 - Operations - Learning Disability,LDP South Cambs Locality - Care,Residential Independent Sector
Cambridgeshire County Council,09-Sep-16,21560229-13930935,-1447.48,Caretech Community Services,Care Establishment,2 - Operations - Learning Disability,LDP South Cambs Locality - Care,Residential Independent Sector
Cambridgeshire County Council,09-Sep-16,21560230-13930936,-1447.48,Caretech Community Services,Care Establishment,2 - Operations - Learning Disability,LDP South Cambs Locality - Care,Residential Independent Sector
Cambridgeshire County Council,09-Sep-16,21560231-13930937,-1447.48,Caretech Community Services,Care Establishment,2 - Operations - Learning Disability,LDP South Cambs Locality - Care,Residential Independent Sector
Cambridgeshire County Council,09-Sep-16,21560234-13930884,-1447.48,Caretech Community Services,Care Establishment,2 - Operations - Learning Disability,LDP South Cambs Locality - Care,Residential Independent Sector
Cambridgeshire County Council,09-Sep-16,21560238-13930888,-1447.48,Caretech Community Services,Care Establishment,2 - Operations - Learning Disability,LDP South Cambs Locality - Care,Residential Independent Sector
Cambridgeshire County Council,09-Sep-16,21560239-13930889,-1447.48,Caretech Community Services,Care Establishment,2 - Operations - Learning Disability,LDP South Cambs Locality - Care,Residential Independent Sector
Cambridgeshire County Council,09-Sep-16,21560243-13930893,-1447.48,Caretech Community Services,Care Establishment,2 - Operations - Learning Disability,LDP South Cambs Locality - Care,Residential Independent Sector
Cambridgeshire County Council,09-Sep-16,21560244-13930894,-1447.48,Caretech Community Services,Care Establishment,2 - Operations - Learning Disability,LDP South Cambs Locality - Care,Residential Independent Sector
Cambridgeshire County Council,09-Sep-16,21560247-13930897,-1447.48,Caretech Community Services,Care Establishment,2 - Operations - Learning Disability,LDP South Cambs Locality - Care,Residential Independent Sector
Cambridgeshire County Council,09-Sep-16,21560252-13930902,-1447.48,Caretech Community Services,Care Establishment,2 - Operations - Learning Disability,LDP South Cambs Locality - Care,Residential Independent Sector
Cambridgeshire County Council,09-Sep-16,21560253-13930903,-1447.48,Caretech Community Services,Care Establishment,2 - Operations - Learning Disability,LDP South Cambs Locality - Care,Residential Independent Sector
Cambridgeshire County Council,09-Sep-16,21560257-13930907,-1447.48,Caretech Community Services,Care Establishment,2 - Operations - Learning Disability,LDP South Cambs Locality - Care,Residential Independent Sector
Cambridgeshire County Council,09-Sep-16,21560258-13930908,-1447.48,Caretech Community Services,Care Establishment,2 - Operations - Learning Disability,LDP South Cambs Locality - Care,Residential Independent Sector
Cambridgeshire County Council,09-Sep-16,21568709-13936844,-1444.02,Conquest Care Homes Peterborough,Care Establishment,2 - Operations - Learning Disability,LDP Fens - Special Needs,Residential Independent Sector
Cambridgeshire County Council,09-Sep-16,21557112-13936242,-1429.48,Conquest Care Homes Peterborough,Care Establishment,2 - Operations - Learning Disability,LDP Fens - Special Needs,Residential Independent Sector
Cambridgeshire County Council,01-Sep-16,21525636-13902492,-1398.1,Victoria Lodge Ltd,Care Establishment,2 - Operations - Learning Disability,LDP E Cambs Special Needs,Residential Independent Sector
Cambridgeshire County Council,01-Sep-16,21525638-13902494,-1398.1,Victoria Lodge Ltd,Care Establishment,2 - Operations - Learning Disability,LDP E Cambs Special Needs,Residential Independent Sector
Cambridgeshire County Council,01-Sep-16,21525639-13902495,-1398.1,Victoria Lodge Ltd,Care Establishment,2 - Operations - Learning Disability,LDP E Cambs Special Needs,Residential Independent Sector
Cambridgeshire County Council,01-Sep-16,21525645-13902501,-1398.1,Victoria Lodge Ltd,Care Establishment,2 - Operations - Learning Disability,LDP E Cambs Special Needs,Residential Independent Sector
Cambridgeshire County Council,01-Sep-16,21525649-13902504,-1398.1,Victoria Lodge Ltd,Care Establishment,2 - Operations - Learning Disability,LDP E Cambs Special Needs,Residential Independent Sector
Cambridgeshire County Council,01-Sep-16,21525655-13902509,-1398.1,Victoria Lodge Ltd,Care Establishment,2 - Operations - Learning Disability,LDP E Cambs Special Needs,Residential Independent Sector
Cambridgeshire County Council,01-Sep-16,21525656-13902510,-1398.1,Victoria Lodge Ltd,Care Establishment,2 - Operations - Learning Disability,LDP E Cambs Special Needs,Residential Independent Sector
Cambridgeshire County Council,01-Sep-16,21525657-13902511,-1398.1,Victoria Lodge Ltd,Care Establishment,2 - Operations - Learning Disability,LDP E Cambs Special Needs,Residential Independent Sector
Cambridgeshire County Council,01-Sep-16,21525660-13902514,-1398.1,Victoria Lodge Ltd,Care Establishment,2 - Operations - Learning Disability,LDP E Cambs Special Needs,Residential Independent Sector
Cambridgeshire County Council,01-Sep-16,21525661-13902515,-1398.1,Victoria Lodge Ltd,Care Establishment,2 - Operations - Learning Disability,LDP E Cambs Special Needs,Residential Independent Sector
Cambridgeshire County Council,01-Sep-16,21525662-13902516,-1398.1,Victoria Lodge Ltd,Care Establishment,2 - Operations - Learning Disability,LDP E Cambs Special Needs,Residential Independent Sector
Cambridgeshire County Council,01-Sep-16,21525663-13902517,-1398.1,Victoria Lodge Ltd,Care Establishment,2 - Operations - Learning Disability,LDP E Cambs Special Needs,Residential Independent Sector
Cambridgeshire County Council,01-Sep-16,21525666-13902519,-1398.1,Victoria Lodge Ltd,Care Establishment,2 - Operations - Learning Disability,LDP E Cambs Special Needs,Residential Independent Sector
Cambridgeshire County Council,01-Sep-16,21525668-13902521,-1398.1,Victoria Lodge Ltd,Care Establishment,2 - Operations - Learning Disability,LDP E Cambs Special Needs,Residential Independent Sector
Cambridgeshire County Council,01-Sep-16,21525669-13902522,-1398.1,Victoria Lodge Ltd,Care Establishment,2 - Operations - Learning Disability,LDP E Cambs Special Needs,Residential Independent Sector
Cambridgeshire County Council,01-Sep-16,21525671-13902535,-1398.1,Victoria Lodge Ltd,Care Establishment,2 - Operations - Learning Disability,LDP E Cambs Special Needs,Residential Independent Sector
Cambridgeshire County Council,01-Sep-16,21525675-13902538,-1398.1,Victoria Lodge Ltd,Care Establishment,2 - Operations - Learning Disability,LDP E Cambs Special Needs,Residential Independent Sector
Cambridgeshire County Council,01-Sep-16,21525679-13902542,-1398.1,Victoria Lodge Ltd,Care Establishment,2 - Operations - Learning Disability,LDP E Cambs Special Needs,Residential Independent Sector
Cambridgeshire County Council,01-Sep-16,21525687-13902523,-1398.1,Victoria Lodge Ltd,Care Establishment,2 - Operations - Learning Disability,LDP E Cambs Special Needs,Residential Independent Sector
Cambridgeshire County Council,01-Sep-16,21525688-13902524,-1398.1,Victoria Lodge Ltd,Care Establishment,2 - Operations - Learning Disability,LDP E Cambs Special Needs,Residential Independent Sector
Cambridgeshire County Council,01-Sep-16,21525689-13902525,-1398.1,Victoria Lodge Ltd,Care Establishment,2 - Operations - Learning Disability,LDP E Cambs Special Needs,Residential Independent Sector
Cambridgeshire County Council,01-Sep-16,21525691-13902527,-1398.1,Victoria Lodge Ltd,Care Establishment,2 - Operations - Learning Disability,LDP E Cambs Special Needs,Residential Independent Sector
Cambridgeshire County Council,01-Sep-16,21525693-13902529,-1398.1,Victoria Lodge Ltd,Care Establishment,2 - Operations - Learning Disability,LDP E Cambs Special Needs,Residential Independent Sector
Cambridgeshire County Council,01-Sep-16,21525694-13902530,-1398.1,Victoria Lodge Ltd,Care Establishment,2 - Operations - Learning Disability,LDP E Cambs Special Needs,Residential Independent Sector
Cambridgeshire County Council,01-Sep-16,21525696-13902532,-1398.1,Victoria Lodge Ltd,Care Establishment,2 - Operations - Learning Disability,LDP E Cambs Special Needs,Residential Independent Sector
Cambridgeshire County Council,09-Sep-16,21570359-13936562,-1379.42,Conquest Care Homes Peterborough,Care Establishment,2 - Operations - Learning Disability,LDP Fens - Special Needs,Residential Independent Sector
Cambridgeshire County Council,09-Sep-16,21570361-13936564,-1379.42,Conquest Care Homes Peterborough,Care Establishment,2 - Operations - Learning Disability,LDP Fens - Special Needs,Residential Independent Sector
Cambridgeshire County Council,09-Sep-16,21570364-13936567,-1379.42,Conquest Care Homes Peterborough,Care Establishment,2 - Operations - Learning Disability,LDP Fens - Special Needs,Residential Independent Sector
Cambridgeshire County Council,09-Sep-16,21570369-13936572,-1379.42,Conquest Care Homes Peterborough,Care Establishment,2 - Operations - Learning Disability,LDP Fens - Special Needs,Residential Independent Sector
Cambridgeshire County Council,09-Sep-16,21570372-13936575,-1379.42,Conquest Care Homes Peterborough,Care Establishment,2 - Operations - Learning Disability,LDP Fens - Special Needs,Residential Independent Sector
Cambridgeshire County Council,09-Sep-16,21570375-13936603,-1379.42,Conquest Care Homes Peterborough,Care Establishment,2 - Operations - Learning Disability,LDP Fens - Special Needs,Residential Independent Sector
Cambridgeshire County Council,09-Sep-16,21570377-13936605,-1379.42,Conquest Care Homes Peterborough,Care Establishment,2 - Operations - Learning Disability,LDP Fens - Special Needs,Residential Independent Sector
Cambridgeshire County Council,09-Sep-16,21570381-13936609,-1379.42,Conquest Care Homes Peterborough,Care Establishment,2 - Operations - Learning Disability,LDP Fens - Special Needs,Residential Independent Sector
Cambridgeshire County Council,09-Sep-16,21570387-13936615,-1379.42,Conquest Care Homes Peterborough,Care Establishment,2 - Operations - Learning Disability,LDP Fens - Special Needs,Residential Independent Sector
Cambridgeshire County Council,09-Sep-16,21570388-13936616,-1379.42,Conquest Care Homes Peterborough,Care Establishment,2 - Operations - Learning Disability,LDP Fens - Special Needs,Residential Independent Sector
Cambridgeshire County Council,09-Sep-16,21570389-13936617,-1379.42,Conquest Care Homes Peterborough,Care Establishment,2 - Operations - Learning Disability,LDP Fens - Special Needs,Residential Independent Sector
Cambridgeshire County Council,09-Sep-16,21570391-13936619,-1379.42,Conquest Care Homes Peterborough,Care Establishment,2 - Operations - Learning Disability,LDP Fens - Special Needs,Residential Independent Sector
Cambridgeshire County Council,09-Sep-16,21570394-13936622,-1379.42,Conquest Care Homes Peterborough,Care Establishment,2 - Operations - Learning Disability,LDP Fens - Special Needs,Residential Independent Sector
Cambridgeshire County Council,09-Sep-16,21570397-13936625,-1379.42,Conquest Care Homes Peterborough,Care Establishment,2 - Operations - Learning Disability,LDP Fens - Special Needs,Residential Independent Sector
Cambridgeshire County Council,09-Sep-16,21570398-13936626,-1379.42,Conquest Care Homes Peterborough,Care Establishment,2 - Operations - Learning Disability,LDP Fens - Special Needs,Residential Independent Sector
Cambridgeshire County Council,09-Sep-16,21570404-13936632,-1379.42,Conquest Care Homes Peterborough,Care Establishment,2 - Operations - Learning Disability,LDP Fens - Special Needs,Residential Independent Sector
Cambridgeshire County Council,09-Sep-16,21570411-13936639,-1379.42,Conquest Care Homes Peterborough,Care Establishment,2 - Operations - Learning Disability,LDP Fens - Special Needs,Residential Independent Sector
Cambridgeshire County Council,09-Sep-16,21570421-13936649,-1379.42,Conquest Care Homes Peterborough,Care Establishment,2 - Operations - Learning Disability,LDP Fens - Special Needs,Residential Independent Sector
Cambridgeshire County Council,09-Sep-16,21570422-13936650,-1379.42,Conquest Care Homes Peterborough,Care Establishment,2 - Operations - Learning Disability,LDP Fens - Special Needs,Residential Independent Sector
Cambridgeshire County Council,09-Sep-16,21570428-13936577,-1379.42,Conquest Care Homes Peterborough,Care Establishment,2 - Operations - Learning Disability,LDP Fens - Special Needs,Residential Independent Sector
Cambridgeshire County Council,09-Sep-16,21570429-13936578,-1379.42,Conquest Care Homes Peterborough,Care Establishment,2 - Operations - Learning Disability,LDP Fens - Special Needs,Residential Independent Sector
Cambridgeshire County Council,09-Sep-16,21570431-13936580,-1379.42,Conquest Care Homes Peterborough,Care Establishment,2 - Operations - Learning Disability,LDP Fens - Special Needs,Residential Independent Sector
Cambridgeshire County Council,09-Sep-16,21570434-13936583,-1379.42,Conquest Care Homes Peterborough,Care Establishment,2 - Operations - Learning Disability,LDP Fens - Special Needs,Residential Independent Sector
Cambridgeshire County Council,09-Sep-16,21570439-13936588,-1379.42,Conquest Care Homes Peterborough,Care Establishment,2 - Operations - Learning Disability,LDP Fens - Special Needs,Residential Independent Sector
Cambridgeshire County Council,09-Sep-16,21570444-13936593,-1379.42,Conquest Care Homes Peterborough,Care Establishment,2 - Operations - Learning Disability,LDP Fens - Special Needs,Residential Independent Sector
Cambridgeshire County Council,09-Sep-16,21570450-13936599,-1379.42,Conquest Care Homes Peterborough,Care Establishment,2 - Operations - Learning Disability,LDP Fens - Special Needs,Residential Independent Sector
Cambridgeshire County Council,09-Sep-16,21563630-13931526,-1375.34,Caretech Community Services,Care Establishment,2 - Operations - Learning Disability,LDP Huntingdonshire Locality - Care,Residential Independent Sector
Cambridgeshire County Council,09-Sep-16,21563631-13931527,-1375.34,Caretech Community Services,Care Establishment,2 - Operations - Learning Disability,LDP Huntingdonshire Locality - Care,Residential Independent Sector
Cambridgeshire County Council,09-Sep-16,21563635-13931531,-1375.34,Caretech Community Services,Care Establishment,2 - Operations - Learning Disability,LDP Huntingdonshire Locality - Care,Residential Independent Sector
Cambridgeshire County Council,09-Sep-16,21563638-13931534,-1375.34,Caretech Community Services,Care Establishment,2 - Operations - Learning Disability,LDP Huntingdonshire Locality - Care,Residential Independent Sector
Cambridgeshire County Council,09-Sep-16,21563639-13931535,-1375.34,Caretech Community Services,Care Establishment,2 - Operations - Learning Disability,LDP Huntingdonshire Locality - Care,Residential Independent Sector
Cambridgeshire County Council,09-Sep-16,21563641-13931537,-1375.34,Caretech Community Services,Care Establishment,2 - Operations - Learning Disability,LDP Huntingdonshire Locality - Care,Residential Independent Sector
Cambridgeshire County Council,09-Sep-16,21563643-13931483,-1375.34,Caretech Community Services,Care Establishment,2 - Operations - Learning Disability,LDP Huntingdonshire Locality - Care,Residential Independent Sector
Cambridgeshire County Council,09-Sep-16,21563646-13931486,-1375.34,Caretech Community Services,Care Establishment,2 - Operations - Learning Disability,LDP Huntingdonshire Locality - Care,Residential Independent Sector
Cambridgeshire County Council,09-Sep-16,21563647-13931487,-1375.34,Caretech Community Services,Care Establishment,2 - Operations - Learning Disability,LDP Huntingdonshire Locality - Care,Residential Independent Sector
Cambridgeshire County Council,09-Sep-16,21563649-13931489,-1375.34,Caretech Community Services,Care Establishment,2 - Operations - Learning Disability,LDP Huntingdonshire Locality - Care,Residential Independent Sector
Cambridgeshire County Council,09-Sep-16,21563650-13931490,-1375.34,Caretech Community Services,Care Establishment,2 - Operations - Learning Disability,LDP Huntingdonshire Locality - Care,Residential Independent Sector
Cambridgeshire County Council,09-Sep-16,21563652-13931492,-1375.34,Caretech Community Services,Care Establishment,2 - Operations - Learning Disability,LDP Huntingdonshire Locality - Care,Residential Independent Sector
Cambridgeshire County Council,09-Sep-16,21563653-13931493,-1375.34,Caretech Community Services,Care Establishment,2 - Operations - Learning Disability,LDP Huntingdonshire Locality - Care,Residential Independent Sector
Cambridgeshire County Council,09-Sep-16,21563655-13931495,-1375.34,Caretech Community Services,Care Establishment,2 - Operations - Learning Disability,LDP Huntingdonshire Locality - Care,Residential Independent Sector
Cambridgeshire County Council,09-Sep-16,21563656-13931496,-1375.34,Caretech Community Services,Care Establishment,2 - Operations - Learning Disability,LDP Huntingdonshire Locality - Care,Residential Independent Sector
Cambridgeshire County Council,09-Sep-16,21563659-13931499,-1375.34,Caretech Community Services,Care Establishment,2 - Operations - Learning Disability,LDP Huntingdonshire Locality - Care,Residential Independent Sector
Cambridgeshire County Council,09-Sep-16,21563661-13931501,-1375.34,Caretech Community Services,Care Establishment,2 - Operations - Learning Disability,LDP Huntingdonshire Locality - Care,Residential Independent Sector
Cambridgeshire County Council,09-Sep-16,21563663-13931503,-1375.34,Caretech Community Services,Care Establishment,2 - Operations - Learning Disability,LDP Huntingdonshire Locality - Care,Residential Independent Sector
Cambridgeshire County Council,09-Sep-16,21563664-13931504,-1375.34,Caretech Community Services,Care Establishment,2 - Operations - Learning Disability,LDP Huntingdonshire Locality - Care,Residential Independent Sector
Cambridgeshire County Council,09-Sep-16,21563669-13931509,-1375.34,Caretech Community Services,Care Establishment,2 - Operations - Learning Disability,LDP Huntingdonshire Locality - Care,Residential Independent Sector
Cambridgeshire County Council,09-Sep-16,21563670-13931510,-1375.34,Caretech Community Services,Care Establishment,2 - Operations - Learning Disability,LDP Huntingdonshire Locality - Care,Residential Independent Sector
Cambridgeshire County Council,09-Sep-16,21563671-13931511,-1375.34,Caretech Community Services,Care Establishment,2 - Operations - Learning Disability,LDP Huntingdonshire Locality - Care,Residential Independent Sector
Cambridgeshire County Council,09-Sep-16,21563674-13931514,-1375.34,Caretech Community Services,Care Establishment,2 - Operations - Learning Disability,LDP Huntingdonshire Locality - Care,Residential Independent Sector
Cambridgeshire County Council,09-Sep-16,21563676-13931516,-1375.34,Caretech Community Services,Care Establishment,2 - Operations - Learning Disability,LDP Huntingdonshire Locality - Care,Residential Independent Sector
Cambridgeshire County Council,09-Sep-16,21563679-13931519,-1375.34,Caretech Community Services,Care Establishment,2 - Operations - Learning Disability,LDP Huntingdonshire Locality - Care,Residential Independent Sector
Cambridgeshire County Council,09-Sep-16,21563682-13931522,-1375.34,Caretech Community Services,Care Establishment,2 - Operations - Learning Disability,LDP Huntingdonshire Locality - Care,Residential Independent Sector
Cambridgeshire County Council,13-Sep-16,21607061-13952193,-1349.12,Guidant Group,Trade Supplier,LGSS,Corporate Office IT Assets,Pay - Agency Staff
Cambridgeshire County Council,09-Sep-16,21550568-13932917,-1333.75,Enterprise Rent-A-Car Uk Ltd,Trade Supplier,LGSS,"POD - Leadership	",Leased Vehicle Costs
Cambridgeshire County Council,09-Sep-16,21556344-13931649,-1330.11,Caretech Community Services,Care Establishment,2 - Operations - Learning Disability,LDP Huntingdonshire Locality - Care,Residential Independent Sector
Cambridgeshire County Council,09-Sep-16,21556345-13931650,-1330.11,Caretech Community Services,Care Establishment,2 - Operations - Learning Disability,LDP Huntingdonshire Locality - Care,Residential Independent Sector
Cambridgeshire County Council,09-Sep-16,21556350-13931655,-1330.11,Caretech Community Services,Care Establishment,2 - Operations - Learning Disability,LDP Huntingdonshire Locality - Care,Residential Independent Sector
Cambridgeshire County Council,09-Sep-16,21556351-13931656,-1330.11,Caretech Community Services,Care Establishment,2 - Operations - Learning Disability,LDP Huntingdonshire Locality - Care,Residential Independent Sector
Cambridgeshire County Council,09-Sep-16,21556352-13931657,-1330.11,Caretech Community Services,Care Establishment,2 - Operations - Learning Disability,LDP Huntingdonshire Locality - Care,Residential Independent Sector
Cambridgeshire County Council,09-Sep-16,21556353-13931658,-1330.11,Caretech Community Services,Care Establishment,2 - Operations - Learning Disability,LDP Huntingdonshire Locality - Care,Residential Independent Sector
Cambridgeshire County Council,09-Sep-16,21556356-13931661,-1330.11,Caretech Community Services,Care Establishment,2 - Operations - Learning Disability,LDP Huntingdonshire Locality - Care,Residential Independent Sector
Cambridgeshire County Council,09-Sep-16,21556358-13931663,-1330.11,Caretech Community Services,Care Establishment,2 - Operations - Learning Disability,LDP Huntingdonshire Locality - Care,Residential Independent Sector
Cambridgeshire County Council,09-Sep-16,21556359-13931664,-1330.11,Caretech Community Services,Care Establishment,2 - Operations - Learning Disability,LDP Huntingdonshire Locality - Care,Residential Independent Sector
Cambridgeshire County Council,09-Sep-16,21556366-13931671,-1330.11,Caretech Community Services,Care Establishment,2 - Operations - Learning Disability,LDP Huntingdonshire Locality - Care,Residential Independent Sector
Cambridgeshire County Council,09-Sep-16,21556367-13931538,-1330.11,Caretech Community Services,Care Establishment,2 - Operations - Learning Disability,LDP Huntingdonshire Locality - Care,Residential Independent Sector
Cambridgeshire County Council,09-Sep-16,21556368-13931539,-1330.11,Caretech Community Services,Care Establishment,2 - Operations - Learning Disability,LDP Huntingdonshire Locality - Care,Residential Independent Sector
Cambridgeshire County Council,09-Sep-16,21556371-13931542,-1330.11,Caretech Community Services,Care Establishment,2 - Operations - Learning Disability,LDP Huntingdonshire Locality - Care,Residential Independent Sector
Cambridgeshire County Council,09-Sep-16,21556373-13931544,-1330.11,Caretech Community Services,Care Establishment,2 - Operations - Learning Disability,LDP Huntingdonshire Locality - Care,Residential Independent Sector
Cambridgeshire County Council,09-Sep-16,21556375-13931546,-1330.11,Caretech Community Services,Care Establishment,2 - Operations - Learning Disability,LDP Huntingdonshire Locality - Care,Residential Independent Sector
Cambridgeshire County Council,09-Sep-16,21556376-13931547,-1330.11,Caretech Community Services,Care Establishment,2 - Operations - Learning Disability,LDP Huntingdonshire Locality - Care,Residential Independent Sector
Cambridgeshire County Council,09-Sep-16,21556378-13931549,-1330.11,Caretech Community Services,Care Establishment,2 - Operations - Learning Disability,LDP Huntingdonshire Locality - Care,Residential Independent Sector
Cambridgeshire County Council,09-Sep-16,21561303-13932338,-1330.11,Caretech Community Services,Care Establishment,2 - Operations - Learning Disability,LDP Huntingdonshire Locality - Care,Residential Independent Sector
Cambridgeshire County Council,09-Sep-16,21561307-13932321,-1330.11,Caretech Community Services,Care Establishment,2 - Operations - Learning Disability,LDP Huntingdonshire Locality - Care,Residential Independent Sector
Cambridgeshire County Council,09-Sep-16,21561309-13932323,-1330.11,Caretech Community Services,Care Establishment,2 - Operations - Learning Disability,LDP Huntingdonshire Locality - Care,Residential Independent Sector
Cambridgeshire County Council,09-Sep-16,21561314-13932328,-1330.11,Caretech Community Services,Care Establishment,2 - Operations - Learning Disability,LDP Huntingdonshire Locality - Care,Residential Independent Sector
Cambridgeshire County Council,09-Sep-16,21561316-13932330,-1330.11,Caretech Community Services,Care Establishment,2 - Operations - Learning Disability,LDP Huntingdonshire Locality - Care,Residential Independent Sector
Cambridgeshire County Council,09-Sep-16,21561317-13932331,-1330.11,Caretech Community Services,Care Establishment,2 - Operations - Learning Disability,LDP Huntingdonshire Locality - Care,Residential Independent Sector
Cambridgeshire County Council,09-Sep-16,21561319-13932333,-1330.11,Caretech Community Services,Care Establishment,2 - Operations - Learning Disability,LDP Huntingdonshire Locality - Care,Residential Independent Sector
Cambridgeshire County Council,09-Sep-16,21561322-13932336,-1330.11,Caretech Community Services,Care Establishment,2 - Operations - Learning Disability,LDP Huntingdonshire Locality - Care,Residential Independent Sector
Cambridgeshire County Council,01-Sep-16,21523647-13902051,-1326.95,Caretech Community Services,Care Establishment,2 - Operations - Learning Disability,LDP Hunts special needs,Supported Living
Cambridgeshire County Council,09-Sep-16,21566291-13931009,-1325.68,Caretech Community Services,Care Establishment,2 - Operations - Learning Disability,LDP South Cambs Locality - Care,Residential Independent Sector
Cambridgeshire County Council,09-Sep-16,21555994-13931677,-1321.94,Caretech Community Services,Care Establishment,2 - Operations - Learning Disability,LDP South Cambs Locality - Care,Residential Independent Sector
Cambridgeshire County Council,09-Sep-16,21562903-13931772,-1321.9,Caretech Community Services,Care Establishment,2 - Operations - Learning Disability,LDP South Cambs Locality - Care,Residential Independent Sector
Cambridgeshire County Council,26-Sep-16,21643448-14088673,-1304.59,Xerox Parking,Trade Supplier,Traffic Management & Road Safety,Civil Parking Enforcement,Other Hired Contract Services
Cambridgeshire County Council,09-Sep-16,21555759-13931865,-1303.04,Caretech Community Services,Care Establishment,2 - Operations - Learning Disability,LDP Huntingdonshire Locality - Care,Supported Living
Cambridgeshire County Council,01-Sep-16,21524199-13901919,-1300.47,Caretech Community Services,Care Establishment,2 - Operations - Learning Disability,LDP Huntingdonshire Locality - Care,Residential Independent Sector
Cambridgeshire County Council,01-Sep-16,21524202-13901922,-1300.47,Caretech Community Services,Care Establishment,2 - Operations - Learning Disability,LDP Huntingdonshire Locality - Care,Residential Independent Sector
Cambridgeshire County Council,01-Sep-16,21524205-13901925,-1300.47,Caretech Community Services,Care Establishment,2 - Operations - Learning Disability,LDP Huntingdonshire Locality - Care,Residential Independent Sector
Cambridgeshire County Council,01-Sep-16,21524206-13901926,-1300.47,Caretech Community Services,Care Establishment,2 - Operations - Learning Disability,LDP Huntingdonshire Locality - Care,Residential Independent Sector
Cambridgeshire County Council,01-Sep-16,21524207-13901927,-1300.47,Caretech Community Services,Care Establishment,2 - Operations - Learning Disability,LDP Huntingdonshire Locality - Care,Residential Independent Sector
Cambridgeshire County Council,01-Sep-16,21524208-13901928,-1300.47,Caretech Community Services,Care Establishment,2 - Operations - Learning Disability,LDP Huntingdonshire Locality - Care,Residential Independent Sector
Cambridgeshire County Council,01-Sep-16,21524215-13901935,-1300.47,Caretech Community Services,Care Establishment,2 - Operations - Learning Disability,LDP Huntingdonshire Locality - Care,Residential Independent Sector
Cambridgeshire County Council,01-Sep-16,21524216-13901936,-1300.47,Caretech Community Services,Care Establishment,2 - Operations - Learning Disability,LDP Huntingdonshire Locality - Care,Residential Independent Sector
Cambridgeshire County Council,01-Sep-16,21524219-13901939,-1300.47,Caretech Community Services,Care Establishment,2 - Operations - Learning Disability,LDP Huntingdonshire Locality - Care,Residential Independent Sector
Cambridgeshire County Council,01-Sep-16,21524220-13901940,-1300.47,Caretech Community Services,Care Establishment,2 - Operations - Learning Disability,LDP Huntingdonshire Locality - Care,Residential Independent Sector
Cambridgeshire County Council,01-Sep-16,21524221-13901941,-1300.47,Caretech Community Services,Care Establishment,2 - Operations - Learning Disability,LDP Huntingdonshire Locality - Care,Residential Independent Sector
Cambridgeshire County Council,01-Sep-16,21524222-13901942,-1300.47,Caretech Community Services,Care Establishment,2 - Operations - Learning Disability,LDP Huntingdonshire Locality - Care,Residential Independent Sector
Cambridgeshire County Council,01-Sep-16,21524225-13901945,-1300.47,Caretech Community Services,Care Establishment,2 - Operations - Learning Disability,LDP Huntingdonshire Locality - Care,Residential Independent Sector
Cambridgeshire County Council,01-Sep-16,21524227-13901947,-1300.47,Caretech Community Services,Care Establishment,2 - Operations - Learning Disability,LDP Huntingdonshire Locality - Care,Residential Independent Sector
Cambridgeshire County Council,01-Sep-16,21524231-13901951,-1300.47,Caretech Community Services,Care Establishment,2 - Operations - Learning Disability,LDP Huntingdonshire Locality - Care,Residential Independent Sector
Cambridgeshire County Council,01-Sep-16,21524235-13901955,-1300.47,Caretech Community Services,Care Establishment,2 - Operations - Learning Disability,LDP Huntingdonshire Locality - Care,Residential Independent Sector
Cambridgeshire County Council,01-Sep-16,21524238-13901958,-1300.47,Caretech Community Services,Care Establishment,2 - Operations - Learning Disability,LDP Huntingdonshire Locality - Care,Residential Independent Sector
Cambridgeshire County Council,01-Sep-16,21524240-13901960,-1300.47,Caretech Community Services,Care Establishment,2 - Operations - Learning Disability,LDP Huntingdonshire Locality - Care,Residential Independent Sector
Cambridgeshire County Council,01-Sep-16,21524242-13901962,-1300.47,Caretech Community Services,Care Establishment,2 - Operations - Learning Disability,LDP Huntingdonshire Locality - Care,Residential Independent Sector
Cambridgeshire County Council,01-Sep-16,21524243-13901963,-1300.47,Caretech Community Services,Care Establishment,2 - Operations - Learning Disability,LDP Huntingdonshire Locality - Care,Residential Independent Sector
Cambridgeshire County Council,01-Sep-16,21524244-13901964,-1300.47,Caretech Community Services,Care Establishment,2 - Operations - Learning Disability,LDP Huntingdonshire Locality - Care,Residential Independent Sector
Cambridgeshire County Council,01-Sep-16,21524245-13901965,-1300.47,Caretech Community Services,Care Establishment,2 - Operations - Learning Disability,LDP Huntingdonshire Locality - Care,Residential Independent Sector
Cambridgeshire County Council,01-Sep-16,21524498-13901863,-1300.47,Caretech Community Services,Care Establishment,2 - Operations - Learning Disability,LDP Huntingdonshire Locality - Care,Residential Independent Sector
Cambridgeshire County Council,01-Sep-16,21524501-13901866,-1300.47,Caretech Community Services,Care Establishment,2 - Operations - Learning Disability,LDP Huntingdonshire Locality - Care,Residential Independent Sector
Cambridgeshire County Council,01-Sep-16,21524502-13901867,-1300.47,Caretech Community Services,Care Establishment,2 - Operations - Learning Disability,LDP Huntingdonshire Locality - Care,Residential Independent Sector
Cambridgeshire County Council,01-Sep-16,21524504-13901869,-1300.47,Caretech Community Services,Care Establishment,2 - Operations - Learning Disability,LDP Huntingdonshire Locality - Care,Residential Independent Sector
Cambridgeshire County Council,01-Sep-16,21524505-13901870,-1300.47,Caretech Community Services,Care Establishment,2 - Operations - Learning Disability,LDP Huntingdonshire Locality - Care,Residential Independent Sector
Cambridgeshire County Council,01-Sep-16,21524506-13901871,-1300.47,Caretech Community Services,Care Establishment,2 - Operations - Learning Disability,LDP Huntingdonshire Locality - Care,Residential Independent Sector
Cambridgeshire County Council,01-Sep-16,21524508-13901873,-1300.47,Caretech Community Services,Care Establishment,2 - Operations - Learning Disability,LDP Huntingdonshire Locality - Care,Residential Independent Sector
Cambridgeshire County Council,01-Sep-16,21524509-13901874,-1300.47,Caretech Community Services,Care Establishment,2 - Operations - Learning Disability,LDP Huntingdonshire Locality - Care,Residential Independent Sector
Cambridgeshire County Council,01-Sep-16,21524518-13901883,-1300.47,Caretech Community Services,Care Establishment,2 - Operations - Learning Disability,LDP Huntingdonshire Locality - Care,Residential Independent Sector
Cambridgeshire County Council,01-Sep-16,21524519-13901884,-1300.47,Caretech Community Services,Care Establishment,2 - Operations - Learning Disability,LDP Huntingdonshire Locality - Care,Residential Independent Sector
Cambridgeshire County Council,01-Sep-16,21524520-13901885,-1300.47,Caretech Community Services,Care Establishment,2 - Operations - Learning Disability,LDP Huntingdonshire Locality - Care,Residential Independent Sector
Cambridgeshire County Council,01-Sep-16,21524522-13901887,-1300.47,Caretech Community Services,Care Establishment,2 - Operations - Learning Disability,LDP Huntingdonshire Locality - Care,Residential Independent Sector
Cambridgeshire County Council,01-Sep-16,21524523-13901888,-1300.47,Caretech Community Services,Care Establishment,2 - Operations - Learning Disability,LDP Huntingdonshire Locality - Care,Residential Independent Sector
Cambridgeshire County Council,01-Sep-16,21524525-13901890,-1300.47,Caretech Community Services,Care Establishment,2 - Operations - Learning Disability,LDP Huntingdonshire Locality - Care,Residential Independent Sector
Cambridgeshire County Council,01-Sep-16,21524531-13901896,-1300.47,Caretech Community Services,Care Establishment,2 - Operations - Learning Disability,LDP Huntingdonshire Locality - Care,Residential Independent Sector
Cambridgeshire County Council,01-Sep-16,21524534-13901899,-1300.47,Caretech Community Services,Care Establishment,2 - Operations - Learning Disability,LDP Huntingdonshire Locality - Care,Residential Independent Sector
Cambridgeshire County Council,01-Sep-16,21524537-13901902,-1300.47,Caretech Community Services,Care Establishment,2 - Operations - Learning Disability,LDP Huntingdonshire Locality - Care,Residential Independent Sector
Cambridgeshire County Council,01-Sep-16,21524540-13901905,-1300.47,Caretech Community Services,Care Establishment,2 - Operations - Learning Disability,LDP Huntingdonshire Locality - Care,Residential Independent Sector
Cambridgeshire County Council,01-Sep-16,21524541-13901906,-1300.47,Caretech Community Services,Care Establishment,2 - Operations - Learning Disability,LDP Huntingdonshire Locality - Care,Residential Independent Sector
Cambridgeshire County Council,01-Sep-16,21524542-13901907,-1300.47,Caretech Community Services,Care Establishment,2 - Operations - Learning Disability,LDP Huntingdonshire Locality - Care,Residential Independent Sector
Cambridgeshire County Council,01-Sep-16,21524547-13901912,-1300.47,Caretech Community Services,Care Establishment,2 - Operations - Learning Disability,LDP Huntingdonshire Locality - Care,Residential Independent Sector
Cambridgeshire County Council,01-Sep-16,21524548-13901913,-1300.47,Caretech Community Services,Care Establishment,2 - Operations - Learning Disability,LDP Huntingdonshire Locality - Care,Residential Independent Sector
Cambridgeshire County Council,01-Sep-16,21528249-13901417,-1294.72,Caretech Community Services Ltd (161 Wootton Rd),Care Establishment,2 - Operations - Learning Disability,LDP Huntingdonshire Locality - Care,Residential Independent Sector
Cambridgeshire County Council,01-Sep-16,21528251-13901419,-1294.72,Caretech Community Services Ltd (161 Wootton Rd),Care Establishment,2 - Operations - Learning Disability,LDP Huntingdonshire Locality - Care,Residential Independent Sector
Cambridgeshire County Council,01-Sep-16,21528254-13901422,-1294.72,Caretech Community Services Ltd (161 Wootton Rd),Care Establishment,2 - Operations - Learning Disability,LDP Huntingdonshire Locality - Care,Residential Independent Sector
Cambridgeshire County Council,01-Sep-16,21528261-13901429,-1294.72,Caretech Community Services Ltd (161 Wootton Rd),Care Establishment,2 - Operations - Learning Disability,LDP Huntingdonshire Locality - Care,Residential Independent Sector
Cambridgeshire County Council,01-Sep-16,21528272-13901440,-1294.72,Caretech Community Services Ltd (161 Wootton Rd),Care Establishment,2 - Operations - Learning Disability,LDP Huntingdonshire Locality - Care,Residential Independent Sector
Cambridgeshire County Council,01-Sep-16,21528274-13901442,-1294.72,Caretech Community Services Ltd (161 Wootton Rd),Care Establishment,2 - Operations - Learning Disability,LDP Huntingdonshire Locality - Care,Residential Independent Sector
Cambridgeshire County Council,01-Sep-16,21528283-13901451,-1294.72,Caretech Community Services Ltd (161 Wootton Rd),Care Establishment,2 - Operations - Learning Disability,LDP Huntingdonshire Locality - Care,Residential Independent Sector
Cambridgeshire County Council,01-Sep-16,21528286-13901454,-1294.72,Caretech Community Services Ltd (161 Wootton Rd),Care Establishment,2 - Operations - Learning Disability,LDP Huntingdonshire Locality - Care,Residential Independent Sector
Cambridgeshire County Council,01-Sep-16,21528293-13901461,-1294.72,Caretech Community Services Ltd (161 Wootton Rd),Care Establishment,2 - Operations - Learning Disability,LDP Huntingdonshire Locality - Care,Residential Independent Sector
Cambridgeshire County Council,01-Sep-16,21528302-13901470,-1294.72,Caretech Community Services Ltd (161 Wootton Rd),Care Establishment,2 - Operations - Learning Disability,LDP Huntingdonshire Locality - Care,Residential Independent Sector
Cambridgeshire County Council,01-Sep-16,21528303-13901471,-1294.72,Caretech Community Services Ltd (161 Wootton Rd),Care Establishment,2 - Operations - Learning Disability,LDP Huntingdonshire Locality - Care,Residential Independent Sector
Cambridgeshire County Council,01-Sep-16,21528307-13901475,-1294.72,Caretech Community Services Ltd (161 Wootton Rd),Care Establishment,2 - Operations - Learning Disability,LDP Huntingdonshire Locality - Care,Residential Independent Sector
Cambridgeshire County Council,01-Sep-16,21528312-13901480,-1294.72,Caretech Community Services Ltd (161 Wootton Rd),Care Establishment,2 - Operations - Learning Disability,LDP Huntingdonshire Locality - Care,Residential Independent Sector
Cambridgeshire County Council,01-Sep-16,21528316-13901484,-1294.72,Caretech Community Services Ltd (161 Wootton Rd),Care Establishment,2 - Operations - Learning Disability,LDP Huntingdonshire Locality - Care,Residential Independent Sector
Cambridgeshire County Council,01-Sep-16,21528325-13901493,-1294.72,Caretech Community Services Ltd (161 Wootton Rd),Care Establishment,2 - Operations - Learning Disability,LDP Huntingdonshire Locality - Care,Residential Independent Sector
Cambridgeshire County Council,01-Sep-16,21528327-13901495,-1294.72,Caretech Community Services Ltd (161 Wootton Rd),Care Establishment,2 - Operations - Learning Disability,LDP Huntingdonshire Locality - Care,Residential Independent Sector
Cambridgeshire County Council,01-Sep-16,21528328-13901496,-1294.72,Caretech Community Services Ltd (161 Wootton Rd),Care Establishment,2 - Operations - Learning Disability,LDP Huntingdonshire Locality - Care,Residential Independent Sector
Cambridgeshire County Council,01-Sep-16,21528331-13901499,-1294.72,Caretech Community Services Ltd (161 Wootton Rd),Care Establishment,2 - Operations - Learning Disability,LDP Huntingdonshire Locality - Care,Residential Independent Sector
Cambridgeshire County Council,01-Sep-16,21528332-13901500,-1294.72,Caretech Community Services Ltd (161 Wootton Rd),Care Establishment,2 - Operations - Learning Disability,LDP Huntingdonshire Locality - Care,Residential Independent Sector
Cambridgeshire County Council,01-Sep-16,21528334-13901502,-1294.72,Caretech Community Services Ltd (161 Wootton Rd),Care Establishment,2 - Operations - Learning Disability,LDP Huntingdonshire Locality - Care,Residential Independent Sector
Cambridgeshire County Council,01-Sep-16,21528335-13901503,-1294.72,Caretech Community Services Ltd (161 Wootton Rd),Care Establishment,2 - Operations - Learning Disability,LDP Huntingdonshire Locality - Care,Residential Independent Sector
Cambridgeshire County Council,01-Sep-16,21528339-13901507,-1294.72,Caretech Community Services Ltd (161 Wootton Rd),Care Establishment,2 - Operations - Learning Disability,LDP Huntingdonshire Locality - Care,Residential Independent Sector
Cambridgeshire County Council,01-Sep-16,21525412-13901564,-1286.56,Caretech Community Services Ltd (161 Wootton Rd),Care Establishment,2 - Operations - Learning Disability,LDP Hunts special needs,Residential Independent Sector
Cambridgeshire County Council,01-Sep-16,21525416-13901568,-1286.56,Caretech Community Services Ltd (161 Wootton Rd),Care Establishment,2 - Operations - Learning Disability,LDP Hunts special needs,Residential Independent Sector
Cambridgeshire County Council,01-Sep-16,21525434-13901586,-1286.56,Caretech Community Services Ltd (161 Wootton Rd),Care Establishment,2 - Operations - Learning Disability,LDP Hunts special needs,Residential Independent Sector
Cambridgeshire County Council,01-Sep-16,21525437-13901589,-1286.56,Caretech Community Services Ltd (161 Wootton Rd),Care Establishment,2 - Operations - Learning Disability,LDP Hunts special needs,Residential Independent Sector
Cambridgeshire County Council,01-Sep-16,21525438-13901590,-1286.56,Caretech Community Services Ltd (161 Wootton Rd),Care Establishment,2 - Operations - Learning Disability,LDP Hunts special needs,Residential Independent Sector
Cambridgeshire County Council,01-Sep-16,21525447-13901529,-1286.56,Caretech Community Services Ltd (161 Wootton Rd),Care Establishment,2 - Operations - Learning Disability,LDP Hunts special needs,Residential Independent Sector
Cambridgeshire County Council,01-Sep-16,21525449-13901531,-1286.56,Caretech Community Services Ltd (161 Wootton Rd),Care Establishment,2 - Operations - Learning Disability,LDP Hunts special needs,Residential Independent Sector
Cambridgeshire County Council,01-Sep-16,21525451-13901533,-1286.56,Caretech Community Services Ltd (161 Wootton Rd),Care Establishment,2 - Operations - Learning Disability,LDP Hunts special needs,Residential Independent Sector
Cambridgeshire County Council,01-Sep-16,21525461-13901543,-1286.56,Caretech Community Services Ltd (161 Wootton Rd),Care Establishment,2 - Operations - Learning Disability,LDP Hunts special needs,Residential Independent Sector
Cambridgeshire County Council,01-Sep-16,21525463-13901545,-1286.56,Caretech Community Services Ltd (161 Wootton Rd),Care Establishment,2 - Operations - Learning Disability,LDP Hunts special needs,Residential Independent Sector
Cambridgeshire County Council,01-Sep-16,21525464-13901546,-1286.56,Caretech Community Services Ltd (161 Wootton Rd),Care Establishment,2 - Operations - Learning Disability,LDP Hunts special needs,Residential Independent Sector
Cambridgeshire County Council,01-Sep-16,21525465-13901547,-1286.56,Caretech Community Services Ltd (161 Wootton Rd),Care Establishment,2 - Operations - Learning Disability,LDP Hunts special needs,Residential Independent Sector
Cambridgeshire County Council,01-Sep-16,21525471-13901553,-1286.56,Caretech Community Services Ltd (161 Wootton Rd),Care Establishment,2 - Operations - Learning Disability,LDP Hunts special needs,Residential Independent Sector
Cambridgeshire County Council,01-Sep-16,21527638-13901509,-1286.56,Caretech Community Services Ltd (161 Wootton Rd),Care Establishment,2 - Operations - Learning Disability,LDP Hunts special needs,Residential Independent Sector
Cambridgeshire County Council,01-Sep-16,21527639-13901510,-1286.56,Caretech Community Services Ltd (161 Wootton Rd),Care Establishment,2 - Operations - Learning Disability,LDP Hunts special needs,Residential Independent Sector
Cambridgeshire County Council,01-Sep-16,21527643-13901513,-1286.56,Caretech Community Services Ltd (161 Wootton Rd),Care Establishment,2 - Operations - Learning Disability,LDP Hunts special needs,Residential Independent Sector
Cambridgeshire County Council,01-Sep-16,21527644-13901514,-1286.56,Caretech Community Services Ltd (161 Wootton Rd),Care Establishment,2 - Operations - Learning Disability,LDP Hunts special needs,Residential Independent Sector
Cambridgeshire County Council,01-Sep-16,21527648-13901518,-1286.56,Caretech Community Services Ltd (161 Wootton Rd),Care Establishment,2 - Operations - Learning Disability,LDP Hunts special needs,Residential Independent Sector
Cambridgeshire County Council,01-Sep-16,21527650-13901520,-1286.56,Caretech Community Services Ltd (161 Wootton Rd),Care Establishment,2 - Operations - Learning Disability,LDP Hunts special needs,Residential Independent Sector
Cambridgeshire County Council,01-Sep-16,21527651-13901521,-1286.56,Caretech Community Services Ltd (161 Wootton Rd),Care Establishment,2 - Operations - Learning Disability,LDP Hunts special needs,Residential Independent Sector
Cambridgeshire County Council,01-Sep-16,21527652-13901522,-1286.56,Caretech Community Services Ltd (161 Wootton Rd),Care Establishment,2 - Operations - Learning Disability,LDP Hunts special needs,Residential Independent Sector
Cambridgeshire County Council,01-Sep-16,21527654-13901524,-1286.56,Caretech Community Services Ltd (161 Wootton Rd),Care Establishment,2 - Operations - Learning Disability,LDP Hunts special needs,Residential Independent Sector
Cambridgeshire County Council,09-Sep-16,21557737-13931241,-1284,Caretech Community Services,Care Establishment,2 - Operations - Learning Disability,LDP Huntingdonshire Locality - Care,Residential Independent Sector
Cambridgeshire County Council,09-Sep-16,21557740-13931244,-1284,Caretech Community Services,Care Establishment,2 - Operations - Learning Disability,LDP Huntingdonshire Locality - Care,Residential Independent Sector
Cambridgeshire County Council,09-Sep-16,21557742-13931246,-1284,Caretech Community Services,Care Establishment,2 - Operations - Learning Disability,LDP Huntingdonshire Locality - Care,Residential Independent Sector
Cambridgeshire County Council,09-Sep-16,21557749-13931253,-1284,Caretech Community Services,Care Establishment,2 - Operations - Learning Disability,LDP Huntingdonshire Locality - Care,Residential Independent Sector
Cambridgeshire County Council,09-Sep-16,21557750-13931254,-1284,Caretech Community Services,Care Establishment,2 - Operations - Learning Disability,LDP Huntingdonshire Locality - Care,Residential Independent Sector
Cambridgeshire County Council,09-Sep-16,21557754-13931258,-1284,Caretech Community Services,Care Establishment,2 - Operations - Learning Disability,LDP Huntingdonshire Locality - Care,Residential Independent Sector
Cambridgeshire County Council,09-Sep-16,21557757-13931261,-1284,Caretech Community Services,Care Establishment,2 - Operations - Learning Disability,LDP Huntingdonshire Locality - Care,Residential Independent Sector
Cambridgeshire County Council,09-Sep-16,21557758-13931262,-1284,Caretech Community Services,Care Establishment,2 - Operations - Learning Disability,LDP Huntingdonshire Locality - Care,Residential Independent Sector
Cambridgeshire County Council,09-Sep-16,21557763-13931266,-1284,Caretech Community Services,Care Establishment,2 - Operations - Learning Disability,LDP Huntingdonshire Locality - Care,Residential Independent Sector
Cambridgeshire County Council,09-Sep-16,21557764-13931267,-1284,Caretech Community Services,Care Establishment,2 - Operations - Learning Disability,LDP Huntingdonshire Locality - Care,Residential Independent Sector
Cambridgeshire County Council,09-Sep-16,21557765-13931268,-1284,Caretech Community Services,Care Establishment,2 - Operations - Learning Disability,LDP Huntingdonshire Locality - Care,Residential Independent Sector
Cambridgeshire County Council,09-Sep-16,21558647-13931014,-1284,Caretech Community Services,Care Establishment,2 - Operations - Learning Disability,LDP Huntingdonshire Locality - Care,Residential Independent Sector
Cambridgeshire County Council,09-Sep-16,21558648-13931015,-1284,Caretech Community Services,Care Establishment,2 - Operations - Learning Disability,LDP Huntingdonshire Locality - Care,Residential Independent Sector
Cambridgeshire County Council,09-Sep-16,21558651-13931018,-1284,Caretech Community Services,Care Establishment,2 - Operations - Learning Disability,LDP Huntingdonshire Locality - Care,Residential Independent Sector
Cambridgeshire County Council,09-Sep-16,21558654-13931021,-1284,Caretech Community Services,Care Establishment,2 - Operations - Learning Disability,LDP Huntingdonshire Locality - Care,Residential Independent Sector
Cambridgeshire County Council,09-Sep-16,21558656-13931023,-1284,Caretech Community Services,Care Establishment,2 - Operations - Learning Disability,LDP Huntingdonshire Locality - Care,Residential Independent Sector
Cambridgeshire County Council,09-Sep-16,21558658-13931025,-1284,Caretech Community Services,Care Establishment,2 - Operations - Learning Disability,LDP Huntingdonshire Locality - Care,Residential Independent Sector
Cambridgeshire County Council,09-Sep-16,21558660-13931027,-1284,Caretech Community Services,Care Establishment,2 - Operations - Learning Disability,LDP Huntingdonshire Locality - Care,Residential Independent Sector
Cambridgeshire County Council,09-Sep-16,21558664-13931031,-1284,Caretech Community Services,Care Establishment,2 - Operations - Learning Disability,LDP Huntingdonshire Locality - Care,Residential Independent Sector
Cambridgeshire County Council,09-Sep-16,21558666-13931033,-1284,Caretech Community Services,Care Establishment,2 - Operations - Learning Disability,LDP Huntingdonshire Locality - Care,Residential Independent Sector
Cambridgeshire County Council,09-Sep-16,21558670-13931037,-1284,Caretech Community Services,Care Establishment,2 - Operations - Learning Disability,LDP Huntingdonshire Locality - Care,Residential Independent Sector
Cambridgeshire County Council,09-Sep-16,21558671-13931038,-1284,Caretech Community Services,Care Establishment,2 - Operations - Learning Disability,LDP Huntingdonshire Locality - Care,Residential Independent Sector
Cambridgeshire County Council,09-Sep-16,21563530-13931550,-1284,Caretech Community Services,Care Establishment,2 - Operations - Learning Disability,LDP Huntingdonshire Locality - Care,Residential Independent Sector
Cambridgeshire County Council,09-Sep-16,21563531-13931551,-1284,Caretech Community Services,Care Establishment,2 - Operations - Learning Disability,LDP Huntingdonshire Locality - Care,Residential Independent Sector
Cambridgeshire County Council,09-Sep-16,21563532-13931552,-1284,Caretech Community Services,Care Establishment,2 - Operations - Learning Disability,LDP Huntingdonshire Locality - Care,Residential Independent Sector
Cambridgeshire County Council,15-Sep-16,21610916-13961632,-1271.87,Graham Facilities Management Ltd,Company,LGSS Managed,Huntingdon Youth Centre,Building Maintenance - Structural Maintenance - Unplanned
Cambridgeshire County Council,09-Sep-16,21569354-13932089,-1264.69,Caretech Community Services,Care Establishment,2 - Operations - Learning Disability,LDP Cambs City - Special Needs,Residential Independent Sector
Cambridgeshire County Council,22-Sep-16,21571017-14053610,-1264.22,Alderton House,Care Establishment,2 - Operations - Learning Disability,LDP E Cambs Locality - Care,Residential Independent Sector
Cambridgeshire County Council,29-Sep-16,21724330-14104448,-1250.25,Eden View,Care Establishment,3 - Operations - Countywide Services,Countywide PD Service - Care,Nursing Independent Sector
Cambridgeshire County Council,29-Sep-16,21724331-14104449,-1250.25,Eden View,Care Establishment,3 - Operations - Countywide Services,Countywide PD Service - Care,Nursing Independent Sector
Cambridgeshire County Council,29-Sep-16,21724333-14104451,-1250.25,Eden View,Care Establishment,3 - Operations - Countywide Services,Countywide PD Service - Care,Nursing Independent Sector
Cambridgeshire County Council,29-Sep-16,21724335-14104453,-1250.25,Eden View,Care Establishment,3 - Operations - Countywide Services,Countywide PD Service - Care,Nursing Independent Sector
Cambridgeshire County Council,29-Sep-16,21724337-14104455,-1250.25,Eden View,Care Establishment,3 - Operations - Countywide Services,Countywide PD Service - Care,Nursing Independent Sector
Cambridgeshire County Council,29-Sep-16,21724339-14104457,-1250.25,Eden View,Care Establishment,3 - Operations - Countywide Services,Countywide PD Service - Care,Nursing Independent Sector
Cambridgeshire County Council,29-Sep-16,21724341-14104459,-1250.25,Eden View,Care Establishment,3 - Operations - Countywide Services,Countywide PD Service - Care,Nursing Independent Sector
Cambridgeshire County Council,29-Sep-16,21724343-14104461,-1250.25,Eden View,Care Establishment,3 - Operations - Countywide Services,Countywide PD Service - Care,Nursing Independent Sector
Cambridgeshire County Council,29-Sep-16,21724348-14104466,-1250.25,Eden View,Care Establishment,3 - Operations - Countywide Services,Countywide PD Service - Care,Nursing Independent Sector
Cambridgeshire County Council,29-Sep-16,21724349-14104467,-1250.25,Eden View,Care Establishment,3 - Operations - Countywide Services,Countywide PD Service - Care,Nursing Independent Sector
Cambridgeshire County Council,29-Sep-16,21724350-14104468,-1250.25,Eden View,Care Establishment,3 - Operations - Countywide Services,Countywide PD Service - Care,Nursing Independent Sector
Cambridgeshire County Council,29-Sep-16,21724353-14104415,-1250.25,Eden View,Care Establishment,3 - Operations - Countywide Services,Countywide PD Service - Care,Nursing Independent Sector
Cambridgeshire County Council,29-Sep-16,21724355-14104417,-1250.25,Eden View,Care Establishment,3 - Operations - Countywide Services,Countywide PD Service - Care,Nursing Independent Sector
Cambridgeshire County Council,29-Sep-16,21724356-14104418,-1250.25,Eden View,Care Establishment,3 - Operations - Countywide Services,Countywide PD Service - Care,Nursing Independent Sector
Cambridgeshire County Council,29-Sep-16,21724357-14104419,-1250.25,Eden View,Care Establishment,3 - Operations - Countywide Services,Countywide PD Service - Care,Nursing Independent Sector
Cambridgeshire County Council,29-Sep-16,21724358-14104420,-1250.25,Eden View,Care Establishment,3 - Operations - Countywide Services,Countywide PD Service - Care,Nursing Independent Sector
Cambridgeshire County Council,29-Sep-16,21724359-14104421,-1250.25,Eden View,Care Establishment,3 - Operations - Countywide Services,Countywide PD Service - Care,Nursing Independent Sector
Cambridgeshire County Council,29-Sep-16,21724360-14104422,-1250.25,Eden View,Care Establishment,3 - Operations - Countywide Services,Countywide PD Service - Care,Nursing Independent Sector
Cambridgeshire County Council,29-Sep-16,21724363-14104425,-1250.25,Eden View,Care Establishment,3 - Operations - Countywide Services,Countywide PD Service - Care,Nursing Independent Sector
Cambridgeshire County Council,29-Sep-16,21724366-14104428,-1250.25,Eden View,Care Establishment,3 - Operations - Countywide Services,Countywide PD Service - Care,Nursing Independent Sector
Cambridgeshire County Council,29-Sep-16,21724367-14104429,-1250.25,Eden View,Care Establishment,3 - Operations - Countywide Services,Countywide PD Service - Care,Nursing Independent Sector
Cambridgeshire County Council,29-Sep-16,21724371-14104433,-1250.25,Eden View,Care Establishment,3 - Operations - Countywide Services,Countywide PD Service - Care,Nursing Independent Sector
Cambridgeshire County Council,29-Sep-16,21724372-14104434,-1250.25,Eden View,Care Establishment,3 - Operations - Countywide Services,Countywide PD Service - Care,Nursing Independent Sector
Cambridgeshire County Council,29-Sep-16,21724375-14104437,-1250.25,Eden View,Care Establishment,3 - Operations - Countywide Services,Countywide PD Service - Care,Nursing Independent Sector
Cambridgeshire County Council,29-Sep-16,21724377-14104439,-1250.25,Eden View,Care Establishment,3 - Operations - Countywide Services,Countywide PD Service - Care,Nursing Independent Sector
Cambridgeshire County Council,29-Sep-16,21724378-14104440,-1250.25,Eden View,Care Establishment,3 - Operations - Countywide Services,Countywide PD Service - Care,Nursing Independent Sector
Cambridgeshire County Council,29-Sep-16,21733127-14104482,-1250.25,Eden View,Care Establishment,3 - Operations - Countywide Services,Countywide PD Service - Care,Nursing Independent Sector
Cambridgeshire County Council,29-Sep-16,21733135-14104488,-1250.25,Eden View,Care Establishment,3 - Operations - Countywide Services,Countywide PD Service - Care,Nursing Independent Sector
Cambridgeshire County Council,29-Sep-16,21733139-14104490,-1250.25,Eden View,Care Establishment,3 - Operations - Countywide Services,Countywide PD Service - Care,Nursing Independent Sector
Cambridgeshire County Council,29-Sep-16,21733143-14104493,-1250.25,Eden View,Care Establishment,3 - Operations - Countywide Services,Countywide PD Service - Care,Nursing Independent Sector
Cambridgeshire County Council,29-Sep-16,21733145-14104495,-1250.25,Eden View,Care Establishment,3 - Operations - Countywide Services,Countywide PD Service - Care,Nursing Independent Sector
Cambridgeshire County Council,29-Sep-16,21733146-14104496,-1250.25,Eden View,Care Establishment,3 - Operations - Countywide Services,Countywide PD Service - Care,Nursing Independent Sector
Cambridgeshire County Council,29-Sep-16,21733148-14104498,-1250.25,Eden View,Care Establishment,3 - Operations - Countywide Services,Countywide PD Service - Care,Nursing Independent Sector
Cambridgeshire County Council,29-Sep-16,21733149-14104499,-1250.25,Eden View,Care Establishment,3 - Operations - Countywide Services,Countywide PD Service - Care,Nursing Independent Sector
Cambridgeshire County Council,29-Sep-16,21733151-14104501,-1250.25,Eden View,Care Establishment,3 - Operations - Countywide Services,Countywide PD Service - Care,Nursing Independent Sector
Cambridgeshire County Council,29-Sep-16,21733156-14104503,-1250.25,Eden View,Care Establishment,3 - Operations - Countywide Services,Countywide PD Service - Care,Nursing Independent Sector
Cambridgeshire County Council,29-Sep-16,21733161-14104507,-1250.25,Eden View,Care Establishment,3 - Operations - Countywide Services,Countywide PD Service - Care,Nursing Independent Sector
Cambridgeshire County Council,29-Sep-16,21733162-14104508,-1250.25,Eden View,Care Establishment,3 - Operations - Countywide Services,Countywide PD Service - Care,Nursing Independent Sector
Cambridgeshire County Council,29-Sep-16,21733170-14104513,-1250.25,Eden View,Care Establishment,3 - Operations - Countywide Services,Countywide PD Service - Care,Nursing Independent Sector
Cambridgeshire County Council,29-Sep-16,21733174-14104517,-1250.25,Eden View,Care Establishment,3 - Operations - Countywide Services,Countywide PD Service - Care,Nursing Independent Sector
Cambridgeshire County Council,29-Sep-16,21733177-14104520,-1250.25,Eden View,Care Establishment,3 - Operations - Countywide Services,Countywide PD Service - Care,Nursing Independent Sector
Cambridgeshire County Council,29-Sep-16,21733178-14104521,-1250.25,Eden View,Care Establishment,3 - Operations - Countywide Services,Countywide PD Service - Care,Nursing Independent Sector
Cambridgeshire County Council,29-Sep-16,21733180-14104523,-1250.25,Eden View,Care Establishment,3 - Operations - Countywide Services,Countywide PD Service - Care,Nursing Independent Sector
Cambridgeshire County Council,29-Sep-16,21733181-14104524,-1250.25,Eden View,Care Establishment,3 - Operations - Countywide Services,Countywide PD Service - Care,Nursing Independent Sector
Cambridgeshire County Council,29-Sep-16,21733182-14104469,-1250.25,Eden View,Care Establishment,3 - Operations - Countywide Services,Countywide PD Service - Care,Nursing Independent Sector
Cambridgeshire County Council,29-Sep-16,21733183-14104470,-1250.25,Eden View,Care Establishment,3 - Operations - Countywide Services,Countywide PD Service - Care,Nursing Independent Sector
Cambridgeshire County Council,29-Sep-16,21733186-14104473,-1250.25,Eden View,Care Establishment,3 - Operations - Countywide Services,Countywide PD Service - Care,Nursing Independent Sector
Cambridgeshire County Council,29-Sep-16,21733187-14104474,-1250.25,Eden View,Care Establishment,3 - Operations - Countywide Services,Countywide PD Service - Care,Nursing Independent Sector
Cambridgeshire County Council,29-Sep-16,21733189-14104475,-1250.25,Eden View,Care Establishment,3 - Operations - Countywide Services,Countywide PD Service - Care,Nursing Independent Sector
Cambridgeshire County Council,29-Sep-16,21733193-14104478,-1250.25,Eden View,Care Establishment,3 - Operations - Countywide Services,Countywide PD Service - Care,Nursing Independent Sector
Cambridgeshire County Council,29-Sep-16,21733194-14104479,-1250.25,Eden View,Care Establishment,3 - Operations - Countywide Services,Countywide PD Service - Care,Nursing Independent Sector
Cambridgeshire County Council,29-Sep-16,21733195-14104480,-1250.25,Eden View,Care Establishment,3 - Operations - Countywide Services,Countywide PD Service - Care,Nursing Independent Sector
Cambridgeshire County Council,29-Sep-16,21733497-14109097,-1244.25,Oaklands Care Home,Care Establishment,3 - Operations - Countywide Services,Countywide PD Service - Care,Nursing Independent Sector
Cambridgeshire County Council,29-Sep-16,21733498-14109098,-1244.25,Oaklands Care Home,Care Establishment,3 - Operations - Countywide Services,Countywide PD Service - Care,Nursing Independent Sector
Cambridgeshire County Council,29-Sep-16,21733499-14109099,-1244.25,Oaklands Care Home,Care Establishment,3 - Operations - Countywide Services,Countywide PD Service - Care,Nursing Independent Sector
Cambridgeshire County Council,29-Sep-16,21733502-14109100,-1244.25,Oaklands Care Home,Care Establishment,3 - Operations - Countywide Services,Countywide PD Service - Care,Nursing Independent Sector
Cambridgeshire County Council,29-Sep-16,21733513-14109103,-1244.25,Oaklands Care Home,Care Establishment,3 - Operations - Countywide Services,Countywide PD Service - Care,Nursing Independent Sector
Cambridgeshire County Council,29-Sep-16,21733514-14109104,-1244.25,Oaklands Care Home,Care Establishment,3 - Operations - Countywide Services,Countywide PD Service - Care,Nursing Independent Sector
Cambridgeshire County Council,29-Sep-16,21733515-14109105,-1244.25,Oaklands Care Home,Care Establishment,3 - Operations - Countywide Services,Countywide PD Service - Care,Nursing Independent Sector
Cambridgeshire County Council,29-Sep-16,21733516-14109106,-1244.25,Oaklands Care Home,Care Establishment,3 - Operations - Countywide Services,Countywide PD Service - Care,Nursing Independent Sector
Cambridgeshire County Council,29-Sep-16,21733521-14109107,-1244.25,Oaklands Care Home,Care Establishment,3 - Operations - Countywide Services,Countywide PD Service - Care,Nursing Independent Sector
Cambridgeshire County Council,29-Sep-16,21733528-14109057,-1244.25,Oaklands Care Home,Care Establishment,3 - Operations - Countywide Services,Countywide PD Service - Care,Nursing Independent Sector
Cambridgeshire County Council,29-Sep-16,21733530-14109058,-1244.25,Oaklands Care Home,Care Establishment,3 - Operations - Countywide Services,Countywide PD Service - Care,Nursing Independent Sector
Cambridgeshire County Council,29-Sep-16,21733531-14109059,-1244.25,Oaklands Care Home,Care Establishment,3 - Operations - Countywide Services,Countywide PD Service - Care,Nursing Independent Sector
Cambridgeshire County Council,29-Sep-16,21733536-14109061,-1244.25,Oaklands Care Home,Care Establishment,3 - Operations - Countywide Services,Countywide PD Service - Care,Nursing Independent Sector
Cambridgeshire County Council,29-Sep-16,21733546-14109069,-1244.25,Oaklands Care Home,Care Establishment,3 - Operations - Countywide Services,Countywide PD Service - Care,Nursing Independent Sector
Cambridgeshire County Council,29-Sep-16,21733550-14109071,-1244.25,Oaklands Care Home,Care Establishment,3 - Operations - Countywide Services,Countywide PD Service - Care,Nursing Independent Sector
Cambridgeshire County Council,29-Sep-16,21733551-14109072,-1244.25,Oaklands Care Home,Care Establishment,3 - Operations - Countywide Services,Countywide PD Service - Care,Nursing Independent Sector
Cambridgeshire County Council,29-Sep-16,21733552-14109073,-1244.25,Oaklands Care Home,Care Establishment,3 - Operations - Countywide Services,Countywide PD Service - Care,Nursing Independent Sector
Cambridgeshire County Council,29-Sep-16,21733560-14109076,-1244.25,Oaklands Care Home,Care Establishment,3 - Operations - Countywide Services,Countywide PD Service - Care,Nursing Independent Sector
Cambridgeshire County Council,29-Sep-16,21733567-14109080,-1244.25,Oaklands Care Home,Care Establishment,3 - Operations - Countywide Services,Countywide PD Service - Care,Nursing Independent Sector
Cambridgeshire County Council,29-Sep-16,21733571-14109083,-1244.25,Oaklands Care Home,Care Establishment,3 - Operations - Countywide Services,Countywide PD Service - Care,Nursing Independent Sector
Cambridgeshire County Council,29-Sep-16,21733583-14109087,-1244.25,Oaklands Care Home,Care Establishment,3 - Operations - Countywide Services,Countywide PD Service - Care,Nursing Independent Sector
Cambridgeshire County Council,29-Sep-16,21733587-14109089,-1244.25,Oaklands Care Home,Care Establishment,3 - Operations - Countywide Services,Countywide PD Service - Care,Nursing Independent Sector
Cambridgeshire County Council,29-Sep-16,21733280-14109014,-1240.84,Oaklands Care Home,Care Establishment,2 - Commissioning - Older people Pool,Older People - City & South,Nursing Independent Sector
Cambridgeshire County Council,29-Sep-16,21733281-14109015,-1240.84,Oaklands Care Home,Care Establishment,2 - Commissioning - Older people Pool,Older People - City & South,Nursing Independent Sector
Cambridgeshire County Council,29-Sep-16,21733284-14109016,-1240.84,Oaklands Care Home,Care Establishment,2 - Commissioning - Older people Pool,Older People - City & South,Nursing Independent Sector
Cambridgeshire County Council,29-Sep-16,21733292-14109017,-1240.84,Oaklands Care Home,Care Establishment,2 - Commissioning - Older people Pool,Older People - City & South,Nursing Independent Sector
Cambridgeshire County Council,29-Sep-16,21733293-14109018,-1240.84,Oaklands Care Home,Care Establishment,2 - Commissioning - Older people Pool,Older People - City & South,Nursing Independent Sector
Cambridgeshire County Council,29-Sep-16,21733298-14109021,-1240.84,Oaklands Care Home,Care Establishment,2 - Commissioning - Older people Pool,Older People - City & South,Nursing Independent Sector
Cambridgeshire County Council,29-Sep-16,21733299-14109022,-1240.84,Oaklands Care Home,Care Establishment,2 - Commissioning - Older people Pool,Older People - City & South,Nursing Independent Sector
Cambridgeshire County Council,29-Sep-16,21733317-14109026,-1240.84,Oaklands Care Home,Care Establishment,2 - Commissioning - Older people Pool,Older People - City & South,Nursing Independent Sector
Cambridgeshire County Council,29-Sep-16,21733318-14109027,-1240.84,Oaklands Care Home,Care Establishment,2 - Commissioning - Older people Pool,Older People - City & South,Nursing Independent Sector
Cambridgeshire County Council,29-Sep-16,21733330-14109032,-1240.84,Oaklands Care Home,Care Establishment,2 - Commissioning - Older people Pool,Older People - City & South,Nursing Independent Sector
Cambridgeshire County Council,29-Sep-16,21733336-14109035,-1240.84,Oaklands Care Home,Care Establishment,2 - Commissioning - Older people Pool,Older People - City & South,Nursing Independent Sector
Cambridgeshire County Council,29-Sep-16,21733351-14109038,-1240.84,Oaklands Care Home,Care Establishment,2 - Commissioning - Older people Pool,Older People - City & South,Nursing Independent Sector
Cambridgeshire County Council,29-Sep-16,21733972-14109129,-1240.84,Oaklands Care Home,Care Establishment,2 - Commissioning - Older people Pool,Older People - City & South,Nursing Independent Sector
Cambridgeshire County Council,29-Sep-16,21733973-14109130,-1240.84,Oaklands Care Home,Care Establishment,2 - Commissioning - Older people Pool,Older People - City & South,Nursing Independent Sector
Cambridgeshire County Council,29-Sep-16,21733984-14109131,-1240.84,Oaklands Care Home,Care Establishment,2 - Commissioning - Older people Pool,Older People - City & South,Nursing Independent Sector
Cambridgeshire County Council,29-Sep-16,21733985-14109132,-1240.84,Oaklands Care Home,Care Establishment,2 - Commissioning - Older people Pool,Older People - City & South,Nursing Independent Sector
Cambridgeshire County Council,29-Sep-16,21733993-14109136,-1240.84,Oaklands Care Home,Care Establishment,2 - Commissioning - Older people Pool,Older People - City & South,Nursing Independent Sector
Cambridgeshire County Council,29-Sep-16,21733994-14109137,-1240.84,Oaklands Care Home,Care Establishment,2 - Commissioning - Older people Pool,Older People - City & South,Nursing Independent Sector
Cambridgeshire County Council,29-Sep-16,21733996-14109139,-1240.84,Oaklands Care Home,Care Establishment,2 - Commissioning - Older people Pool,Older People - City & South,Nursing Independent Sector
Cambridgeshire County Council,29-Sep-16,21734001-14109141,-1240.84,Oaklands Care Home,Care Establishment,2 - Commissioning - Older people Pool,Older People - City & South,Nursing Independent Sector
Cambridgeshire County Council,29-Sep-16,21734002-14109142,-1240.84,Oaklands Care Home,Care Establishment,2 - Commissioning - Older people Pool,Older People - City & South,Nursing Independent Sector
Cambridgeshire County Council,29-Sep-16,21734003-14109143,-1240.84,Oaklands Care Home,Care Establishment,2 - Commissioning - Older people Pool,Older People - City & South,Nursing Independent Sector
Cambridgeshire County Council,09-Sep-16,21560254-13930904,-1240.7,Caretech Community Services,Care Establishment,2 - Operations - Learning Disability,LDP South Cambs Locality - Care,Residential Independent Sector
Cambridgeshire County Council,22-Sep-16,21678358-14048763,-1211.52,Hft Trust Ltd,Care Establishment,2 - Operations - Learning Disability,LDP Fenland Locality - Care,Residential Independent Sector
Cambridgeshire County Council,09-Sep-16,21554745-13944048,-1206,Eden View,Care Establishment,3 - Operations - Countywide Services,Countywide PD Service - Care,Nursing Independent Sector
Cambridgeshire County Council,09-Sep-16,21554746-13944049,-1206,Eden View,Care Establishment,3 - Operations - Countywide Services,Countywide PD Service - Care,Nursing Independent Sector
Cambridgeshire County Council,09-Sep-16,21554747-13944050,-1206,Eden View,Care Establishment,3 - Operations - Countywide Services,Countywide PD Service - Care,Nursing Independent Sector
Cambridgeshire County Council,09-Sep-16,21554748-13944051,-1206,Eden View,Care Establishment,3 - Operations - Countywide Services,Countywide PD Service - Care,Nursing Independent Sector
Cambridgeshire County Council,09-Sep-16,21554749-13944052,-1206,Eden View,Care Establishment,3 - Operations - Countywide Services,Countywide PD Service - Care,Nursing Independent Sector
Cambridgeshire County Council,09-Sep-16,21554750-13944053,-1206,Eden View,Care Establishment,3 - Operations - Countywide Services,Countywide PD Service - Care,Nursing Independent Sector
Cambridgeshire County Council,09-Sep-16,21554847-13944032,-1206,Eden View,Care Establishment,3 - Operations - Countywide Services,Countywide PD Service - Care,Nursing Independent Sector
Cambridgeshire County Council,09-Sep-16,21554856-13944041,-1206,Eden View,Care Establishment,3 - Operations - Countywide Services,Countywide PD Service - Care,Nursing Independent Sector
Cambridgeshire County Council,09-Sep-16,21554857-13944042,-1206,Eden View,Care Establishment,3 - Operations - Countywide Services,Countywide PD Service - Care,Nursing Independent Sector
Cambridgeshire County Council,09-Sep-16,21554858-13944043,-1206,Eden View,Care Establishment,3 - Operations - Countywide Services,Countywide PD Service - Care,Nursing Independent Sector
Cambridgeshire County Council,09-Sep-16,21554859-13944044,-1206,Eden View,Care Establishment,3 - Operations - Countywide Services,Countywide PD Service - Care,Nursing Independent Sector
Cambridgeshire County Council,09-Sep-16,21557143-13944022,-1206,Eden View,Care Establishment,3 - Operations - Countywide Services,Countywide PD Service - Care,Nursing Independent Sector
Cambridgeshire County Council,09-Sep-16,21557144-13944023,-1206,Eden View,Care Establishment,3 - Operations - Countywide Services,Countywide PD Service - Care,Nursing Independent Sector
Cambridgeshire County Council,09-Sep-16,21557146-13944025,-1206,Eden View,Care Establishment,3 - Operations - Countywide Services,Countywide PD Service - Care,Nursing Independent Sector
Cambridgeshire County Council,09-Sep-16,21557148-13944007,-1206,Eden View,Care Establishment,3 - Operations - Countywide Services,Countywide PD Service - Care,Nursing Independent Sector
Cambridgeshire County Council,09-Sep-16,21557149-13944008,-1206,Eden View,Care Establishment,3 - Operations - Countywide Services,Countywide PD Service - Care,Nursing Independent Sector
Cambridgeshire County Council,09-Sep-16,21557151-13944010,-1206,Eden View,Care Establishment,3 - Operations - Countywide Services,Countywide PD Service - Care,Nursing Independent Sector
Cambridgeshire County Council,09-Sep-16,21557153-13944012,-1206,Eden View,Care Establishment,3 - Operations - Countywide Services,Countywide PD Service - Care,Nursing Independent Sector
Cambridgeshire County Council,09-Sep-16,21557155-13944014,-1206,Eden View,Care Establishment,3 - Operations - Countywide Services,Countywide PD Service - Care,Nursing Independent Sector
Cambridgeshire County Council,09-Sep-16,21557157-13944016,-1206,Eden View,Care Establishment,3 - Operations - Countywide Services,Countywide PD Service - Care,Nursing Independent Sector
Cambridgeshire County Council,09-Sep-16,21557158-13944017,-1206,Eden View,Care Establishment,3 - Operations - Countywide Services,Countywide PD Service - Care,Nursing Independent Sector
Cambridgeshire County Council,09-Sep-16,21557159-13944018,-1206,Eden View,Care Establishment,3 - Operations - Countywide Services,Countywide PD Service - Care,Nursing Independent Sector
Cambridgeshire County Council,09-Sep-16,21559430-13943978,-1206,Eden View,Care Establishment,3 - Operations - Countywide Services,Countywide PD Service - Care,Nursing Independent Sector
Cambridgeshire County Council,09-Sep-16,21559433-13943981,-1206,Eden View,Care Establishment,3 - Operations - Countywide Services,Countywide PD Service - Care,Nursing Independent Sector
Cambridgeshire County Council,09-Sep-16,21559437-13943985,-1206,Eden View,Care Establishment,3 - Operations - Countywide Services,Countywide PD Service - Care,Nursing Independent Sector
Cambridgeshire County Council,09-Sep-16,21559438-13943986,-1206,Eden View,Care Establishment,3 - Operations - Countywide Services,Countywide PD Service - Care,Nursing Independent Sector
Cambridgeshire County Council,09-Sep-16,21559439-13943987,-1206,Eden View,Care Establishment,3 - Operations - Countywide Services,Countywide PD Service - Care,Nursing Independent Sector
Cambridgeshire County Council,09-Sep-16,21559444-13943993,-1206,Eden View,Care Establishment,3 - Operations - Countywide Services,Countywide PD Service - Care,Nursing Independent Sector
Cambridgeshire County Council,09-Sep-16,21559445-13943994,-1206,Eden View,Care Establishment,3 - Operations - Countywide Services,Countywide PD Service - Care,Nursing Independent Sector
Cambridgeshire County Council,09-Sep-16,21559446-13943995,-1206,Eden View,Care Establishment,3 - Operations - Countywide Services,Countywide PD Service - Care,Nursing Independent Sector
Cambridgeshire County Council,09-Sep-16,21559448-13943997,-1206,Eden View,Care Establishment,3 - Operations - Countywide Services,Countywide PD Service - Care,Nursing Independent Sector
Cambridgeshire County Council,09-Sep-16,21559449-13943998,-1206,Eden View,Care Establishment,3 - Operations - Countywide Services,Countywide PD Service - Care,Nursing Independent Sector
Cambridgeshire County Council,09-Sep-16,21559451-13944000,-1206,Eden View,Care Establishment,3 - Operations - Countywide Services,Countywide PD Service - Care,Nursing Independent Sector
Cambridgeshire County Council,09-Sep-16,21559452-13944001,-1206,Eden View,Care Establishment,3 - Operations - Countywide Services,Countywide PD Service - Care,Nursing Independent Sector
Cambridgeshire County Council,09-Sep-16,21559457-13944006,-1206,Eden View,Care Establishment,3 - Operations - Countywide Services,Countywide PD Service - Care,Nursing Independent Sector
Cambridgeshire County Council,09-Sep-16,21559458-13943989,-1206,Eden View,Care Establishment,3 - Operations - Countywide Services,Countywide PD Service - Care,Nursing Independent Sector
Cambridgeshire County Council,09-Sep-16,21562265-13944027,-1206,Eden View,Care Establishment,3 - Operations - Countywide Services,Countywide PD Service - Care,Nursing Independent Sector
Cambridgeshire County Council,09-Sep-16,21562267-13944029,-1206,Eden View,Care Establishment,3 - Operations - Countywide Services,Countywide PD Service - Care,Nursing Independent Sector
Cambridgeshire County Council,09-Sep-16,21568867-13944056,-1206,Eden View,Care Establishment,3 - Operations - Countywide Services,Countywide PD Service - Care,Nursing Independent Sector
Cambridgeshire County Council,09-Sep-16,21568871-13944060,-1206,Eden View,Care Establishment,3 - Operations - Countywide Services,Countywide PD Service - Care,Nursing Independent Sector
Cambridgeshire County Council,09-Sep-16,21568873-13944062,-1206,Eden View,Care Establishment,3 - Operations - Countywide Services,Countywide PD Service - Care,Nursing Independent Sector
Cambridgeshire County Council,09-Sep-16,21568879-13944068,-1206,Eden View,Care Establishment,3 - Operations - Countywide Services,Countywide PD Service - Care,Nursing Independent Sector
Cambridgeshire County Council,09-Sep-16,21568880-13944069,-1206,Eden View,Care Establishment,3 - Operations - Countywide Services,Countywide PD Service - Care,Nursing Independent Sector
Cambridgeshire County Council,09-Sep-16,21568882-13944071,-1206,Eden View,Care Establishment,3 - Operations - Countywide Services,Countywide PD Service - Care,Nursing Independent Sector
Cambridgeshire County Council,09-Sep-16,21568888-13944077,-1206,Eden View,Care Establishment,3 - Operations - Countywide Services,Countywide PD Service - Care,Nursing Independent Sector
Cambridgeshire County Council,09-Sep-16,21568889-13944078,-1206,Eden View,Care Establishment,3 - Operations - Countywide Services,Countywide PD Service - Care,Nursing Independent Sector
Cambridgeshire County Council,09-Sep-16,21568891-13944080,-1206,Eden View,Care Establishment,3 - Operations - Countywide Services,Countywide PD Service - Care,Nursing Independent Sector
Cambridgeshire County Council,09-Sep-16,21568892-13944081,-1206,Eden View,Care Establishment,3 - Operations - Countywide Services,Countywide PD Service - Care,Nursing Independent Sector
Cambridgeshire County Council,09-Sep-16,21568894-13944083,-1206,Eden View,Care Establishment,3 - Operations - Countywide Services,Countywide PD Service - Care,Nursing Independent Sector
Cambridgeshire County Council,09-Sep-16,21568896-13944055,-1206,Eden View,Care Establishment,3 - Operations - Countywide Services,Countywide PD Service - Care,Nursing Independent Sector
Cambridgeshire County Council,29-Sep-16,21719875-14112975,-1201.46,Cottenham Court Nursing Home,Care Establishment,3 - Operations - Countywide Services,Countywide PD Service - Care,Nursing Independent Sector
Cambridgeshire County Council,29-Sep-16,21719876-14112976,-1201.46,Cottenham Court Nursing Home,Care Establishment,3 - Operations - Countywide Services,Countywide PD Service - Care,Nursing Independent Sector
Cambridgeshire County Council,29-Sep-16,21719877-14112977,-1201.46,Cottenham Court Nursing Home,Care Establishment,3 - Operations - Countywide Services,Countywide PD Service - Care,Nursing Independent Sector
Cambridgeshire County Council,29-Sep-16,21719878-14112978,-1201.46,Cottenham Court Nursing Home,Care Establishment,3 - Operations - Countywide Services,Countywide PD Service - Care,Nursing Independent Sector
Cambridgeshire County Council,29-Sep-16,21719879-14112979,-1201.46,Cottenham Court Nursing Home,Care Establishment,3 - Operations - Countywide Services,Countywide PD Service - Care,Nursing Independent Sector
Cambridgeshire County Council,29-Sep-16,21719880-14112980,-1201.46,Cottenham Court Nursing Home,Care Establishment,3 - Operations - Countywide Services,Countywide PD Service - Care,Nursing Independent Sector
Cambridgeshire County Council,29-Sep-16,21719881-14112981,-1201.46,Cottenham Court Nursing Home,Care Establishment,3 - Operations - Countywide Services,Countywide PD Service - Care,Nursing Independent Sector
Cambridgeshire County Council,29-Sep-16,21719882-14112982,-1201.46,Cottenham Court Nursing Home,Care Establishment,3 - Operations - Countywide Services,Countywide PD Service - Care,Nursing Independent Sector
Cambridgeshire County Council,29-Sep-16,21719883-14112983,-1201.46,Cottenham Court Nursing Home,Care Establishment,3 - Operations - Countywide Services,Countywide PD Service - Care,Nursing Independent Sector
Cambridgeshire County Council,29-Sep-16,21719885-14112985,-1201.46,Cottenham Court Nursing Home,Care Establishment,3 - Operations - Countywide Services,Countywide PD Service - Care,Nursing Independent Sector
Cambridgeshire County Council,29-Sep-16,21719888-14112988,-1201.46,Cottenham Court Nursing Home,Care Establishment,3 - Operations - Countywide Services,Countywide PD Service - Care,Nursing Independent Sector
Cambridgeshire County Council,29-Sep-16,21719891-14112991,-1201.46,Cottenham Court Nursing Home,Care Establishment,3 - Operations - Countywide Services,Countywide PD Service - Care,Nursing Independent Sector
Cambridgeshire County Council,29-Sep-16,21719893-14112993,-1201.46,Cottenham Court Nursing Home,Care Establishment,3 - Operations - Countywide Services,Countywide PD Service - Care,Nursing Independent Sector
Cambridgeshire County Council,29-Sep-16,21719896-14112996,-1201.46,Cottenham Court Nursing Home,Care Establishment,3 - Operations - Countywide Services,Countywide PD Service - Care,Nursing Independent Sector
Cambridgeshire County Council,29-Sep-16,21719900-14113000,-1201.46,Cottenham Court Nursing Home,Care Establishment,3 - Operations - Countywide Services,Countywide PD Service - Care,Nursing Independent Sector
Cambridgeshire County Council,29-Sep-16,21719901-14113001,-1201.46,Cottenham Court Nursing Home,Care Establishment,3 - Operations - Countywide Services,Countywide PD Service - Care,Nursing Independent Sector
Cambridgeshire County Council,29-Sep-16,21719902-14113002,-1201.46,Cottenham Court Nursing Home,Care Establishment,3 - Operations - Countywide Services,Countywide PD Service - Care,Nursing Independent Sector
Cambridgeshire County Council,29-Sep-16,21719904-14113004,-1201.46,Cottenham Court Nursing Home,Care Establishment,3 - Operations - Countywide Services,Countywide PD Service - Care,Nursing Independent Sector
Cambridgeshire County Council,29-Sep-16,21719907-14113007,-1201.46,Cottenham Court Nursing Home,Care Establishment,3 - Operations - Countywide Services,Countywide PD Service - Care,Nursing Independent Sector
Cambridgeshire County Council,29-Sep-16,21719909-14113009,-1201.46,Cottenham Court Nursing Home,Care Establishment,3 - Operations - Countywide Services,Countywide PD Service - Care,Nursing Independent Sector
Cambridgeshire County Council,29-Sep-16,21719913-14113013,-1201.46,Cottenham Court Nursing Home,Care Establishment,3 - Operations - Countywide Services,Countywide PD Service - Care,Nursing Independent Sector
Cambridgeshire County Council,29-Sep-16,21719915-14113015,-1201.46,Cottenham Court Nursing Home,Care Establishment,3 - Operations - Countywide Services,Countywide PD Service - Care,Nursing Independent Sector
Cambridgeshire County Council,09-Sep-16,21569242-13937506,-1200,Oaklands Care Home,Care Establishment,3 - Operations - Countywide Services,Countywide PD Service - Care,Nursing Independent Sector
Cambridgeshire County Council,09-Sep-16,21569246-13937507,-1200,Oaklands Care Home,Care Establishment,3 - Operations - Countywide Services,Countywide PD Service - Care,Nursing Independent Sector
Cambridgeshire County Council,09-Sep-16,21569247-13937508,-1200,Oaklands Care Home,Care Establishment,3 - Operations - Countywide Services,Countywide PD Service - Care,Nursing Independent Sector
Cambridgeshire County Council,09-Sep-16,21569249-13937510,-1200,Oaklands Care Home,Care Establishment,3 - Operations - Countywide Services,Countywide PD Service - Care,Nursing Independent Sector
Cambridgeshire County Council,09-Sep-16,21569252-13937513,-1200,Oaklands Care Home,Care Establishment,3 - Operations - Countywide Services,Countywide PD Service - Care,Nursing Independent Sector
Cambridgeshire County Council,09-Sep-16,21569260-13937487,-1200,Oaklands Care Home,Care Establishment,3 - Operations - Countywide Services,Countywide PD Service - Care,Nursing Independent Sector
Cambridgeshire County Council,09-Sep-16,21569264-13937488,-1200,Oaklands Care Home,Care Establishment,3 - Operations - Countywide Services,Countywide PD Service - Care,Nursing Independent Sector
Cambridgeshire County Council,09-Sep-16,21569268-13937492,-1200,Oaklands Care Home,Care Establishment,3 - Operations - Countywide Services,Countywide PD Service - Care,Nursing Independent Sector
Cambridgeshire County Council,09-Sep-16,21569270-13937493,-1200,Oaklands Care Home,Care Establishment,3 - Operations - Countywide Services,Countywide PD Service - Care,Nursing Independent Sector
Cambridgeshire County Council,09-Sep-16,21569273-13937497,-1200,Oaklands Care Home,Care Establishment,3 - Operations - Countywide Services,Countywide PD Service - Care,Nursing Independent Sector
Cambridgeshire County Council,09-Sep-16,21569276-13937498,-1200,Oaklands Care Home,Care Establishment,3 - Operations - Countywide Services,Countywide PD Service - Care,Nursing Independent Sector
Cambridgeshire County Council,09-Sep-16,21569282-13937500,-1200,Oaklands Care Home,Care Establishment,3 - Operations - Countywide Services,Countywide PD Service - Care,Nursing Independent Sector
Cambridgeshire County Council,09-Sep-16,21569289-13937494,-1200,Oaklands Care Home,Care Establishment,3 - Operations - Countywide Services,Countywide PD Service - Care,Nursing Independent Sector
Cambridgeshire County Council,09-Sep-16,21569888-13937411,-1200,Oaklands Care Home,Care Establishment,3 - Operations - Countywide Services,Countywide PD Service - Care,Nursing Independent Sector
Cambridgeshire County Council,09-Sep-16,21569889-13937412,-1200,Oaklands Care Home,Care Establishment,3 - Operations - Countywide Services,Countywide PD Service - Care,Nursing Independent Sector
Cambridgeshire County Council,09-Sep-16,21569895-13937414,-1200,Oaklands Care Home,Care Establishment,3 - Operations - Countywide Services,Countywide PD Service - Care,Nursing Independent Sector
Cambridgeshire County Council,09-Sep-16,21569896-13937415,-1200,Oaklands Care Home,Care Establishment,3 - Operations - Countywide Services,Countywide PD Service - Care,Nursing Independent Sector
Cambridgeshire County Council,09-Sep-16,21569907-13937383,-1200,Oaklands Care Home,Care Establishment,3 - Operations - Countywide Services,Countywide PD Service - Care,Nursing Independent Sector
Cambridgeshire County Council,09-Sep-16,21569908-13937384,-1200,Oaklands Care Home,Care Establishment,3 - Operations - Countywide Services,Countywide PD Service - Care,Nursing Independent Sector
Cambridgeshire County Council,29-Sep-16,21673002-14108582,-1198.4,Caretech Community Services,Care Establishment,2 - Operations - Learning Disability,LDP South Cambs Locality - Care,Residential Independent Sector
Cambridgeshire County Council,29-Sep-16,21673004-14108584,-1198.4,Caretech Community Services,Care Establishment,2 - Operations - Learning Disability,LDP South Cambs Locality - Care,Residential Independent Sector
Cambridgeshire County Council,29-Sep-16,21673005-14108585,-1198.4,Caretech Community Services,Care Establishment,2 - Operations - Learning Disability,LDP South Cambs Locality - Care,Residential Independent Sector
Cambridgeshire County Council,01-Sep-16,21525654-13902508,-1198.37,Victoria Lodge Ltd,Care Establishment,2 - Operations - Learning Disability,LDP E Cambs Special Needs,Residential Independent Sector
Cambridgeshire County Council,29-Sep-16,21677437-14108598,-1198.04,Caretech Community Services,Care Establishment,2 - Operations - Learning Disability,LDP South Cambs Locality - Care,Residential Independent Sector
Cambridgeshire County Council,29-Sep-16,21677441-14108602,-1198.04,Caretech Community Services,Care Establishment,2 - Operations - Learning Disability,LDP South Cambs - Special Needs,Residential Independent Sector
Cambridgeshire County Council,29-Sep-16,21677442-14108603,-1198.04,Caretech Community Services,Care Establishment,2 - Operations - Learning Disability,LDP South Cambs Locality - Care,Residential Independent Sector
Cambridgeshire County Council,29-Sep-16,21677443-14108604,-1198.04,Caretech Community Services,Care Establishment,2 - Operations - Learning Disability,LDP South Cambs - Special Needs,Residential Independent Sector
Cambridgeshire County Council,29-Sep-16,21677444-14108605,-1198.04,Caretech Community Services,Care Establishment,2 - Operations - Learning Disability,LDP South Cambs - Special Needs,Residential Independent Sector
Cambridgeshire County Council,29-Sep-16,21677445-14108606,-1198.04,Caretech Community Services,Care Establishment,2 - Operations - Learning Disability,LDP South Cambs Locality - Care,Residential Independent Sector
Cambridgeshire County Council,29-Sep-16,21677446-14108607,-1198.04,Caretech Community Services,Care Establishment,2 - Operations - Learning Disability,LDP South Cambs Locality - Care,Residential Independent Sector
Cambridgeshire County Council,29-Sep-16,21677448-14108609,-1198.04,Caretech Community Services,Care Establishment,2 - Operations - Learning Disability,LDP South Cambs Locality - Care,Residential Independent Sector
Cambridgeshire County Council,29-Sep-16,21677449-14108610,-1198.04,Caretech Community Services,Care Establishment,2 - Operations - Learning Disability,LDP South Cambs Locality - Care,Residential Independent Sector
Cambridgeshire County Council,29-Sep-16,21677456-14108617,-1198.04,Caretech Community Services,Care Establishment,2 - Operations - Learning Disability,LDP South Cambs Locality - Care,Residential Independent Sector
Cambridgeshire County Council,29-Sep-16,21677457-14108618,-1198.04,Caretech Community Services,Care Establishment,2 - Operations - Learning Disability,LDP South Cambs Locality - Care,Residential Independent Sector
Cambridgeshire County Council,29-Sep-16,21677463-14108624,-1198.04,Caretech Community Services,Care Establishment,2 - Operations - Learning Disability,LDP South Cambs Locality - Care,Residential Independent Sector
Cambridgeshire County Council,29-Sep-16,21677464-14108625,-1198.04,Caretech Community Services,Care Establishment,2 - Operations - Learning Disability,LDP South Cambs - Special Needs,Residential Independent Sector
Cambridgeshire County Council,29-Sep-16,21677465-14108626,-1198.04,Caretech Community Services,Care Establishment,2 - Operations - Learning Disability,LDP South Cambs - Special Needs,Residential Independent Sector
Cambridgeshire County Council,29-Sep-16,21677466-14108627,-1198.04,Caretech Community Services,Care Establishment,2 - Operations - Learning Disability,LDP South Cambs - Special Needs,Residential Independent Sector
Cambridgeshire County Council,29-Sep-16,21677467-14108628,-1198.04,Caretech Community Services,Care Establishment,2 - Operations - Learning Disability,LDP South Cambs Locality - Care,Residential Independent Sector
Cambridgeshire County Council,29-Sep-16,21677468-14108629,-1198.04,Caretech Community Services,Care Establishment,2 - Operations - Learning Disability,LDP South Cambs - Special Needs,Residential Independent Sector
Cambridgeshire County Council,29-Sep-16,21677471-14108632,-1198.04,Caretech Community Services,Care Establishment,2 - Operations - Learning Disability,LDP South Cambs - Special Needs,Residential Independent Sector
Cambridgeshire County Council,29-Sep-16,21677473-14108634,-1198.04,Caretech Community Services,Care Establishment,2 - Operations - Learning Disability,LDP South Cambs - Special Needs,Residential Independent Sector
Cambridgeshire County Council,29-Sep-16,21677476-14108637,-1198.04,Caretech Community Services,Care Establishment,2 - Operations - Learning Disability,LDP South Cambs - Special Needs,Residential Independent Sector
Cambridgeshire County Council,29-Sep-16,21677477-14108638,-1198.04,Caretech Community Services,Care Establishment,2 - Operations - Learning Disability,LDP South Cambs Locality - Care,Residential Independent Sector
Cambridgeshire County Council,29-Sep-16,21677479-14108640,-1198.04,Caretech Community Services,Care Establishment,2 - Operations - Learning Disability,LDP South Cambs - Special Needs,Residential Independent Sector
Cambridgeshire County Council,29-Sep-16,21677480-14108641,-1198.04,Caretech Community Services,Care Establishment,2 - Operations - Learning Disability,LDP South Cambs - Special Needs,Residential Independent Sector
Cambridgeshire County Council,29-Sep-16,21677481-14108642,-1198.04,Caretech Community Services,Care Establishment,2 - Operations - Learning Disability,LDP South Cambs - Special Needs,Residential Independent Sector
Cambridgeshire County Council,29-Sep-16,21677487-14108648,-1198.04,Caretech Community Services,Care Establishment,2 - Operations - Learning Disability,LDP South Cambs - Special Needs,Residential Independent Sector
Cambridgeshire County Council,29-Sep-16,21677489-14108650,-1198.04,Caretech Community Services,Care Establishment,2 - Operations - Learning Disability,LDP South Cambs - Special Needs,Residential Independent Sector
Cambridgeshire County Council,29-Sep-16,21677490-14108651,-1198.04,Caretech Community Services,Care Establishment,2 - Operations - Learning Disability,LDP South Cambs Locality - Care,Residential Independent Sector
Cambridgeshire County Council,29-Sep-16,21717952-14108662,-1198.04,Caretech Community Services,Care Establishment,2 - Operations - Learning Disability,LDP South Cambs Locality - Care,Residential Independent Sector
Cambridgeshire County Council,29-Sep-16,21717954-14108664,-1198.04,Caretech Community Services,Care Establishment,2 - Operations - Learning Disability,LDP South Cambs - Special Needs,Residential Independent Sector
Cambridgeshire County Council,29-Sep-16,21717955-14108665,-1198.04,Caretech Community Services,Care Establishment,2 - Operations - Learning Disability,LDP South Cambs Locality - Care,Residential Independent Sector
Cambridgeshire County Council,29-Sep-16,21717959-14108669,-1198.04,Caretech Community Services,Care Establishment,2 - Operations - Learning Disability,LDP South Cambs Locality - Care,Residential Independent Sector
Cambridgeshire County Council,29-Sep-16,21717960-14108670,-1198.04,Caretech Community Services,Care Establishment,2 - Operations - Learning Disability,LDP South Cambs - Special Needs,Residential Independent Sector
Cambridgeshire County Council,29-Sep-16,21717961-14108671,-1198.04,Caretech Community Services,Care Establishment,2 - Operations - Learning Disability,LDP South Cambs - Special Needs,Residential Independent Sector
Cambridgeshire County Council,29-Sep-16,21717963-14108673,-1198.04,Caretech Community Services,Care Establishment,2 - Operations - Learning Disability,LDP South Cambs - Special Needs,Residential Independent Sector
Cambridgeshire County Council,29-Sep-16,21717964-14108674,-1198.04,Caretech Community Services,Care Establishment,2 - Operations - Learning Disability,LDP South Cambs - Special Needs,Residential Independent Sector
Cambridgeshire County Council,29-Sep-16,21717965-14108675,-1198.04,Caretech Community Services,Care Establishment,2 - Operations - Learning Disability,LDP South Cambs Locality - Care,Residential Independent Sector
Cambridgeshire County Council,29-Sep-16,21717966-14108676,-1198.04,Caretech Community Services,Care Establishment,2 - Operations - Learning Disability,LDP South Cambs Locality - Care,Residential Independent Sector
Cambridgeshire County Council,29-Sep-16,21717967-14108677,-1198.04,Caretech Community Services,Care Establishment,2 - Operations - Learning Disability,LDP South Cambs - Special Needs,Residential Independent Sector
Cambridgeshire County Council,29-Sep-16,21717968-14108678,-1198.04,Caretech Community Services,Care Establishment,2 - Operations - Learning Disability,LDP South Cambs - Special Needs,Residential Independent Sector
Cambridgeshire County Council,29-Sep-16,21717971-14108681,-1198.04,Caretech Community Services,Care Establishment,2 - Operations - Learning Disability,LDP South Cambs Locality - Care,Residential Independent Sector
Cambridgeshire County Council,29-Sep-16,21717972-14108682,-1198.04,Caretech Community Services,Care Establishment,2 - Operations - Learning Disability,LDP South Cambs - Special Needs,Residential Independent Sector
Cambridgeshire County Council,29-Sep-16,21717973-14108683,-1198.04,Caretech Community Services,Care Establishment,2 - Operations - Learning Disability,LDP South Cambs - Special Needs,Residential Independent Sector
Cambridgeshire County Council,29-Sep-16,21722878-14108693,-1198.04,Caretech Community Services,Care Establishment,2 - Operations - Learning Disability,LDP South Cambs Locality - Care,Residential Independent Sector
Cambridgeshire County Council,29-Sep-16,21722883-14108698,-1198.04,Caretech Community Services,Care Establishment,2 - Operations - Learning Disability,LDP South Cambs - Special Needs,Residential Independent Sector
Cambridgeshire County Council,29-Sep-16,21722886-14108701,-1198.04,Caretech Community Services,Care Establishment,2 - Operations - Learning Disability,LDP South Cambs Locality - Care,Residential Independent Sector
Cambridgeshire County Council,29-Sep-16,21722891-14108706,-1198.04,Caretech Community Services,Care Establishment,2 - Operations - Learning Disability,LDP South Cambs Locality - Care,Residential Independent Sector
Cambridgeshire County Council,29-Sep-16,21722893-14108708,-1198.04,Caretech Community Services,Care Establishment,2 - Operations - Learning Disability,LDP South Cambs Locality - Care,Residential Independent Sector
Cambridgeshire County Council,29-Sep-16,21722894-14108709,-1198.04,Caretech Community Services,Care Establishment,2 - Operations - Learning Disability,LDP South Cambs Locality - Care,Residential Independent Sector
Cambridgeshire County Council,29-Sep-16,21722897-14108712,-1198.04,Caretech Community Services,Care Establishment,2 - Operations - Learning Disability,LDP South Cambs - Special Needs,Residential Independent Sector
Cambridgeshire County Council,29-Sep-16,21722898-14108713,-1198.04,Caretech Community Services,Care Establishment,2 - Operations - Learning Disability,LDP South Cambs - Special Needs,Residential Independent Sector
Cambridgeshire County Council,29-Sep-16,21722900-14108715,-1198.04,Caretech Community Services,Care Establishment,2 - Operations - Learning Disability,LDP South Cambs Locality - Care,Residential Independent Sector
Cambridgeshire County Council,29-Sep-16,21722901-14108716,-1198.04,Caretech Community Services,Care Establishment,2 - Operations - Learning Disability,LDP South Cambs - Special Needs,Residential Independent Sector
Cambridgeshire County Council,29-Sep-16,21722904-14108719,-1198.04,Caretech Community Services,Care Establishment,2 - Operations - Learning Disability,LDP South Cambs Locality - Care,Residential Independent Sector
Cambridgeshire County Council,29-Sep-16,21722906-14108721,-1198.04,Caretech Community Services,Care Establishment,2 - Operations - Learning Disability,LDP South Cambs Locality - Care,Residential Independent Sector
Cambridgeshire County Council,09-Sep-16,21569081-13937474,-1196.59,Oaklands Care Home,Care Establishment,2 - Commissioning - Older people Pool,Older People - City & South,Nursing Independent Sector
Cambridgeshire County Council,09-Sep-16,21569087-13937475,-1196.59,Oaklands Care Home,Care Establishment,2 - Commissioning - Older people Pool,Older People - City & South,Nursing Independent Sector
Cambridgeshire County Council,09-Sep-16,21569088-13937476,-1196.59,Oaklands Care Home,Care Establishment,2 - Commissioning - Older people Pool,Older People - City & South,Nursing Independent Sector
Cambridgeshire County Council,09-Sep-16,21569089-13937477,-1196.59,Oaklands Care Home,Care Establishment,2 - Commissioning - Older people Pool,Older People - City & South,Nursing Independent Sector
Cambridgeshire County Council,09-Sep-16,21569111-13937518,-1196.59,Oaklands Care Home,Care Establishment,2 - Commissioning - Older people Pool,Older People - City & South,Nursing Independent Sector
Cambridgeshire County Council,09-Sep-16,21569119-13937520,-1196.59,Oaklands Care Home,Care Establishment,2 - Commissioning - Older people Pool,Older People - City & South,Nursing Independent Sector
Cambridgeshire County Council,09-Sep-16,21569123-13937521,-1196.59,Oaklands Care Home,Care Establishment,2 - Commissioning - Older people Pool,Older People - City & South,Nursing Independent Sector
Cambridgeshire County Council,09-Sep-16,21569130-13937523,-1196.59,Oaklands Care Home,Care Establishment,2 - Commissioning - Older people Pool,Older People - City & South,Nursing Independent Sector
Cambridgeshire County Council,09-Sep-16,21569135-13937524,-1196.59,Oaklands Care Home,Care Establishment,2 - Commissioning - Older people Pool,Older People - City & South,Nursing Independent Sector
Cambridgeshire County Council,09-Sep-16,21569138-13937527,-1196.59,Oaklands Care Home,Care Establishment,2 - Commissioning - Older people Pool,Older People - City & South,Nursing Independent Sector
Cambridgeshire County Council,09-Sep-16,21569152-13937530,-1196.59,Oaklands Care Home,Care Establishment,2 - Commissioning - Older people Pool,Older People - City & South,Nursing Independent Sector
Cambridgeshire County Council,09-Sep-16,21569159-13937533,-1196.59,Oaklands Care Home,Care Establishment,2 - Commissioning - Older people Pool,Older People - City & South,Nursing Independent Sector
Cambridgeshire County Council,09-Sep-16,21569163-13937534,-1196.59,Oaklands Care Home,Care Establishment,2 - Commissioning - Older people Pool,Older People - City & South,Nursing Independent Sector
Cambridgeshire County Council,09-Sep-16,21569170-13937536,-1196.59,Oaklands Care Home,Care Establishment,2 - Commissioning - Older people Pool,Older People - City & South,Nursing Independent Sector
Cambridgeshire County Council,09-Sep-16,21569178-13937539,-1196.59,Oaklands Care Home,Care Establishment,2 - Commissioning - Older people Pool,Older People - City & South,Nursing Independent Sector
Cambridgeshire County Council,09-Sep-16,21569179-13937540,-1196.59,Oaklands Care Home,Care Establishment,2 - Commissioning - Older people Pool,Older People - City & South,Nursing Independent Sector
Cambridgeshire County Council,09-Sep-16,21569182-13937480,-1196.59,Oaklands Care Home,Care Establishment,2 - Commissioning - Older people Pool,Older People - City & South,Nursing Independent Sector
Cambridgeshire County Council,09-Sep-16,21569186-13937482,-1196.59,Oaklands Care Home,Care Establishment,2 - Commissioning - Older people Pool,Older People - City & South,Nursing Independent Sector
Cambridgeshire County Council,09-Sep-16,21569187-13937483,-1196.59,Oaklands Care Home,Care Establishment,2 - Commissioning - Older people Pool,Older People - City & South,Nursing Independent Sector
Cambridgeshire County Council,09-Sep-16,21563804-13936371,-1195.06,Conquest Care Homes Peterborough,Care Establishment,2 - Operations - Learning Disability,LDP Hunts special needs,Residential Independent Sector
Cambridgeshire County Council,09-Sep-16,21563807-13936374,-1195.06,Conquest Care Homes Peterborough,Care Establishment,2 - Operations - Learning Disability,LDP Hunts special needs,Residential Independent Sector
Cambridgeshire County Council,09-Sep-16,21563817-13936384,-1195.06,Conquest Care Homes Peterborough,Care Establishment,2 - Operations - Learning Disability,LDP Hunts special needs,Residential Independent Sector
Cambridgeshire County Council,09-Sep-16,21563821-13936298,-1195.06,Conquest Care Homes Peterborough,Care Establishment,2 - Operations - Learning Disability,LDP Hunts special needs,Residential Independent Sector
Cambridgeshire County Council,09-Sep-16,21563823-13936300,-1195.06,Conquest Care Homes Peterborough,Care Establishment,2 - Operations - Learning Disability,LDP Hunts special needs,Residential Independent Sector
Cambridgeshire County Council,09-Sep-16,21563825-13936302,-1195.06,Conquest Care Homes Peterborough,Care Establishment,2 - Operations - Learning Disability,LDP Hunts special needs,Residential Independent Sector
Cambridgeshire County Council,09-Sep-16,21563826-13936303,-1195.06,Conquest Care Homes Peterborough,Care Establishment,2 - Operations - Learning Disability,LDP Hunts special needs,Residential Independent Sector
Cambridgeshire County Council,09-Sep-16,21563828-13936305,-1195.06,Conquest Care Homes Peterborough,Care Establishment,2 - Operations - Learning Disability,LDP Hunts special needs,Residential Independent Sector
Cambridgeshire County Council,09-Sep-16,21563834-13936311,-1195.06,Conquest Care Homes Peterborough,Care Establishment,2 - Operations - Learning Disability,LDP Hunts special needs,Residential Independent Sector
Cambridgeshire County Council,09-Sep-16,21563838-13936351,-1195.06,Conquest Care Homes Peterborough,Care Establishment,2 - Operations - Learning Disability,LDP Hunts special needs,Residential Independent Sector
Cambridgeshire County Council,09-Sep-16,21563839-13936352,-1195.06,Conquest Care Homes Peterborough,Care Establishment,2 - Operations - Learning Disability,LDP Hunts special needs,Residential Independent Sector
Cambridgeshire County Council,09-Sep-16,21563841-13936354,-1195.06,Conquest Care Homes Peterborough,Care Establishment,2 - Operations - Learning Disability,LDP Hunts special needs,Residential Independent Sector
Cambridgeshire County Council,09-Sep-16,21563842-13936355,-1195.06,Conquest Care Homes Peterborough,Care Establishment,2 - Operations - Learning Disability,LDP Hunts special needs,Residential Independent Sector
Cambridgeshire County Council,09-Sep-16,21563844-13936357,-1195.06,Conquest Care Homes Peterborough,Care Establishment,2 - Operations - Learning Disability,LDP Hunts special needs,Residential Independent Sector
Cambridgeshire County Council,09-Sep-16,21563847-13936360,-1195.06,Conquest Care Homes Peterborough,Care Establishment,2 - Operations - Learning Disability,LDP Hunts special needs,Residential Independent Sector
Cambridgeshire County Council,09-Sep-16,21563852-13936365,-1195.06,Conquest Care Homes Peterborough,Care Establishment,2 - Operations - Learning Disability,LDP Hunts special needs,Residential Independent Sector
Cambridgeshire County Council,09-Sep-16,21563853-13936366,-1195.06,Conquest Care Homes Peterborough,Care Establishment,2 - Operations - Learning Disability,LDP Hunts special needs,Residential Independent Sector
Cambridgeshire County Council,09-Sep-16,21563854-13936367,-1195.06,Conquest Care Homes Peterborough,Care Establishment,2 - Operations - Learning Disability,LDP Hunts special needs,Residential Independent Sector
Cambridgeshire County Council,09-Sep-16,21563863-13936322,-1195.06,Conquest Care Homes Peterborough,Care Establishment,2 - Operations - Learning Disability,LDP Hunts special needs,Residential Independent Sector
Cambridgeshire County Council,09-Sep-16,21563865-13936324,-1195.06,Conquest Care Homes Peterborough,Care Establishment,2 - Operations - Learning Disability,LDP Hunts special needs,Residential Independent Sector
Cambridgeshire County Council,09-Sep-16,21563877-13936335,-1195.06,Conquest Care Homes Peterborough,Care Establishment,2 - Operations - Learning Disability,LDP Hunts special needs,Residential Independent Sector
Cambridgeshire County Council,09-Sep-16,21563879-13936337,-1195.06,Conquest Care Homes Peterborough,Care Establishment,2 - Operations - Learning Disability,LDP Hunts special needs,Residential Independent Sector
